{"text_format":"1","workbook":"xlsx","n_sheets":5,"sheets":["2015","2016","2017","2018","2019"],"not_rendered":{"charts":0,"images":0,"macros":1,"external_links":5,"defined_names":381,"comments":0,"pivot_tables":0},"unopened":[],"bounds":{"document_bytes":16777216,"sheet_cells":100000,"rows_first":2000,"rows_last":500,"rows_between":2000,"halvings":0,"cell_chars":16384,"cell_head_chars":4096},"cells_cut":0,"cells_raw":0,"read":"whole","date_system":"1900"}

{"sheet":"2015","index":0,"n_rows":666,"n_cols":4,"rows_kept":666,"cut":false,"hidden":false,"merged":[[0,2,0,3],[1,2,1,3],[2,2,2,3],[3,2,3,3],[4,2,4,3],[6,2,6,3],[18,0,18,3],[19,0,19,3],[20,0,20,3],[21,0,21,3],[22,0,22,3],[23,0,23,3],[7,0,7,3],[9,0,9,3],[10,0,10,3],[12,0,12,1],[14,0,14,3],[17,0,17,3],[38,0,38,3],[40,0,40,3],[41,0,41,3],[42,0,42,3],[44,0,44,3],[46,0,46,3],[24,0,24,3],[25,0,25,3],[26,0,26,3],[27,0,27,3],[36,0,36,3],[37,0,37,3],[59,0,59,1],[60,0,60,1],[61,0,61,1],[62,0,62,1],[64,0,64,1],[49,0,49,3],[50,0,50,3],[51,0,51,3],[52,0,52,3],[56,0,56,1],[57,0,57,1],[63,0,63,1],[71,0,71,1],[72,0,72,1],[73,0,73,1],[74,0,74,1],[75,0,75,1],[76,0,76,1],[65,0,65,1],[66,0,66,1],[67,0,67,1],[68,0,68,1],[69,0,69,1],[70,0,70,1],[83,0,83,1],[84,0,84,1],[85,0,85,1],[86,0,86,1],[90,0,90,1],[91,0,91,1],[77,0,77,1],[78,0,78,1],[79,0,79,1],[80,0,80,1],[81,0,81,1],[82,0,82,1],[101,0,101,3],[105,0,105,1],[106,0,106,1],[108,0,108,1],[109,0,109,1],[110,0,110,1],[92,0,92,1],[93,0,93,3],[95,0,95,3],[98,0,98,3],[99,0,99,3],[100,0,100,3],[117,0,117,1],[118,0,118,1],[119,0,119,1],[120,0,120,1],[121,0,121,1],[122,0,122,1],[111,0,111,1],[113,0,113,1],[114,0,114,1],[115,0,115,1],[116,0,116,1],[112,0,112,1],[129,0,129,1],[130,0,130,1],[131,0,131,1],[132,0,132,1],[133,0,133,1],[134,0,134,1],[123,0,123,1],[124,0,124,1],[125,0,125,1],[126,0,126,1],[127,0,127,1],[128,0,128,1],[147,0,147,3],[148,0,148,3],[149,0,149,3],[150,0,150,3],[154,0,154,1],[155,0,155,1],[135,0,135,1],[139,0,139,1],[140,0,140,1],[141,0,141,1],[142,0,142,3],[144,0,144,3],[162,0,162,1],[163,0,163,1],[164,0,164,1],[165,0,165,1],[166,0,166,1],[167,0,167,1],[156,0,156,1],[157,0,157,1],[158,0,158,1],[160,0,160,1],[161,0,161,1],[159,0,159,1],[174,0,174,1],[175,0,175,1],[176,0,176,1],[177,0,177,1],[178,0,178,1],[179,0,179,1],[168,0,168,1],[169,0,169,1],[170,0,170,1],[171,0,171,1],[172,0,172,1],[173,0,173,1],[189,0,189,1],[190,0,190,3],[192,0,192,3],[195,0,195,3],[196,0,196,3],[197,0,197,3],[180,0,180,1],[181,0,181,1],[182,0,182,1],[183,0,183,1],[187,0,187,1],[188,0,188,1],[206,0,206,1],[208,0,208,1],[209,0,209,1],[210,0,210,1],[211,0,211,1],[212,0,212,1],[198,0,198,3],[202,0,202,1],[203,0,203,1],[204,0,204,1],[205,0,205,1],[207,0,207,1],[219,0,219,1],[220,0,220,1],[221,0,221,1],[222,0,222,1],[223,0,223,1],[224,0,224,1],[213,0,213,1],[214,0,214,1],[215,0,215,1],[216,0,216,1],[217,0,217,1],[218,0,218,1],[231,0,231,1],[235,0,235,1],[236,0,236,1],[237,0,237,1],[238,0,238,3],[240,0,240,3],[225,0,225,1],[226,0,226,1],[227,0,227,1],[228,0,228,1],[229,0,229,1],[230,0,230,1],[252,0,252,1],[253,0,253,1],[254,0,254,1],[256,0,256,1],[257,0,257,1],[243,0,243,3],[244,0,244,3],[245,0,245,3],[246,0,246,3],[250,0,250,1],[251,0,251,1],[255,0,255,1],[264,0,264,1],[265,0,265,1],[266,0,266,1],[267,0,267,1],[268,0,268,1],[269,0,269,1],[258,0,258,1],[259,0,259,1],[260,0,260,1],[261,0,261,1],[262,0,262,1],[263,0,263,1],[276,0,276,1],[277,0,277,1],[278,0,278,1],[279,0,279,1],[283,0,283,1],[284,0,284,1],[270,0,270,1],[271,0,271,1],[272,0,272,1],[273,0,273,1],[274,0,274,1],[275,0,275,1],[294,0,294,3],[298,0,298,1],[299,0,299,1],[300,0,300,1],[301,0,301,1],[285,0,285,1],[286,0,286,3],[288,0,288,3],[291,0,291,3],[292,0,292,3],[293,0,293,3],[308,0,308,1],[309,0,309,1],[310,0,310,1],[311,0,311,1],[312,0,312,1],[313,0,313,1],[302,0,302,1],[303,0,303,1],[304,0,304,1],[305,0,305,1],[306,0,306,1],[307,0,307,1],[320,0,320,1],[321,0,321,1],[322,0,322,1],[323,0,323,1],[324,0,324,1],[325,0,325,1],[314,0,314,1],[315,0,315,1],[316,0,316,1],[317,0,317,1],[318,0,318,1],[319,0,319,1],[338,0,338,3],[339,0,339,3],[340,0,340,3],[341,0,341,3],[345,0,345,1],[346,0,346,1],[326,0,326,1],[330,0,330,1],[331,0,331,1],[332,0,332,1],[333,0,333,3],[335,0,335,3],[352,0,352,1],[353,0,353,1],[354,0,354,1],[355,0,355,1],[356,0,356,1],[357,0,357,1],[347,0,347,1],[348,0,348,1],[349,0,349,1],[350,0,350,1],[351,0,351,1],[364,0,364,1],[365,0,365,1],[366,0,366,1],[367,0,367,1],[368,0,368,1],[369,0,369,1],[358,0,358,1],[359,0,359,1],[360,0,360,1],[361,0,361,1],[362,0,362,1],[363,0,363,1],[379,0,379,1],[380,0,380,3],[382,0,382,3],[385,0,385,3],[386,0,386,3],[387,0,387,3],[370,0,370,1],[371,0,371,1],[372,0,372,1],[373,0,373,1],[377,0,377,1],[378,0,378,1],[396,0,396,1],[397,0,397,1],[398,0,398,1],[399,0,399,1],[400,0,400,1],[401,0,401,1],[388,0,388,3],[392,0,392,1],[393,0,393,1],[394,0,394,1],[395,0,395,1],[408,0,408,1],[409,0,409,1],[410,0,410,1],[411,0,411,1],[412,0,412,1],[413,0,413,1],[402,0,402,1],[403,0,403,1],[404,0,404,1],[405,0,405,1],[406,0,406,1],[407,0,407,1],[420,0,420,1],[424,0,424,1],[425,0,425,1],[426,0,426,1],[427,0,427,3],[429,0,429,3],[414,0,414,1],[415,0,415,1],[416,0,416,1],[417,0,417,1],[418,0,418,1],[419,0,419,1],[443,0,443,1],[444,0,444,1],[445,0,445,1],[446,0,446,1],[432,0,432,3],[433,0,433,3],[434,0,434,3],[435,0,435,3],[439,0,439,1],[440,0,440,1],[453,0,453,1],[454,0,454,1],[455,0,455,1],[456,0,456,1],[457,0,457,1],[458,0,458,1],[447,0,447,1],[448,0,448,1],[449,0,449,1],[450,0,450,1],[451,0,451,1],[452,0,452,1],[465,0,465,1],[466,0,466,1],[467,0,467,1],[468,0,468,1],[472,0,472,1],[473,0,473,1],[459,0,459,1],[460,0,460,1],[461,0,461,1],[462,0,462,1],[463,0,463,1],[464,0,464,1],[483,0,483,3],[487,0,487,1],[488,0,488,1],[489,0,489,1],[490,0,490,1],[491,0,491,1],[474,0,474,1],[475,0,475,3],[477,0,477,3],[480,0,480,3],[481,0,481,3],[482,0,482,3],[498,0,498,1],[499,0,499,1],[500,0,500,1],[501,0,501,1],[502,0,502,1],[503,0,503,1],[492,0,492,1],[493,0,493,1],[494,0,494,1],[495,0,495,1],[496,0,496,1],[497,0,497,1],[510,0,510,1],[511,0,511,1],[512,0,512,1],[513,0,513,1],[514,0,514,1],[515,0,515,1],[504,0,504,1],[505,0,505,1],[506,0,506,1],[507,0,507,1],[508,0,508,1],[509,0,509,1],[528,0,528,1],[529,0,529,1],[535,0,535,3],[537,0,537,3],[537,4,537,7],[539,0,539,3],[539,4,539,7],[516,0,516,1],[520,0,520,1],[521,0,521,1],[522,0,522,1],[526,0,526,1],[527,0,527,1],[549,0,549,1],[550,0,550,1],[551,0,551,1],[552,0,552,1],[553,0,553,1],[554,0,554,1],[543,0,543,1],[544,0,544,1],[545,0,545,1],[546,0,546,1],[547,0,547,1],[548,0,548,1],[562,0,562,1],[563,0,563,1],[564,0,564,1],[565,0,565,1],[566,0,566,1],[567,0,567,1],[555,0,555,1],[556,0,556,1],[557,0,557,1],[558,0,558,1],[560,0,560,1],[561,0,561,1],[574,0,574,1],[575,0,575,1],[576,0,576,1],[577,0,577,1],[578,0,578,1],[582,0,582,1],[568,0,568,1],[569,0,569,1],[570,0,570,1],[571,0,571,1],[572,0,572,1],[573,0,573,1],[589,0,589,1],[590,0,590,1],[591,0,591,1],[592,0,592,1],[593,0,593,1],[594,0,594,1],[583,0,583,1],[584,0,584,1],[585,0,585,1],[586,0,586,1],[587,0,587,1],[588,0,588,1],[601,0,601,1],[602,0,602,1],[603,0,603,1],[604,0,604,1],[605,0,605,1],[606,0,606,1],[595,0,595,1],[596,0,596,1],[597,0,597,1],[598,0,598,1],[599,0,599,1],[600,0,600,1],[615,0,615,1],[616,0,616,1],[617,0,617,1],[618,0,618,1],[619,0,619,1],[620,0,620,1],[609,0,609,1],[610,0,610,1],[611,0,611,1],[612,0,612,1],[613,0,613,1],[614,0,614,1],[627,0,627,1],[628,0,628,1],[629,0,629,1],[633,0,633,3],[633,4,633,7],[634,0,634,3],[634,4,634,7],[621,0,621,1],[622,0,622,1],[623,0,623,1],[624,0,624,1],[625,0,625,1],[626,0,626,1],[638,0,638,3],[638,4,638,7],[639,0,639,3],[639,4,639,7],[640,0,640,3],[640,4,640,7],[635,0,635,3],[635,4,635,7],[636,0,636,3],[636,4,636,7],[637,0,637,3],[637,4,637,7],[659,4,659,7],[646,0,646,1],[647,0,647,1],[648,0,648,1],[649,0,649,1],[650,0,650,1],[651,0,651,1],[641,0,641,3],[641,4,641,7],[643,0,643,1],[643,4,643,5],[644,0,644,1],[645,0,645,1],[662,0,662,1],[663,0,663,1],[664,0,664,1],[665,0,665,1],[666,0,666,1],[667,0,667,1],[652,0,652,1],[653,0,653,1],[654,0,654,1],[655,0,655,1],[659,0,659,3]]}
[null,"File Number:","EB-2014-0002"]
[null,"Exhibit:"]
[null,"Tab:"]
[null,"Schedule:"]
[null,"Page:"]
[]
[null,"Date:"]
["Appendix 2-Z\nTariff of Rates and Charges"]
[]
["For each class, Applicants are required to copy and paste the class descriptions (located directly under the class name) and the description of the applicability of those rates (description is found under the class name and directly under the word \"APPLICATION\").  By using the drop-down lists located under the column labeled \"Rate Description\", please select the descriptions of the rates and charges that BEST MATCHES the descriptions on your most recent Board-Approved Tariff of Rates and Charges.  If the description is not found in the drop-down list, please enter the description in the green shaded cells under the correct class exactly as it appears on the tariff.   Please do not enter more than one \"Service Charge\" for each class for which a base monthly fixed charge applies.  All rate rider descriptions should begin with \"Rate Rider for...\"."]
["Select the appropriate rate classes as they appear on your most recent Board-Approved Tariff of Rates and Charges, including the MicroFit Class."]
[]
["How many classes are listed on your most recent Board-Approved Tariff of Rates and Charges?",null,10]
[]
["Select Your Rate Classes from the Blue Cells below.  \nPlease ensure that a rate class is assigned to each shaded cell."]
[]
[]
["Rate Class Classification"]
["RESIDENTIAL"]
["GENERAL SERVICE LESS THAN 50 KW"]
["GENERAL SERVICE 50 TO 4,999 KW"]
["LARGE USE"]
["LARGE USE (2)"]
["UNMETERED SCATTERED LOAD"]
["SENTINEL LIGHTING"]
["STREET LIGHTING"]
["STANDBY POWER"]
["microFIT"]
[]
[]
[]
[]
[]
[]
["Once all blue shaded cells above are filled out, press the following button to create your tariff template"]
[]
["Horizon Utilities"]
["TARIFF OF RATES AND CHARGES"]
[{"$f":"\"Effective and Implementation Date January 1, 2015\"","v":"Effective and Implementation Date January 1, 2015"}]
[]
["This schedule supersedes and replaces all previously"]
["approved schedules of Rates, Charges and Loss Factors"]
[{"$f":"C1","v":"EB-2014-0002"}]
[]
["RESIDENTIAL SERVICE CLASSIFICATION"]
[]
["This classification applies to an account taking electricity at 750 volts or less where the electricity is used exclusively in a separate metered living accommodation. Customers shall be residing in single-dwelling units that consist of a detached house or one unit of a semi-detached, duplex, triplex or quadruplex house, with a residential zoning. Separately metered dwellings within a town house complex or apartment building also qualify as residential customers. All customers are single-phase. Further servicing details are available in the distributor’s Conditions of Service."]
["APPLICATION"]
[]
["The application of these rates and charges shall be in accordance with the Licence of the Distributor and any Code or Order of the Board, and amendments thereto as approved by the Board, which may be applicable to the administration of this schedule."]
["No rates and charges for the distribution of electricity and charges to meet the costs of any work or service done or furnished for the purpose of the distribution of electricity shall be made except as permitted by this schedule, unless required by the Distributor’s Licence or a Code or Order of the Board, and amendments thereto as approved by the Board, or as specified herein."]
["Unless specifically noted, this schedule does not contain any charges for the electricity commodity, be it under the Regulated Price Plan, a contract with a retailer or the wholesale market price, as applicable."]
["It should be noted that this schedule does not list any charges, assessments, or credits that are required by law to be invoiced by a distributor and that are not subject to Board approval, such as the Debt Retirement Charge, the Global Adjustment, the Ontario Clean Energy Benefit and the HST."]
[]
["MONTHLY RATES AND CHARGES - Delivery Component"]
[]
["Service Charge",null,"customer",16.38]
["Smart Meter Entity Charge (effective from May 1, 2013 until Oct 31, 2018)",null,"customer",0.79]
["SMDR Rate Rider - effective until Dec 31, 2015",null,"customer",0.01]
["Distribution Volumetric Rate",null,"kWh",1.61E-2]
["Rate Rider for Deferral/Variance Account Disposition (2015) - effective until Dec 31, 2015",null,"kWh",-6.9999999999999999E-4]
["Rate Rider for Global Adjustment Sub-Account Disposition (2015) - effective until Dec 31, 2015 (Applicable only for Non-RPP Customers)",null,"kWh",1.1999999999999999E-3]
["Rate Rider for Disposition of Group 2 Account 1575 - Transition to IFRS - effective until Dec 31, 2015",null,"kWh",1E-4]
["Rate Rider for Disposition of Group 2 Account 1568 - LRAMVA - effective until Dec 31, 2015",null,"kWh",-1E-4]
["Low Voltage Service Rate",null,"kWh",6.0000000000000022E-5]
["Retail Transmission Rate – Network Service Rate",null,"kWh",7.6E-3]
["Retail Transmission Rate – Line and Transformation Connection Service Rate",null,"kWh",5.5999999999999999E-3]
[]
[]
[]
[]
[]
[]
[]
[]
[]
[]
[]
[]
[]
[]
[]
[]
[]
[]
[]
[]
[]
["MONTHLY RATES AND CHARGES - Regulatory Component"]
[]
["Wholesale Market Service Rate",null,"$/kWh",4.4000000000000003E-3]
["Rural Rate Protection Charge",null,"$/kWh",1.1999999999999999E-3]
["Standard Supply Service - Administrative Charge (if applicable)",null,"$",0.25]
["GENERAL SERVICE LESS THAN 50 KW SERVICE CLASSIFICATION"]
[]
["This classification applies to a non residential account taking electricity at 750 volts or less whose average monthly maximum demand is less than, or is forecast to be less than, 50 kW. Further servicing details are available in the distributor’s Conditions of Service."]
["APPLICATION"]
[]
["The application of these rates and charges shall be in accordance with the Licence of the Distributor and any Code or Order of the Board, and amendments thereto as approved by the Board, which may be applicable to the administration of this schedule."]
["No rates and charges for the distribution of electricity and charges to meet the costs of any work or service done or furnished for the purpose of the distribution of electricity shall be made except as permitted by this schedule, unless required by the Distributor’s Licence or a Code or Order of the Board, and amendments thereto as approved by the Board, or as specified herein."]
["Unless specifically noted, this schedule does not contain any charges for the electricity commodity, be it under the Regulated Price Plan, a contract with a retailer or the wholesale market price, as applicable."]
["It should be noted that this schedule does not list any charges, assessments, or credits that are required by law to be invoiced by a distributor and that are not subject to Board approval, such as the Debt Retirement Charge, the Global Adjustment, the Ontario Clean Energy Benefit and the HST."]
[]
["MONTHLY RATES AND CHARGES - Delivery Component"]
[]
["Service Charge",null,"customer",41.33]
["Smart Meter Entity Charge (effective from May 1, 2013 until Oct 31, 2018)",null,"customer",0.78800000000000003]
["SMDR Rate Rider - effective until Dec 31, 2015",null,"customer",2.2999999999999998]
["Distribution Volumetric Rate",null,"kWh",1.0699999999999999E-2]
["Rate Rider for Deferral/Variance Account Disposition (2015) - effective until Dec 31, 2015",null,"kWh",-8.9999999999999998E-4]
["Rate Rider for Global Adjustment Sub-Account Disposition (2015) - effective until Dec 31, 2015 (Applicable only for Non-RPP Customers)",null,"kWh",1.1999999999999999E-3]
["Rate Rider for Disposition of Group 2 Account 1575 - Transition to IFRS - effective until Dec 31, 2015",null,"kWh",1E-4]
["Rate Rider for Disposition of Group 2 Account 1568 - LRAMVA - effective until Dec 31, 2015",null,"kWh",-1E-4]
["Low Voltage Service Rate",null,"kWh",6.0000000000000002E-5]
["Retail Transmission Rate – Network Service Rate",null,"kWh",6.4999999999999997E-3]
["Retail Transmission Rate – Line and Transformation Connection Service Rate",null,"kWh",5.1000000000000004E-3]
[]
[]
[]
[]
[]
[]
[]
[]
[]
[]
[]
[]
[]
[]
[]
[]
[]
[]
[]
[]
[]
["MONTHLY RATES AND CHARGES - Regulatory Component"]
[]
["Wholesale Market Service Rate",null,"kWh",4.4000000000000003E-3]
["Rural Rate Protection Charge",null,"kWh",1.1999999999999999E-3]
["Standard Supply Service - Administrative Charge (if applicable)",null,"$",0.25]
["GENERAL SERVICE 50 TO 4,999 KW SERVICE CLASSIFICATION"]
[]
["This classification applies to a non residential account whose average monthly maximum demand used for billing purposes is equal to or greater than, or is forecast to be equal to or greater than, 50 kW but less than 5,000 kW. Further servicing details are available in the distributor’s Conditions of Service."]
["APPLICATION"]
[]
["The application of these rates and charges shall be in accordance with the Licence of the Distributor and any Code or Order of the Board, and amendments thereto as approved by the Board, which may be applicable to the administration of this schedule."]
["No rates and charges for the distribution of electricity and charges to meet the costs of any work or service done or furnished for the purpose of the distribution of electricity shall be made except as permitted by this schedule, unless required by the Distributor’s Licence or a Code or Order of the Board, and amendments thereto as approved by the Board, or as specified herein."]
["Unless specifically noted, this schedule does not contain any charges for the electricity commodity, be it under the Regulated Price Plan, a contract with a retailer or the wholesale market price, as applicable."]
["It should be noted that this schedule does not list any charges, assessments, or credits that are required by law to be invoiced by a distributor and that are not subject to Board approval, such as the Debt Retirement Charge, the Global Adjustment, the Ontario Clean Energy Benefit and the HST."]
[]
["MONTHLY RATES AND CHARGES - Delivery Component"]
[]
["Service Charge",null,"customer",376.9]
["Distribution Volumetric Rate",null,"kW",2.5407999999999999]
["Rate Rider for Deferral/Variance Account Disposition (2015) - effective until Dec 31, 2015",null,"kW",-0.34010000000000001]
["Rate Rider for Global Adjustment Sub-Account Disposition (2015) - effective until Dec 31, 2015 (Applicable only for Non-RPP Customers)",null,"kW",0.44640000000000002]
["Rate Rider for Disposition of Group 2 Account 1575 - Transition to IFRS - effective until Dec 31, 2015",null,"kW",4.6100000000000002E-2]
["Rate Rider for Disposition of Group 2 Account 1568 - LRAMVA - effective until Dec 31, 2015",null,"kW",-1.9099999999999999E-2]
["Low Voltage Service Rate",null,"kW",2.1690000000000001E-2]
["Retail Transmission Rate – Network Service Rate",null,"kW",2.6038000000000001]
["Retail Transmission Rate – Line and Transformation Connection Service Rate",null,"kW",2.0114999999999998]
[]
[]
[]
[]
[]
[]
[]
[]
[]
[]
[]
[]
[]
[]
[]
[]
[]
[]
[]
[]
[]
[]
["MONTHLY RATES AND CHARGES - Regulatory Component"]
[]
["Wholesale Market Service Rate",null,"kWh",4.4000000000000003E-3]
["Rural Rate Protection Charge",null,"kWh",1.1999999999999999E-3]
["Standard Supply Service - Administrative Charge (if applicable)",null,"$",0.25]
["LARGE USE SERVICE CLASSIFICATION"]
[]
["This classification applies to an account whose average monthly maximum demand used for billing purposes is equal to or greater than, or is forecast to be equal to or greater than, 5,000 kW. Further servicing details are available in the distributor’s Conditions of Service."]
["APPLICATION"]
[]
["The application of these rates and charges shall be in accordance with the Licence of the Distributor and any Code or Order of the Board, and amendments thereto as approved by the Board, which may be applicable to the administration of this schedule."]
["No rates and charges for the distribution of electricity and charges to meet the costs of any work or service done or furnished for the purpose of the distribution of electricity shall be made except as permitted by this schedule, unless required by the Distributor’s Licence or a Code or Order of the Board, and amendments thereto as approved by the Board, or as specified herein."]
["Unless specifically noted, this schedule does not contain any charges for the electricity commodity, be it under the Regulated Price Plan, a contract with a retailer or the wholesale market price, as applicable."]
["It should be noted that this schedule does not list any charges, assessments, or credits that are required by law to be invoiced by a distributor and that are not subject to Board approval, such as the Debt Retirement Charge, the Global Adjustment, the Ontario Clean Energy Benefit and the HST."]
[]
["MONTHLY RATES AND CHARGES - Delivery Component"]
[]
["Service Charge",null,"customer",17835.830000000002]
["Distribution Volumetric Rate",null,"kW",1.0523]
["Rate Rider for Deferral/Variance Account Disposition (2015) - effective until Dec 31, 2015",null,"kW",-0.40860000000000002]
["Rate Rider for Global Adjustment Sub-Account Disposition (2015) - effective until Dec 31, 2015 (Applicable only for Non-RPP Customers)",null,"kW",0.52929999999999999]
["Rate Rider for Disposition of Group 2 Account 1575 - Transition to IFRS - effective until Dec 31, 2015",null,"kW",5.4600000000000003E-2]
["Rate Rider for Disposition of Group 2 Account 1568 - LRAMVA - effective until Dec 31, 2015",null,"kW",-2.2599999999999999E-2]
["Low Voltage Service Rate",null,"kW",2.4920000000000001E-2]
["Retail Transmission Rate – Network Service Rate",null,"kW",2.9744999999999999]
["Retail Transmission Rate – Line and Transformation Connection Service Rate",null,"kW",2.3115000000000001]
[]
[]
[]
[]
[]
[]
[]
[]
[]
[]
[]
[]
[]
[]
[]
[]
[]
[]
[]
[]
[]
[]
["MONTHLY RATES AND CHARGES - Regulatory Component"]
[]
["Wholesale Market Service Rate",null,"kWh",4.4000000000000003E-3]
["Rural Rate Protection Charge",null,"kWh",1.1999999999999999E-3]
["Standard Supply Service - Administrative Charge (if applicable)",null,"$",0.25]
["LARGE USE (2) SERVICE CLASSIFICATION"]
[]
["This classification applies to an account whose average monthly maximum demand used for billing purposes is equal to or greater than, or is forecast to be equal to or greater than, 15,000 kW and it is served with dedicated assets . Further servicing details are available in the distributor’s Conditions of Service."]
["APPLICATION"]
[]
["The application of these rates and charges shall be in accordance with the Licence of the Distributor and any Code or Order of the Board, and amendments thereto as approved by the Board, which may be applicable to the administration of this schedule."]
["No rates and charges for the distribution of electricity and charges to meet the costs of any work or service done or furnished for the purpose of the distribution of electricity shall be made except as permitted by this schedule, unless required by the Distributor’s Licence or a Code or Order of the Board, and amendments thereto as approved by the Board, or as specified herein."]
["Unless specifically noted, this schedule does not contain any charges for the electricity commodity, be it under the Regulated Price Plan, a contract with a retailer or the wholesale market price, as applicable."]
["It should be noted that this schedule does not list any charges, assessments, or credits that are required by law to be invoiced by a distributor and that are not subject to Board approval, such as the Debt Retirement Charge, the Global Adjustment, the Ontario Clean Energy Benefit and the HST."]
[]
["MONTHLY RATES AND CHARGES - Delivery Component"]
[]
["Service Charge",null,"customer",3015.85]
["Distribution Volumetric Rate",null,"kW",0.1779]
["Rate Rider for Deferral/Variance Account Disposition (2015) - effective until Dec 31, 2015",null,"kW",-0.16930000000000001]
["Rate Rider for Global Adjustment Sub-Account Disposition (2015) - effective until Dec 31, 2015 (Applicable only for Non-RPP Customers)",null,"kW",0.2147]
["Rate Rider for Disposition of Group 2 Account 1575 - Transition to IFRS - effective until Dec 31, 2015",null,"kW",2.2200000000000001E-2]
["Rate Rider for Disposition of Group 2 Account 1568 - LRAMVA - effective until Dec 31, 2015",null,"kW",-9.1999999999999998E-3]
["Low Voltage Service Rate",null,"kW",2.4920000000000001E-2]
["Retail Transmission Rate – Network Service Rate",null,"kW",2.9744999999999999]
["Retail Transmission Rate – Line and Transformation Connection Service Rate",null,"kW",2.3115000000000001]
[]
[]
[]
[]
[]
[]
[]
[]
[]
[]
[]
[]
[]
[]
[]
[]
[]
[]
[]
[]
[]
[]
["MONTHLY RATES AND CHARGES - Regulatory Component"]
[]
["Wholesale Market Service Rate",null,"$/kWh",4.4000000000000003E-3]
["Rural Rate Protection Charge",null,"$/kWh",1.1999999999999999E-3]
["Standard Supply Service - Administrative Charge (if applicable)",null,"$",0.25]
["UNMETERED SCATTERED LOAD SERVICE CLASSIFICATION"]
[]
["This classification applies to an account taking electricity at 750 volts or less whose average monthly maximum demand is less than, or is forecast to be less than, 50 kW and the consumption is unmetered. Such connections include cable TV power packs, bus shelters, telephone booths, traffic lights, railway crossings, etc. The level of the consumption will be agreed to by the distributor and the customer, based on detailed manufacturer information/ documentation with regard to electrical consumption of the unmetered load or periodic monitoring of actual consumption. Further servicing details are available in the distributor’s Conditions of Service."]
["APPLICATION"]
[]
["The application of these rates and charges shall be in accordance with the Licence of the Distributor and any Code or Order of the Board, and amendments thereto as approved by the Board, which may be applicable to the administration of this schedule."]
["No rates and charges for the distribution of electricity and charges to meet the costs of any work or service done or furnished for the purpose of the distribution of electricity shall be made except as permitted by this schedule, unless required by the Distributor’s Licence or a Code or Order of the Board, and amendments thereto as approved by the Board, or as specified herein."]
["Unless specifically noted, this schedule does not contain any charges for the electricity commodity, be it under the Regulated Price Plan, a contract with a retailer or the wholesale market price, as applicable."]
["It should be noted that this schedule does not list any charges, assessments, or credits that are required by law to be invoiced by a distributor and that are not subject to Board approval, such as the Debt Retirement Charge, the Global Adjustment, the Ontario Clean Energy Benefit and the HST."]
[]
["MONTHLY RATES AND CHARGES - Delivery Component"]
[]
["Service Charge",null,"connection",9.5439000000000007]
["Distribution Volumetric Rate",null,"kWh",1.4800000000000001E-2]
["Rate Rider for Deferral/Variance Account Disposition (2015) - effective until Dec 31, 2015",null,"kWh",-6.9999999999999999E-4]
["Rate Rider for Global Adjustment Sub-Account Disposition (2015) - effective until Dec 31, 2015 (Applicable only for Non-RPP Customers)",null,"kWh",1.1999999999999999E-3]
["Rate Rider for Disposition of Group 2 Account 1575 - Transition to IFRS - effective until Dec 31, 2015",null,"kWh",1E-4]
["Low Voltage Service Rate",null,"kWh",6.0000000000000002E-5]
["Retail Transmission Rate – Network Service Rate",null,"kWh",6.6E-3]
["Retail Transmission Rate – Line and Transformation Connection Service Rate",null,"kWh",5.1999999999999998E-3]
[]
[]
[]
[]
[]
[]
[]
[]
[]
[]
[]
[]
[]
[]
[]
[]
[]
[]
[]
[]
[]
[]
["MONTHLY RATES AND CHARGES - Regulatory Component"]
[]
["Wholesale Market Service Rate",null,"$/kWh",4.4000000000000003E-3]
["Rural Rate Protection Charge",null,"$/kWh",1.1999999999999999E-3]
["Standard Supply Service - Administrative Charge (if applicable)",null,"$",0.25]
["SENTINEL LIGHTING SERVICE CLASSIFICATION"]
[]
["This classification applies to safety/security lighting with a Residential, General Service or Large Use customer. This is typically exterior lighting, and often unmetered. Consumption is estimated based on the equipment rating and estimated hours of use. Further servicing details are available in the distributor’s Conditions of Service."]
["APPLICATION"]
[]
["The application of these rates and charges shall be in accordance with the Licence of the Distributor and any Code or Order of the Board, and amendments thereto as approved by the Board, which may be applicable to the administration of this schedule."]
["No rates and charges for the distribution of electricity and charges to meet the costs of any work or service done or furnished for the purpose of the distribution of electricity shall be made except as permitted by this schedule, unless required by the Distributor’s Licence or a Code or Order of the Board, and amendments thereto as approved by the Board, or as specified herein."]
["Unless specifically noted, this schedule does not contain any charges for the electricity commodity, be it under the Regulated Price Plan, a contract with a retailer or the wholesale market price, as applicable."]
["It should be noted that this schedule does not list any charges, assessments, or credits that are required by law to be invoiced by a distributor and that are not subject to Board approval, such as the Debt Retirement Charge, the Global Adjustment, the Ontario Clean Energy Benefit and the HST."]
[]
["MONTHLY RATES AND CHARGES - Delivery Component"]
[]
["Service Charge",null,"connection",5.6879]
["Distribution Volumetric Rate",null,"kW",15.599399999999999]
["Rate Rider for Deferral/Variance Account Disposition (2015) - effective until Dec 31, 2015",null,"kW",-9.4899999999999998E-2]
["Rate Rider for Global Adjustment Sub-Account Disposition (2015) - effective until Dec 31, 2015 (Applicable only for Non-RPP Customers)",null,"kW",0.43309999999999998]
["Rate Rider for Disposition of Group 2 Account 1575 - Transition to IFRS - effective until Dec 31, 2015",null,"kW",4.4699999999999997E-2]
["Low Voltage Service Rate",null,"kW",1.745E-2]
["Retail Transmission Rate – Network Service Rate",null,"kW",2.1637]
["Retail Transmission Rate – Line and Transformation Connection Service Rate",null,"kW",1.6186]
[]
[]
[]
[]
[]
[]
[]
[]
[]
[]
[]
[]
[]
[]
[]
[]
[]
[]
[]
[]
[]
[]
["MONTHLY RATES AND CHARGES - Regulatory Component"]
[]
["Wholesale Market Service Rate",null,"$/kWh",4.4000000000000003E-3]
["Rural Rate Protection Charge",null,"$/kWh",1.1999999999999999E-3]
["Standard Supply Service - Administrative Charge (if applicable)",null,"$",0.25]
["STREET LIGHTING SERVICE CLASSIFICATION"]
[]
["This classification applies to an account for roadway lighting with a Municipality, Regional Municipality, Ministry of Transportation and private roadway lighting, controlled by photo cells. The consumption for these "]
["APPLICATION"]
[]
["The application of these rates and charges shall be in accordance with the Licence of the Distributor and any Code or Order of the Board, and amendments thereto as approved by the Board, which may be applicable to the administration of this schedule."]
["No rates and charges for the distribution of electricity and charges to meet the costs of any work or service done or furnished for the purpose of the distribution of electricity shall be made except as permitted by this schedule, unless required by the Distributor’s Licence or a Code or Order of the Board, and amendments thereto as approved by the Board, or as specified herein."]
["Unless specifically noted, this schedule does not contain any charges for the electricity commodity, be it under the Regulated Price Plan, a contract with a retailer or the wholesale market price, as applicable."]
["It should be noted that this schedule does not list any charges, assessments, or credits that are required by law to be invoiced by a distributor and that are not subject to Board approval, such as the Debt Retirement Charge, the Global Adjustment, the Ontario Clean Energy Benefit and the HST."]
[]
["MONTHLY RATES AND CHARGES - Delivery Component"]
[]
["Service Charge",null,"Device",2.9746000000000001]
["Distribution Volumetric Rate",null,"kW",7.9158999999999997]
["Rate Rider for Deferral/Variance Account Disposition (2015) - effective until Dec 31, 2015",null,"kW",-0.76590000000000003]
["Rate Rider for Global Adjustment Sub-Account Disposition (2015) - effective until Dec 31, 2015 (Applicable only for Non-RPP Customers)",null,"kW",0.44340000000000002]
["Rate Rider for Disposition of Group 2 Account 1575 - Transition to IFRS - effective until Dec 31, 2015",null,"kW",4.58E-2]
["Low Voltage Service Rate",null,"kW",1.702E-2]
["Retail Transmission Rate – Network Service Rate",null,"kW",2.0497999999999998]
["Retail Transmission Rate – Line and Transformation Connection Service Rate",null,"kW",1.5782]
[]
[]
[]
[]
[]
[]
[]
[]
[]
[]
[]
[]
[]
[]
[]
[]
[]
[]
[]
[]
[]
[]
["MONTHLY RATES AND CHARGES - Regulatory Component"]
[]
["Wholesale Market Service Rate",null,"$/kWh",4.4000000000000003E-3]
["Rural Rate Protection Charge",null,"$/kWh",1.1999999999999999E-3]
["Standard Supply Service - Administrative Charge (if applicable)",null,"$",0.25]
["STANDBY POWER SERVICE CLASSIFICATION"]
[]
["This classification refers to an account that has Load Displacement Generation and requires the distributor to provide back-up service. Further servicing details are available in the distributor’s Conditions of Service."]
["APPLICATION"]
[]
["The application of these rates and charges shall be in accordance with the Licence of the Distributor and any Code or Order of the Board, and amendments thereto as approved by the Board, which may be applicable to the administration of this schedule."]
["No rates and charges for the distribution of electricity and charges to meet the costs of any work or service done or furnished for the purpose of the distribution of electricity shall be made except as permitted by this schedule, unless required by the Distributor’s Licence or a Code or Order of the Board, and amendments thereto as approved by the Board, or as specified herein."]
["Unless specifically noted, this schedule does not contain any charges for the electricity commodity, be it under the Regulated Price Plan, a contract with a retailer or the wholesale market price, as applicable."]
["It should be noted that this schedule does not list any charges, assessments, or credits that are required by law to be invoiced by a distributor and that are not subject to Board approval, such as the Debt Retirement Charge, the Global Adjustment, the Ontario Clean Energy Benefit and the HST."]
[]
["MONTHLY RATES AND CHARGES - Delivery Component"]
[]
["GS < 50 kW Standby Charge",null,"kW",2.5407000000000002]
["GS < 50 kW Rate Rider for Deferral/Variance Account Disposition (2015) - effective until Dec 31, 2015",null,"kW",7.7999999999999996E-3]
[null,null,"kW",{"$f":"D204","v":1.0523}]
[null,null,"kW",{"$f":"D252","v":0.1779}]
[]
[]
[]
[]
[]
[]
[]
[]
[]
[]
[]
[]
[]
[]
[]
[]
[]
[]
[]
[]
[]
[]
[]
[]
[]
[]
[]
["MONTHLY RATES AND CHARGES - Regulatory Component"]
[]
["Wholesale Market Service Rate"]
["Rural Rate Protection Charge"]
["Standard Supply Service - Administrative Charge (if applicable)"]
["microFIT SERVICE CLASSIFICATION"]
[]
["This classification applies to an electricity generation facility contracted under the Ontario Power Authority’s microFIT program and connected to the distributor’s distribution system. Further servicing details are available in the distributor’s Conditions of Service."]
["APPLICATION"]
[]
["The application of these rates and charges shall be in accordance with the Licence of the Distributor and any Code or Order of the Board, and amendments thereto as approved by the Board, which may be applicable to the administration of this schedule."]
["No rates and charges for the distribution of electricity and charges to meet the costs of any work or service done or furnished for the purpose of the distribution of electricity shall be made except as permitted by this schedule, unless required by the Distributor’s Licence or a Code or Order of the Board, and amendments thereto as approved by the Board, or as specified herein."]
["Unless specifically noted, this schedule does not contain any charges for the electricity commodity, be it under the Regulated Price Plan, a contract with a retailer or the wholesale market price, as applicable."]
["It should be noted that this schedule does not list any charges, assessments, or credits that are required by law to be invoiced by a distributor and that are not subject to Board approval, such as the Debt Retirement Charge, the Global Adjustment, the Ontario Clean Energy Benefit and the HST."]
[]
["MONTHLY RATES AND CHARGES - Delivery Component"]
[]
["microFIT",null,0,5.4]
[]
[]
[]
[]
[]
[]
[]
[]
[]
[]
[]
[]
[]
[]
[]
[]
[]
[]
[]
[]
[]
[]
[]
[]
[]
[]
[]
[]
[]
[]
["MONTHLY RATES AND CHARGES - Regulatory Component"]
[]
["Wholesale Market Service Rate"]
["Rural Rate Protection Charge"]
["Standard Supply Service - Administrative Charge (if applicable)"]
[]
["ALLOWANCES"]
[]
["Transformer Allowance for Ownership - per kW of billing demand/month"]
["Transformer Allowance Discount",null,"kW",-0.73]
[]
["Primary Metering Allowance for transformer losses – applied to measured demand and energy",null,"%",-1]
[]
["SPECIFIC SERVICE CHARGES"]
[]
["APPLICATION"]
[]
["The application of these rates and charges shall be in accordance with the Licence of the Distributor and any Code or Order of the Board, and amendments thereto as approved by the Board, which may be applicable to the administration of this schedule."]
[]
["No charges to meet the costs of any work or service done or furnished for the purpose of the distribution of electricity shall be made except as permitted by this schedule, unless required by the Distributor’s Licence or a Code or Order of the Board, and amendments thereto as approved by the Board, or as specified herein."]
[]
["It should be noted that this schedule does not list any charges, assessments or credits that are required by law to be invoiced by a distributor and that are not subject to Board approval, such as the Debt Retirement Charge, the Global Adjustment, the Ontario Clean Energy Benefit and the HST."]
[]
["Customer Administration"]
[]
["Arrears certificate",null,"$",15]
["Statement of Account",null,"$",15]
["Pulling Post Dated Cheques",null,"$",15]
["Duplicate Invoices for previous billing",null,"$",15]
["Request for other billing information",null,"$",15]
["Easement Letter",null,"$",15]
["Income Tax Letter",null,"$",15]
["Notification charge",null,"$",15]
["Account History",null,"$",15]
["Returned cheque charge (plus bank charges)",null,"$",15]
["Charge to certify cheque",null,"$",15]
["Legal letter charge",null,"$",15]
["Account set up charge/change of occupancy charge (plus credit agency costs if applicable)",null,"$",30]
["Special meter reads",null,"$",30]
["Meter dispute charge plus Measurement Canada fees (if meter found correct)",null,"$",30]
["Credit Card Convenience Charge",null,"$",15]
["Paymentus Service Fee",null,"$",5.95]
["Credit check (plus credit agency costs)",null,"$",15]
[]
[]
[]
[]
[]
[]
[]
[]
[]
[]
[]
[]
[]
[]
[]
[]
[]
[]
[]
["Non-Payment of Account"]
[]
["Late Payment – per month",null,"%",1.5]
["Late Payment – per annum",null,"%",19.559999999999999]
["Collection of account charge – no disconnection",null,"$",30]
["Collection of account charge – no disconnection – after regular hours",null,"$",165]
["Disconnect/Reconnect at meter – during regular hours",null,"$",65]
["Disconnect/Reconnect at meter – after regular hours",null,"$",185]
["Disconnect/Reconnect at pole – during regular hours",null,"$",185]
["Disconnect/Reconnect at pole – after regular hours",null,"$",415]
["Service call – customer owned equipment",null,"$",30]
["Service call – after regular hours",null,"$",165]
["Temporary Service – Install & remove – overhead – no transformer",null,"$",500]
["Temporary Service – Install & remove – underground – no transformer",null,"$",300]
["Temporary Service – Install & remove – overhead – with transformer",null,"$",1000]
["Specific Charge for Access to the Power Poles - $/pole/year",null,"$",22.35]
["Administrative Billing Charge",null,"$",150]
["Install/Remove load control device – during regular hours",null,"$",65]
["Install/Remove load control device – after regular hours",null,"$",185]
[]
[]
[]
[]
[]
[]
[]
[]
[]
[]
[]
[]
[]
[]
[]
[]
[]
[]
[]
[]
[]
[]
[]
[]
[]
[]
[]
[]
[]
[]
[]
[]
["RETAIL SERVICE CHARGES (if applicable)"]
[]
["The application of these rates and charges shall be in accordance with the Licence of the Distributor and any Code or Order of the Board, and amendments thereto as approved by the Board, which may be applicable to the administration of this schedule."]
[]
["No rates and charges for the distribution of electricity and charges to meet the costs of any work or service done or furnished for the purpose of the distribution of electricity shall be made except as permitted by this schedule, unless required by the Distributor’s Licence or a Code or Order of the Board, and amendments thereto as approved by the Board, or as specified herein."]
[]
["Unless specifically noted, this schedule does not contain any charges for the electricity commodity, be it under the Regulated Price Plan, a contract with a retailer or the wholesale market price, as applicable."]
[]
["It should be noted that this schedule does not list any charges, assessments or credits that are required by law to be invoiced by a distributor and that are not subject to Board approval, such as the Debt Retirement Charge, the Global Adjustment, the Ontario Clean Energy Benefit and the HST."]
[]
["Retail Service Charges refer to services provided by a distributor to retailers or customers related to the supply of competitive electricity."]
[]
["One-time charge, per retailer, to establish the service agreement between the distributor and the retailer",null,"$",100]
["Monthly Fixed Charge, per retailer",null,"$",20]
["Monthly Variable Charge, per customer, per retailer",null,"$/cust.",0.5]
["Distributor-consolidated billing monthly charge, per customer, per retailer",null,"$/cust.",0.3]
["Retailer-consolidated billing monthly credit, per customer, per retailer",null,"$/cust.",-0.3]
["Service Transaction Requests (STR) "]
["Request fee, per request, applied to the requesting party",null,"$",0.25]
["Processing fee, per request, applied to the requesting party",null,"$",0.5]
["Request for customer information as outlined in Section 10.6.3 and Chapter 11 of the Retail"]
["Settlement Code directly to retailers and customers, if not delivered electronically through the"]
["Electronic Business Transaction (EBT) system, applied to the requesting party "]
["Up to twice a year",null,"$","no charge"]
["More than twice a year, per request (plus incremental delivery costs)",null,"$",2]
[]
["LOSS FACTORS"]
[]
["If the distributor is not capable of prorating changed loss factors jointly with distribution rates, the revised loss factors will be implemented upon the first subsequent billing for each billing cycle."]
[]
[]
["Total Loss Factor – Secondary Metered Customer < 5,000 kW",null,null,1.0379481503018717]
["Total Loss Factor – Secondary Metered Customer > 5,000 kW",null,null,1.0160223290410131]
["Distribution Loss Factor - Primary Metered Customer < 5,000 kW",null,null,1.027568668798853]
["Distribution Loss Factor - Primary Metered Customer > 5,000 kW",null,null,1.0059627020208051]

{"sheet":"2016","index":1,"n_rows":666,"n_cols":4,"rows_kept":666,"cut":false,"hidden":false,"merged":[[662,0,662,1],[663,0,663,1],[664,0,664,1],[665,0,665,1],[666,0,666,1],[667,0,667,1],[652,0,652,1],[653,0,653,1],[654,0,654,1],[655,0,655,1],[659,0,659,3],[659,4,659,7],[646,0,646,1],[647,0,647,1],[648,0,648,1],[649,0,649,1],[650,0,650,1],[651,0,651,1],[641,0,641,3],[641,4,641,7],[643,0,643,1],[643,4,643,5],[644,0,644,1],[645,0,645,1],[638,0,638,3],[638,4,638,7],[639,0,639,3],[639,4,639,7],[640,0,640,3],[640,4,640,7],[635,0,635,3],[635,4,635,7],[636,0,636,3],[636,4,636,7],[637,0,637,3],[637,4,637,7],[627,0,627,1],[628,0,628,1],[629,0,629,1],[633,0,633,3],[633,4,633,7],[634,0,634,3],[634,4,634,7],[621,0,621,1],[622,0,622,1],[623,0,623,1],[624,0,624,1],[625,0,625,1],[626,0,626,1],[615,0,615,1],[616,0,616,1],[617,0,617,1],[618,0,618,1],[619,0,619,1],[620,0,620,1],[609,0,609,1],[610,0,610,1],[611,0,611,1],[612,0,612,1],[613,0,613,1],[614,0,614,1],[601,0,601,1],[602,0,602,1],[603,0,603,1],[604,0,604,1],[605,0,605,1],[606,0,606,1],[595,0,595,1],[596,0,596,1],[597,0,597,1],[598,0,598,1],[599,0,599,1],[600,0,600,1],[589,0,589,1],[590,0,590,1],[591,0,591,1],[592,0,592,1],[593,0,593,1],[594,0,594,1],[583,0,583,1],[584,0,584,1],[585,0,585,1],[586,0,586,1],[587,0,587,1],[588,0,588,1],[574,0,574,1],[575,0,575,1],[576,0,576,1],[577,0,577,1],[578,0,578,1],[582,0,582,1],[568,0,568,1],[569,0,569,1],[570,0,570,1],[571,0,571,1],[572,0,572,1],[573,0,573,1],[562,0,562,1],[563,0,563,1],[564,0,564,1],[565,0,565,1],[566,0,566,1],[567,0,567,1],[556,0,556,1],[557,0,557,1],[558,0,558,1],[559,0,559,1],[560,0,560,1],[561,0,561,1],[550,0,550,1],[551,0,551,1],[552,0,552,1],[553,0,553,1],[554,0,554,1],[555,0,555,1],[544,0,544,1],[545,0,545,1],[546,0,546,1],[547,0,547,1],[548,0,548,1],[549,0,549,1],[529,0,529,1],[530,0,530,1],[536,0,536,3],[538,0,538,3],[538,4,538,7],[540,0,540,3],[540,4,540,7],[517,0,517,1],[521,0,521,1],[522,0,522,1],[523,0,523,1],[527,0,527,1],[528,0,528,1],[511,0,511,1],[512,0,512,1],[513,0,513,1],[514,0,514,1],[515,0,515,1],[516,0,516,1],[505,0,505,1],[506,0,506,1],[507,0,507,1],[508,0,508,1],[509,0,509,1],[510,0,510,1],[499,0,499,1],[500,0,500,1],[501,0,501,1],[502,0,502,1],[503,0,503,1],[504,0,504,1],[493,0,493,1],[494,0,494,1],[495,0,495,1],[496,0,496,1],[497,0,497,1],[498,0,498,1],[484,0,484,3],[488,0,488,1],[489,0,489,1],[490,0,490,1],[491,0,491,1],[492,0,492,1],[475,0,475,1],[476,0,476,3],[478,0,478,3],[481,0,481,3],[482,0,482,3],[483,0,483,3],[466,0,466,1],[467,0,467,1],[468,0,468,1],[469,0,469,1],[473,0,473,1],[474,0,474,1],[460,0,460,1],[461,0,461,1],[462,0,462,1],[463,0,463,1],[464,0,464,1],[465,0,465,1],[454,0,454,1],[455,0,455,1],[456,0,456,1],[457,0,457,1],[458,0,458,1],[459,0,459,1],[448,0,448,1],[449,0,449,1],[450,0,450,1],[451,0,451,1],[452,0,452,1],[453,0,453,1],[442,0,442,1],[443,0,443,1],[444,0,444,1],[445,0,445,1],[446,0,446,1],[447,0,447,1],[433,0,433,3],[434,0,434,3],[435,0,435,3],[436,0,436,3],[440,0,440,1],[441,0,441,1],[421,0,421,1],[425,0,425,1],[426,0,426,1],[427,0,427,1],[428,0,428,3],[430,0,430,3],[415,0,415,1],[416,0,416,1],[417,0,417,1],[418,0,418,1],[419,0,419,1],[420,0,420,1],[409,0,409,1],[410,0,410,1],[411,0,411,1],[412,0,412,1],[413,0,413,1],[414,0,414,1],[403,0,403,1],[404,0,404,1],[405,0,405,1],[406,0,406,1],[407,0,407,1],[408,0,408,1],[397,0,397,1],[398,0,398,1],[399,0,399,1],[400,0,400,1],[401,0,401,1],[402,0,402,1],[388,0,388,3],[392,0,392,1],[393,0,393,1],[394,0,394,1],[395,0,395,1],[396,0,396,1],[379,0,379,1],[380,0,380,3],[382,0,382,3],[385,0,385,3],[386,0,386,3],[387,0,387,3],[370,0,370,1],[371,0,371,1],[372,0,372,1],[373,0,373,1],[377,0,377,1],[378,0,378,1],[364,0,364,1],[365,0,365,1],[366,0,366,1],[367,0,367,1],[368,0,368,1],[369,0,369,1],[358,0,358,1],[359,0,359,1],[360,0,360,1],[361,0,361,1],[362,0,362,1],[363,0,363,1],[352,0,352,1],[353,0,353,1],[354,0,354,1],[355,0,355,1],[356,0,356,1],[357,0,357,1],[346,0,346,1],[347,0,347,1],[348,0,348,1],[349,0,349,1],[350,0,350,1],[351,0,351,1],[337,0,337,3],[338,0,338,3],[339,0,339,3],[340,0,340,3],[344,0,344,1],[345,0,345,1],[325,0,325,1],[329,0,329,1],[330,0,330,1],[331,0,331,1],[332,0,332,3],[334,0,334,3],[319,0,319,1],[320,0,320,1],[321,0,321,1],[322,0,322,1],[323,0,323,1],[324,0,324,1],[313,0,313,1],[314,0,314,1],[315,0,315,1],[316,0,316,1],[317,0,317,1],[318,0,318,1],[307,0,307,1],[308,0,308,1],[309,0,309,1],[310,0,310,1],[311,0,311,1],[312,0,312,1],[301,0,301,1],[302,0,302,1],[303,0,303,1],[304,0,304,1],[305,0,305,1],[306,0,306,1],[292,0,292,3],[296,0,296,1],[297,0,297,1],[298,0,298,1],[299,0,299,1],[300,0,300,1],[283,0,283,1],[284,0,284,3],[286,0,286,3],[289,0,289,3],[290,0,290,3],[291,0,291,3],[274,0,274,1],[275,0,275,1],[276,0,276,1],[277,0,277,1],[281,0,281,1],[282,0,282,1],[268,0,268,1],[269,0,269,1],[270,0,270,1],[271,0,271,1],[272,0,272,1],[273,0,273,1],[262,0,262,1],[263,0,263,1],[264,0,264,1],[265,0,265,1],[266,0,266,1],[267,0,267,1],[256,0,256,1],[257,0,257,1],[258,0,258,1],[259,0,259,1],[260,0,260,1],[261,0,261,1],[250,0,250,1],[251,0,251,1],[252,0,252,1],[253,0,253,1],[254,0,254,1],[255,0,255,1],[241,0,241,3],[242,0,242,3],[243,0,243,3],[244,0,244,3],[248,0,248,1],[249,0,249,1],[229,0,229,1],[233,0,233,1],[234,0,234,1],[235,0,235,1],[236,0,236,3],[238,0,238,3],[223,0,223,1],[224,0,224,1],[225,0,225,1],[226,0,226,1],[227,0,227,1],[228,0,228,1],[217,0,217,1],[218,0,218,1],[219,0,219,1],[220,0,220,1],[221,0,221,1],[222,0,222,1],[211,0,211,1],[212,0,212,1],[213,0,213,1],[214,0,214,1],[215,0,215,1],[216,0,216,1],[205,0,205,1],[206,0,206,1],[207,0,207,1],[208,0,208,1],[209,0,209,1],[210,0,210,1],[196,0,196,3],[200,0,200,1],[201,0,201,1],[202,0,202,1],[203,0,203,1],[204,0,204,1],[187,0,187,1],[188,0,188,3],[190,0,190,3],[193,0,193,3],[194,0,194,3],[195,0,195,3],[178,0,178,1],[179,0,179,1],[180,0,180,1],[181,0,181,1],[185,0,185,1],[186,0,186,1],[172,0,172,1],[173,0,173,1],[174,0,174,1],[175,0,175,1],[176,0,176,1],[177,0,177,1],[166,0,166,1],[167,0,167,1],[168,0,168,1],[169,0,169,1],[170,0,170,1],[171,0,171,1],[160,0,160,1],[161,0,161,1],[162,0,162,1],[163,0,163,1],[164,0,164,1],[165,0,165,1],[154,0,154,1],[155,0,155,1],[156,0,156,1],[157,0,157,1],[158,0,158,1],[159,0,159,1],[145,0,145,3],[146,0,146,3],[147,0,147,3],[148,0,148,3],[152,0,152,1],[153,0,153,1],[133,0,133,1],[137,0,137,1],[138,0,138,1],[139,0,139,1],[140,0,140,3],[142,0,142,3],[127,0,127,1],[128,0,128,1],[129,0,129,1],[130,0,130,1],[131,0,131,1],[132,0,132,1],[121,0,121,1],[122,0,122,1],[123,0,123,1],[124,0,124,1],[125,0,125,1],[126,0,126,1],[115,0,115,1],[116,0,116,1],[117,0,117,1],[118,0,118,1],[119,0,119,1],[120,0,120,1],[109,0,109,1],[110,0,110,1],[111,0,111,1],[112,0,112,1],[113,0,113,1],[114,0,114,1],[100,0,100,3],[104,0,104,1],[105,0,105,1],[106,0,106,1],[107,0,107,1],[108,0,108,1],[91,0,91,1],[92,0,92,3],[94,0,94,3],[97,0,97,3],[98,0,98,3],[99,0,99,3],[82,0,82,1],[83,0,83,1],[84,0,84,1],[85,0,85,1],[89,0,89,1],[90,0,90,1],[76,0,76,1],[77,0,77,1],[78,0,78,1],[79,0,79,1],[80,0,80,1],[81,0,81,1],[70,0,70,1],[71,0,71,1],[72,0,72,1],[73,0,73,1],[74,0,74,1],[75,0,75,1],[64,0,64,1],[65,0,65,1],[66,0,66,1],[67,0,67,1],[68,0,68,1],[69,0,69,1],[58,0,58,1],[59,0,59,1],[60,0,60,1],[61,0,61,1],[62,0,62,1],[63,0,63,1],[49,0,49,3],[50,0,50,3],[51,0,51,3],[52,0,52,3],[56,0,56,1],[57,0,57,1],[38,0,38,3],[40,0,40,3],[41,0,41,3],[42,0,42,3],[44,0,44,3],[46,0,46,3],[24,0,24,3],[25,0,25,3],[26,0,26,3],[27,0,27,3],[36,0,36,3],[37,0,37,3],[21,0,21,3],[22,0,22,3],[23,0,23,3],[7,0,7,3],[9,0,9,3],[10,0,10,3],[12,0,12,1],[14,0,14,3],[17,0,17,3],[0,2,0,3],[1,2,1,3],[2,2,2,3],[3,2,3,3],[4,2,4,3],[6,2,6,3],[18,0,18,3],[19,0,19,3],[20,0,20,3]]}
[null,"File Number:","EB-2014-0002"]
[null,"Exhibit:"]
[null,"Tab:"]
[null,"Schedule:"]
[null,"Page:"]
[]
[null,"Date:"]
["Appendix 2-Z\nTariff of Rates and Charges"]
[]
["For each class, Applicants are required to copy and paste the class descriptions (located directly under the class name) and the description of the applicability of those rates (description is found under the class name and directly under the word \"APPLICATION\").  By using the drop-down lists located under the column labeled \"Rate Description\", please select the descriptions of the rates and charges that BEST MATCHES the descriptions on your most recent Board-Approved Tariff of Rates and Charges.  If the description is not found in the drop-down list, please enter the description in the green shaded cells under the correct class exactly as it appears on the tariff.   Please do not enter more than one \"Service Charge\" for each class for which a base monthly fixed charge applies.  All rate rider descriptions should begin with \"Rate Rider for...\"."]
["Select the appropriate rate classes as they appear on your most recent Board-Approved Tariff of Rates and Charges, including the MicroFit Class."]
[]
["How many classes are listed on your most recent Board-Approved Tariff of Rates and Charges?",null,10]
[]
["Select Your Rate Classes from the Blue Cells below.  \nPlease ensure that a rate class is assigned to each shaded cell."]
[]
[]
["Rate Class Classification"]
["RESIDENTIAL"]
["GENERAL SERVICE LESS THAN 50 KW"]
["GENERAL SERVICE 50 TO 4,999 KW"]
["LARGE USE"]
["LARGE USE (2)"]
["UNMETERED SCATTERED LOAD"]
["SENTINEL LIGHTING"]
["STREET LIGHTING"]
["STANDBY POWER"]
["microFIT"]
[]
[]
[]
[]
[]
[]
["Once all blue shaded cells above are filled out, press the following button to create your tariff template"]
[]
["Horizon Utilities"]
["TARIFF OF RATES AND CHARGES"]
[{"$f":"\"Effective and Implementation Date January 1, 2016\"","v":"Effective and Implementation Date January 1, 2016"}]
[]
["This schedule supersedes and replaces all previously"]
["approved schedules of Rates, Charges and Loss Factors"]
[{"$f":"C1","v":"EB-2014-0002"}]
[]
["RESIDENTIAL SERVICE CLASSIFICATION"]
[]
["This classification applies to an account taking electricity at 750 volts or less where the electricity is used exclusively in a separate metered living accommodation. Customers shall be residing in single-dwelling units that consist of a detached house or one unit of a semi-detached, duplex, triplex or quadruplex house, with a residential zoning. Separately metered dwellings within a town house complex or apartment building also qualify as residential customers. All customers are single-phase. Further servicing details are available in the distributor’s Conditions of Service."]
["APPLICATION"]
[]
["The application of these rates and charges shall be in accordance with the Licence of the Distributor and any Code or Order of the Board, and amendments thereto as approved by the Board, which may be applicable to the administration of this schedule."]
["No rates and charges for the distribution of electricity and charges to meet the costs of any work or service done or furnished for the purpose of the distribution of electricity shall be made except as permitted by this schedule, unless required by the Distributor’s Licence or a Code or Order of the Board, and amendments thereto as approved by the Board, or as specified herein."]
["Unless specifically noted, this schedule does not contain any charges for the electricity commodity, be it under the Regulated Price Plan, a contract with a retailer or the wholesale market price, as applicable."]
["It should be noted that this schedule does not list any charges, assessments, or credits that are required by law to be invoiced by a distributor and that are not subject to Board approval, such as the Debt Retirement Charge, the Global Adjustment, the Ontario Clean Energy Benefit and the HST."]
[]
["MONTHLY RATES AND CHARGES - Delivery Component"]
[]
["Service Charge",null,"customer",17.13]
["Smart Meter Entity Charge (effective from May 1, 2013 until Oct 31, 2018)",null,"customer",0.79]
["Distribution Volumetric Rate",null,"kWh",1.6799999999999999E-2]
[]
[]
[]
[]
["Low Voltage Service Rate",null,"kWh",6.0000000000000002E-5]
["Retail Transmission Rate – Network Service Rate",null,"kWh",7.7999999999999996E-3]
["Retail Transmission Rate – Line and Transformation Connection Service Rate",null,"kWh",5.7000000000000002E-3]
[]
[]
[]
[]
[]
[]
[]
[]
[]
[]
[]
[]
[]
[]
[]
[]
[]
[]
[]
[]
[]
["MONTHLY RATES AND CHARGES - Regulatory Component"]
[]
["Wholesale Market Service Rate",null,"$/kWh",4.4000000000000003E-3]
["Rural Rate Protection Charge",null,"$/kWh",1.2999999999999999E-3]
["Standard Supply Service - Administrative Charge (if applicable)",null,"$",0.25]
["GENERAL SERVICE LESS THAN 50 KW SERVICE CLASSIFICATION"]
[]
["This classification applies to a non residential account taking electricity at 750 volts or less whose average monthly maximum demand is less than, or is forecast to be less than, 50 kW. Further servicing details are available in the distributor’s Conditions of Service."]
["APPLICATION"]
[]
["The application of these rates and charges shall be in accordance with the Licence of the Distributor and any Code or Order of the Board, and amendments thereto as approved by the Board, which may be applicable to the administration of this schedule."]
["No rates and charges for the distribution of electricity and charges to meet the costs of any work or service done or furnished for the purpose of the distribution of electricity shall be made except as permitted by this schedule, unless required by the Distributor’s Licence or a Code or Order of the Board, and amendments thereto as approved by the Board, or as specified herein."]
["Unless specifically noted, this schedule does not contain any charges for the electricity commodity, be it under the Regulated Price Plan, a contract with a retailer or the wholesale market price, as applicable."]
["It should be noted that this schedule does not list any charges, assessments, or credits that are required by law to be invoiced by a distributor and that are not subject to Board approval, such as the Debt Retirement Charge, the Global Adjustment, the Ontario Clean Energy Benefit and the HST."]
[]
["MONTHLY RATES AND CHARGES - Delivery Component"]
[]
["Service Charge",null,"customer",43.26]
["Smart Meter Entity Charge (effective from May 1, 2013 until Oct 31, 2018)",null,"customer",0.78800000000000003]
["Distribution Volumetric Rate",null,"kWh",1.12E-2]
[]
[]
[]
[]
["Low Voltage Service Rate",null,"kWh",6.0000000000000002E-5]
["Retail Transmission Rate – Network Service Rate",null,"kWh",6.7000000000000002E-3]
["Retail Transmission Rate – Line and Transformation Connection Service Rate",null,"kWh",5.1999999999999998E-3]
[]
[]
[]
[]
[]
[]
[]
[]
[]
[]
[]
[]
[]
[]
[]
[]
[]
[]
[]
[]
[]
["MONTHLY RATES AND CHARGES - Regulatory Component"]
[]
["Wholesale Market Service Rate",null,"kWh",4.4000000000000003E-3]
["Rural Rate Protection Charge",null,"kWh",1.2999999999999999E-3]
["Standard Supply Service - Administrative Charge (if applicable)",null,"$",0.25]
["GENERAL SERVICE 50 TO 4,999 KW SERVICE CLASSIFICATION"]
[]
["This classification applies to a non residential account whose average monthly maximum demand used for billing purposes is equal to or greater than, or is forecast to be equal to or greater than, 50 kW but less than 5,000 kW. Further servicing details are available in the distributor’s Conditions of Service."]
["APPLICATION"]
[]
["The application of these rates and charges shall be in accordance with the Licence of the Distributor and any Code or Order of the Board, and amendments thereto as approved by the Board, which may be applicable to the administration of this schedule."]
["No rates and charges for the distribution of electricity and charges to meet the costs of any work or service done or furnished for the purpose of the distribution of electricity shall be made except as permitted by this schedule, unless required by the Distributor’s Licence or a Code or Order of the Board, and amendments thereto as approved by the Board, or as specified herein."]
["Unless specifically noted, this schedule does not contain any charges for the electricity commodity, be it under the Regulated Price Plan, a contract with a retailer or the wholesale market price, as applicable."]
["It should be noted that this schedule does not list any charges, assessments, or credits that are required by law to be invoiced by a distributor and that are not subject to Board approval, such as the Debt Retirement Charge, the Global Adjustment, the Ontario Clean Energy Benefit and the HST."]
[]
["MONTHLY RATES AND CHARGES - Delivery Component"]
[]
["Service Charge",null,"customer",394.61]
["Distribution Volumetric Rate",null,"kW",2.6459999999999999]
[]
[]
[]
[]
["Low Voltage Service Rate",null,"kW",2.1690000000000001E-2]
["Retail Transmission Rate – Network Service Rate",null,"kW",2.6913]
["Retail Transmission Rate – Line and Transformation Connection Service Rate",null,"kW",2.0527000000000002]
[]
[]
[]
[]
[]
[]
[]
[]
[]
[]
[]
[]
[]
[]
[]
[]
[]
[]
[]
[]
[]
[]
["MONTHLY RATES AND CHARGES - Regulatory Component"]
[]
["Wholesale Market Service Rate",null,"kWh",4.4000000000000003E-3]
["Rural Rate Protection Charge",null,"kWh",1.2999999999999999E-3]
["Standard Supply Service - Administrative Charge (if applicable)",null,"$",0.25]
["LARGE USE SERVICE CLASSIFICATION"]
[]
["This classification applies to an account whose average monthly maximum demand used for billing purposes is equal to or greater than, or is forecast to be equal to or greater than, 5,000 kW. Further servicing details are available in the distributor’s Conditions of Service."]
["APPLICATION"]
[]
["The application of these rates and charges shall be in accordance with the Licence of the Distributor and any Code or Order of the Board, and amendments thereto as approved by the Board, which may be applicable to the administration of this schedule."]
["No rates and charges for the distribution of electricity and charges to meet the costs of any work or service done or furnished for the purpose of the distribution of electricity shall be made except as permitted by this schedule, unless required by the Distributor’s Licence or a Code or Order of the Board, and amendments thereto as approved by the Board, or as specified herein."]
["Unless specifically noted, this schedule does not contain any charges for the electricity commodity, be it under the Regulated Price Plan, a contract with a retailer or the wholesale market price, as applicable."]
["It should be noted that this schedule does not list any charges, assessments, or credits that are required by law to be invoiced by a distributor and that are not subject to Board approval, such as the Debt Retirement Charge, the Global Adjustment, the Ontario Clean Energy Benefit and the HST."]
[]
["MONTHLY RATES AND CHARGES - Delivery Component"]
[]
["Service Charge",null,"customer",18655.46]
["Distribution Volumetric Rate",null,"kW",1.1007]
[]
[]
[]
[]
["Low Voltage Service Rate",null,"kW",2.4920000000000001E-2]
["Retail Transmission Rate – Network Service Rate",null,"kW",3.0743999999999998]
["Retail Transmission Rate – Line and Transformation Connection Service Rate",null,"kW",2.3588]
[]
[]
[]
[]
[]
[]
[]
[]
[]
[]
[]
[]
[]
[]
[]
[]
[]
[]
[]
[]
[]
[]
["MONTHLY RATES AND CHARGES - Regulatory Component"]
[]
["Wholesale Market Service Rate",null,"kWh",4.4000000000000003E-3]
["Rural Rate Protection Charge",null,"kWh",1.2999999999999999E-3]
["Standard Supply Service - Administrative Charge (if applicable)",null,"$",0.25]
["LARGE USE (2) SERVICE CLASSIFICATION"]
[]
["This classification applies to an account whose average monthly maximum demand used for billing purposes is equal to or greater than, or is forecast to be equal to or greater than, 15,000 kW and it is served with dedicated assets . Further servicing details are available in the distributor’s Conditions of Service."]
["APPLICATION"]
[]
["The application of these rates and charges shall be in accordance with the Licence of the Distributor and any Code or Order of the Board, and amendments thereto as approved by the Board, which may be applicable to the administration of this schedule."]
["No rates and charges for the distribution of electricity and charges to meet the costs of any work or service done or furnished for the purpose of the distribution of electricity shall be made except as permitted by this schedule, unless required by the Distributor’s Licence or a Code or Order of the Board, and amendments thereto as approved by the Board, or as specified herein."]
["Unless specifically noted, this schedule does not contain any charges for the electricity commodity, be it under the Regulated Price Plan, a contract with a retailer or the wholesale market price, as applicable."]
["It should be noted that this schedule does not list any charges, assessments, or credits that are required by law to be invoiced by a distributor and that are not subject to Board approval, such as the Debt Retirement Charge, the Global Adjustment, the Ontario Clean Energy Benefit and the HST."]
[]
["MONTHLY RATES AND CHARGES - Delivery Component"]
[]
["Service Charge",null,"customer",3598.73]
["Distribution Volumetric Rate",null,"kW",0.21229999999999999]
[]
[]
[]
[]
["Low Voltage Service Rate",null,"kW",2.4920000000000001E-2]
["Retail Transmission Rate – Network Service Rate",null,"kW",3.0743999999999998]
["Retail Transmission Rate – Line and Transformation Connection Service Rate",null,"kW",2.3588]
[]
[]
[]
[]
[]
[]
[]
[]
[]
[]
[]
[]
[]
[]
[]
[]
[]
[]
[]
[]
[]
[]
["MONTHLY RATES AND CHARGES - Regulatory Component"]
[]
["Wholesale Market Service Rate",null,"$/kWh",4.4000000000000003E-3]
["Rural Rate Protection Charge",null,"$/kWh",1.2999999999999999E-3]
["Standard Supply Service - Administrative Charge (if applicable)",null,"$",0.25]
["UNMETERED SCATTERED LOAD SERVICE CLASSIFICATION"]
[]
["This classification applies to an account taking electricity at 750 volts or less whose average monthly maximum demand is less than, or is forecast to be less than, 50 kW and the consumption is unmetered. Such connections include cable TV power packs, bus shelters, telephone booths, traffic lights, railway crossings, etc. The level of the consumption will be agreed to by the distributor and the customer, based on detailed manufacturer information/ documentation with regard to electrical consumption of the unmetered load or periodic monitoring of actual consumption. Further servicing details are available in the distributor’s Conditions of Service."]
["APPLICATION"]
[]
["The application of these rates and charges shall be in accordance with the Licence of the Distributor and any Code or Order of the Board, and amendments thereto as approved by the Board, which may be applicable to the administration of this schedule."]
["No rates and charges for the distribution of electricity and charges to meet the costs of any work or service done or furnished for the purpose of the distribution of electricity shall be made except as permitted by this schedule, unless required by the Distributor’s Licence or a Code or Order of the Board, and amendments thereto as approved by the Board, or as specified herein."]
["Unless specifically noted, this schedule does not contain any charges for the electricity commodity, be it under the Regulated Price Plan, a contract with a retailer or the wholesale market price, as applicable."]
["It should be noted that this schedule does not list any charges, assessments, or credits that are required by law to be invoiced by a distributor and that are not subject to Board approval, such as the Debt Retirement Charge, the Global Adjustment, the Ontario Clean Energy Benefit and the HST."]
[]
["MONTHLY RATES AND CHARGES - Delivery Component"]
[]
["Service Charge",null,"connection",9.7304999999999993]
["Distribution Volumetric Rate",null,"kWh",1.5100000000000001E-2]
[]
[]
[]
[]
["Low Voltage Service Rate",null,"kWh",6.0000000000000002E-5]
["Retail Transmission Rate – Network Service Rate",null,"kWh",6.7999999999999996E-3]
["Retail Transmission Rate – Line and Transformation Connection Service Rate",null,"kWh",5.3E-3]
[]
[]
[]
[]
[]
[]
[]
[]
[]
[]
[]
[]
[]
[]
[]
[]
[]
[]
[]
[]
[]
[]
["MONTHLY RATES AND CHARGES - Regulatory Component"]
[]
["Wholesale Market Service Rate",null,"$/kWh",4.4000000000000003E-3]
["Rural Rate Protection Charge",null,"$/kWh",1.2999999999999999E-3]
["Standard Supply Service - Administrative Charge (if applicable)",null,"$",0.25]
["SENTINEL LIGHTING SERVICE CLASSIFICATION"]
[]
["This classification applies to safety/security lighting with a Residential, General Service or Large Use customer. This is typically exterior lighting, and often unmetered. Consumption is estimated based on the equipment rating and estimated hours of use. Further servicing details are available in the distributor’s Conditions of Service."]
["APPLICATION"]
[]
["The application of these rates and charges shall be in accordance with the Licence of the Distributor and any Code or Order of the Board, and amendments thereto as approved by the Board, which may be applicable to the administration of this schedule."]
["No rates and charges for the distribution of electricity and charges to meet the costs of any work or service done or furnished for the purpose of the distribution of electricity shall be made except as permitted by this schedule, unless required by the Distributor’s Licence or a Code or Order of the Board, and amendments thereto as approved by the Board, or as specified herein."]
["Unless specifically noted, this schedule does not contain any charges for the electricity commodity, be it under the Regulated Price Plan, a contract with a retailer or the wholesale market price, as applicable."]
["It should be noted that this schedule does not list any charges, assessments, or credits that are required by law to be invoiced by a distributor and that are not subject to Board approval, such as the Debt Retirement Charge, the Global Adjustment, the Ontario Clean Energy Benefit and the HST."]
[]
["MONTHLY RATES AND CHARGES - Delivery Component"]
[]
["Service Charge",null,"connection",5.9539]
["Distribution Volumetric Rate",null,"kW",16.328900000000001]
[]
[]
[]
[]
["Low Voltage Service Rate",null,"kW",1.745E-2]
["Retail Transmission Rate – Network Service Rate",null,"kW",2.2364000000000002]
["Retail Transmission Rate – Line and Transformation Connection Service Rate",null,"kW",1.6516999999999999]
[]
[]
[]
[]
[]
[]
[]
[]
[]
[]
[]
[]
[]
[]
[]
[]
[]
[]
[]
[]
[]
[]
["MONTHLY RATES AND CHARGES - Regulatory Component"]
[]
["Wholesale Market Service Rate",null,"$/kWh",4.4000000000000003E-3]
["Rural Rate Protection Charge",null,"$/kWh",1.2999999999999999E-3]
["Standard Supply Service - Administrative Charge (if applicable)",null,"$",0.25]
["STREET LIGHTING SERVICE CLASSIFICATION"]
[]
["This classification applies to an account for roadway lighting with a Municipality, Regional Municipality, Ministry of Transportation and private roadway lighting, controlled by photo cells. The consumption for these "]
["APPLICATION"]
[]
["The application of these rates and charges shall be in accordance with the Licence of the Distributor and any Code or Order of the Board, and amendments thereto as approved by the Board, which may be applicable to the administration of this schedule."]
["No rates and charges for the distribution of electricity and charges to meet the costs of any work or service done or furnished for the purpose of the distribution of electricity shall be made except as permitted by this schedule, unless required by the Distributor’s Licence or a Code or Order of the Board, and amendments thereto as approved by the Board, or as specified herein."]
["Unless specifically noted, this schedule does not contain any charges for the electricity commodity, be it under the Regulated Price Plan, a contract with a retailer or the wholesale market price, as applicable."]
["It should be noted that this schedule does not list any charges, assessments, or credits that are required by law to be invoiced by a distributor and that are not subject to Board approval, such as the Debt Retirement Charge, the Global Adjustment, the Ontario Clean Energy Benefit and the HST."]
[]
["MONTHLY RATES AND CHARGES - Delivery Component"]
[]
["Service Charge",null,"device",3.1137000000000001]
["Distribution Volumetric Rate",null,"kW",8.2860999999999994]
[]
[]
[]
[]
["Low Voltage Service Rate",null,"kW",1.702E-2]
["Retail Transmission Rate – Network Service Rate",null,"kW",2.1187]
["Retail Transmission Rate – Line and Transformation Connection Service Rate",null,"kW",1.6104000000000001]
[]
[]
[]
[]
[]
[]
[]
[]
[]
[]
[]
[]
[]
[]
[]
[]
[]
[]
[]
[]
[]
[]
["MONTHLY RATES AND CHARGES - Regulatory Component"]
[]
["Wholesale Market Service Rate",null,"$/kWh",4.4000000000000003E-3]
["Rural Rate Protection Charge",null,"$/kWh",1.2999999999999999E-3]
["Standard Supply Service - Administrative Charge (if applicable)",null,"$",0.25]
["STANDBY POWER SERVICE CLASSIFICATION"]
[]
["This classification refers to an account that has Load Displacement Generation and requires the distributor to provide back-up service. Further servicing details are available in the distributor’s Conditions of Service."]
["APPLICATION"]
[]
["The application of these rates and charges shall be in accordance with the Licence of the Distributor and any Code or Order of the Board, and amendments thereto as approved by the Board, which may be applicable to the administration of this schedule."]
["No rates and charges for the distribution of electricity and charges to meet the costs of any work or service done or furnished for the purpose of the distribution of electricity shall be made except as permitted by this schedule, unless required by the Distributor’s Licence or a Code or Order of the Board, and amendments thereto as approved by the Board, or as specified herein."]
["Unless specifically noted, this schedule does not contain any charges for the electricity commodity, be it under the Regulated Price Plan, a contract with a retailer or the wholesale market price, as applicable."]
["It should be noted that this schedule does not list any charges, assessments, or credits that are required by law to be invoiced by a distributor and that are not subject to Board approval, such as the Debt Retirement Charge, the Global Adjustment, the Ontario Clean Energy Benefit and the HST."]
[]
["MONTHLY RATES AND CHARGES - Delivery Component"]
[]
["GS < 50 kW Standby Charge",null,"kW",2.6456]
["Large Use (1) Standby Charge",null,"kW",{"$f":"D202","v":1.1007}]
["Large Use (2) Standby Charge",null,"kW",{"$f":"D250","v":0.21229999999999999}]
[]
[]
[]
[]
[]
[]
[]
[]
[]
[]
[]
[]
[]
[]
[]
[]
[]
[]
[]
[]
[]
[]
[]
[]
[]
[]
[]
[]
["MONTHLY RATES AND CHARGES - Regulatory Component"]
[]
["Wholesale Market Service Rate"]
["Rural Rate Protection Charge"]
["Standard Supply Service - Administrative Charge (if applicable)"]
["microFIT SERVICE CLASSIFICATION"]
[]
["This classification applies to an electricity generation facility contracted under the Ontario Power Authority’s microFIT program and connected to the distributor’s distribution system. Further servicing details are available in the distributor’s Conditions of Service."]
["APPLICATION"]
[]
["The application of these rates and charges shall be in accordance with the Licence of the Distributor and any Code or Order of the Board, and amendments thereto as approved by the Board, which may be applicable to the administration of this schedule."]
["No rates and charges for the distribution of electricity and charges to meet the costs of any work or service done or furnished for the purpose of the distribution of electricity shall be made except as permitted by this schedule, unless required by the Distributor’s Licence or a Code or Order of the Board, and amendments thereto as approved by the Board, or as specified herein."]
["Unless specifically noted, this schedule does not contain any charges for the electricity commodity, be it under the Regulated Price Plan, a contract with a retailer or the wholesale market price, as applicable."]
["It should be noted that this schedule does not list any charges, assessments, or credits that are required by law to be invoiced by a distributor and that are not subject to Board approval, such as the Debt Retirement Charge, the Global Adjustment, the Ontario Clean Energy Benefit and the HST."]
[]
["MONTHLY RATES AND CHARGES - Delivery Component"]
[]
["microFIT",null,0,5.4]
[]
[]
[]
[]
[]
[]
[]
[]
[]
[]
[]
[]
[]
[]
[]
[]
[]
[]
[]
[]
[]
[]
[]
[]
[]
[]
[]
[]
[]
[]
["MONTHLY RATES AND CHARGES - Regulatory Component"]
[]
["Wholesale Market Service Rate"]
["Rural Rate Protection Charge"]
["Standard Supply Service - Administrative Charge (if applicable)"]
[]
["ALLOWANCES"]
[]
["Transformer Allowance for Ownership - per kW of billing demand/month"]
["Transformer Allowance Discount",null,"kW",-0.73]
[]
["Primary Metering Allowance for transformer losses – applied to measured demand and energy",null,"%",{"$f":"'2015'!D530","v":-1}]
[]
["SPECIFIC SERVICE CHARGES"]
[]
["APPLICATION"]
[]
["The application of these rates and charges shall be in accordance with the Licence of the Distributor and any Code or Order of the Board, and amendments thereto as approved by the Board, which may be applicable to the administration of this schedule."]
[]
["No charges to meet the costs of any work or service done or furnished for the purpose of the distribution of electricity shall be made except as permitted by this schedule, unless required by the Distributor’s Licence or a Code or Order of the Board, and amendments thereto as approved by the Board, or as specified herein."]
[]
["It should be noted that this schedule does not list any charges, assessments or credits that are required by law to be invoiced by a distributor and that are not subject to Board approval, such as the Debt Retirement Charge, the Global Adjustment, the Ontario Clean Energy Benefit and the HST."]
[]
["Customer Administration"]
[]
["Arrears certificate",null,"$",15]
["Statement of Account",null,"$",15]
["Pulling Post Dated Cheques",null,"$",15]
["Duplicate Invoices for previous billing",null,"$",15]
["Request for other billing information",null,"$",15]
["Easement Letter",null,"$",15]
["Income Tax Letter",null,"$",15]
["Notification charge",null,"$",15]
["Account History",null,"$",15]
["Returned cheque charge (plus bank charges)",null,"$",15]
["Charge to certify cheque",null,"$",15]
["Legal letter charge",null,"$",15]
["Account set up charge/change of occupancy charge (plus credit agency costs if applicable)",null,"$",30]
["Special meter reads",null,"$",30]
["Meter dispute charge plus Measurement Canada fees (if meter found correct)",null,"$",30]
["Credit Card Convenience Charge",null,"$",15]
["Credit check (plus credit agency costs)",null,"$",15]
[]
[]
[]
[]
[]
[]
[]
[]
[]
[]
[]
[]
[]
[]
[]
[]
[]
[]
[]
["Non-Payment of Account"]
[]
["Late Payment – per month",null,"%",1.5]
["Late Payment – per annum",null,"%",19.559999999999999]
["Collection of account charge – no disconnection",null,"$",30]
["Collection of account charge – no disconnection – after regular hours",null,"$",165]
["Disconnect/Reconnect at meter – during regular hours",null,"$",65]
["Disconnect/Reconnect at meter – after regular hours",null,"$",185]
["Disconnect/Reconnect at pole – during regular hours",null,"$",185]
["Disconnect/Reconnect at pole – after regular hours",null,"$",415]
["Service call – customer owned equipment",null,"$",30]
["Service call – after regular hours",null,"$",165]
["Temporary Service – Install & remove – overhead – no transformer",null,"$",500]
["Temporary Service – Install & remove – underground – no transformer",null,"$",300]
["Temporary Service – Install & remove – overhead – with transformer",null,"$",1000]
["Specific Charge for Access to the Power Poles - $/pole/year",null,"$",22.35]
["Administrative Billing Charge",null,"$",150]
["Install/Remove load control device – during regular hours",null,"$",65]
["Install/Remove load control device – after regular hours",null,"$",185]
[]
[]
[]
[]
[]
[]
[]
[]
[]
[]
[]
[]
[]
[]
[]
[]
[]
[]
[]
[]
[]
[]
[]
[]
[]
[]
[]
[]
[]
[]
[]
[]
["RETAIL SERVICE CHARGES (if applicable)"]
[]
["The application of these rates and charges shall be in accordance with the Licence of the Distributor and any Code or Order of the Board, and amendments thereto as approved by the Board, which may be applicable to the administration of this schedule."]
[]
["No rates and charges for the distribution of electricity and charges to meet the costs of any work or service done or furnished for the purpose of the distribution of electricity shall be made except as permitted by this schedule, unless required by the Distributor’s Licence or a Code or Order of the Board, and amendments thereto as approved by the Board, or as specified herein."]
[]
["Unless specifically noted, this schedule does not contain any charges for the electricity commodity, be it under the Regulated Price Plan, a contract with a retailer or the wholesale market price, as applicable."]
[]
["It should be noted that this schedule does not list any charges, assessments or credits that are required by law to be invoiced by a distributor and that are not subject to Board approval, such as the Debt Retirement Charge, the Global Adjustment, the Ontario Clean Energy Benefit and the HST."]
[]
["Retail Service Charges refer to services provided by a distributor to retailers or customers related to the supply of competitive electricity."]
[]
["One-time charge, per retailer, to establish the service agreement between the distributor and the retailer",null,"$",100]
["Monthly Fixed Charge, per retailer",null,"$",20]
["Monthly Variable Charge, per customer, per retailer",null,"$/cust.",0.5]
["Distributor-consolidated billing monthly charge, per customer, per retailer",null,"$/cust.",0.3]
["Retailer-consolidated billing monthly credit, per customer, per retailer",null,"$/cust.",-0.3]
["Service Transaction Requests (STR) "]
["Request fee, per request, applied to the requesting party",null,"$",0.25]
["Processing fee, per request, applied to the requesting party",null,"$",0.5]
["Request for customer information as outlined in Section 10.6.3 and Chapter 11 of the Retail"]
["Settlement Code directly to retailers and customers, if not delivered electronically through the"]
["Electronic Business Transaction (EBT) system, applied to the requesting party "]
["Up to twice a year",null,"$","no charge"]
["More than twice a year, per request (plus incremental delivery costs)",null,"$",2]
[]
["LOSS FACTORS"]
[]
["If the distributor is not capable of prorating changed loss factors jointly with distribution rates, the revised loss factors will be implemented upon the first subsequent billing for each billing cycle."]
[]
[]
["Total Loss Factor – Secondary Metered Customer < 5,000 kW",null,null,{"$f":"'2015'!D663","v":1.0379481503018717}]
["Total Loss Factor – Secondary Metered Customer > 5,000 kW",null,null,{"$f":"'2015'!D664","v":1.0160223290410131}]
["Distribution Loss Factor - Primary Metered Customer < 5,000 kW",null,null,{"$f":"'2015'!D665","v":1.027568668798853}]
["Distribution Loss Factor - Primary Metered Customer > 5,000 kW",null,null,{"$f":"'2015'!D666","v":1.0059627020208051}]

{"sheet":"2017","index":2,"n_rows":667,"n_cols":4,"rows_kept":667,"cut":false,"hidden":false,"merged":[[663,0,663,1],[664,0,664,1],[665,0,665,1],[666,0,666,1],[667,0,667,1],[668,0,668,1],[653,0,653,1],[654,0,654,1],[655,0,655,1],[656,0,656,1],[660,0,660,3],[660,4,660,7],[647,0,647,1],[648,0,648,1],[649,0,649,1],[650,0,650,1],[651,0,651,1],[652,0,652,1],[642,0,642,3],[642,4,642,7],[644,0,644,1],[644,4,644,5],[645,0,645,1],[646,0,646,1],[639,0,639,3],[639,4,639,7],[640,0,640,3],[640,4,640,7],[641,0,641,3],[641,4,641,7],[636,0,636,3],[636,4,636,7],[637,0,637,3],[637,4,637,7],[638,0,638,3],[638,4,638,7],[628,0,628,1],[629,0,629,1],[630,0,630,1],[634,0,634,3],[634,4,634,7],[635,0,635,3],[635,4,635,7],[622,0,622,1],[623,0,623,1],[624,0,624,1],[625,0,625,1],[626,0,626,1],[627,0,627,1],[616,0,616,1],[617,0,617,1],[618,0,618,1],[619,0,619,1],[620,0,620,1],[621,0,621,1],[610,0,610,1],[611,0,611,1],[612,0,612,1],[613,0,613,1],[614,0,614,1],[615,0,615,1],[602,0,602,1],[603,0,603,1],[604,0,604,1],[605,0,605,1],[606,0,606,1],[607,0,607,1],[596,0,596,1],[597,0,597,1],[598,0,598,1],[599,0,599,1],[600,0,600,1],[601,0,601,1],[590,0,590,1],[591,0,591,1],[592,0,592,1],[593,0,593,1],[594,0,594,1],[595,0,595,1],[584,0,584,1],[585,0,585,1],[586,0,586,1],[587,0,587,1],[588,0,588,1],[589,0,589,1],[575,0,575,1],[576,0,576,1],[577,0,577,1],[578,0,578,1],[579,0,579,1],[583,0,583,1],[569,0,569,1],[570,0,570,1],[571,0,571,1],[572,0,572,1],[573,0,573,1],[574,0,574,1],[563,0,563,1],[564,0,564,1],[565,0,565,1],[566,0,566,1],[567,0,567,1],[568,0,568,1],[556,0,556,1],[557,0,557,1],[558,0,558,1],[559,0,559,1],[561,0,561,1],[562,0,562,1],[550,0,550,1],[551,0,551,1],[552,0,552,1],[553,0,553,1],[554,0,554,1],[555,0,555,1],[544,0,544,1],[545,0,545,1],[546,0,546,1],[547,0,547,1],[548,0,548,1],[549,0,549,1],[529,0,529,1],[530,0,530,1],[536,0,536,3],[538,0,538,3],[538,4,538,7],[540,0,540,3],[540,4,540,7],[517,0,517,1],[521,0,521,1],[522,0,522,1],[523,0,523,1],[527,0,527,1],[528,0,528,1],[511,0,511,1],[512,0,512,1],[513,0,513,1],[514,0,514,1],[515,0,515,1],[516,0,516,1],[505,0,505,1],[506,0,506,1],[507,0,507,1],[508,0,508,1],[509,0,509,1],[510,0,510,1],[499,0,499,1],[500,0,500,1],[501,0,501,1],[502,0,502,1],[503,0,503,1],[504,0,504,1],[493,0,493,1],[494,0,494,1],[495,0,495,1],[496,0,496,1],[497,0,497,1],[498,0,498,1],[484,0,484,3],[488,0,488,1],[489,0,489,1],[490,0,490,1],[491,0,491,1],[492,0,492,1],[475,0,475,1],[476,0,476,3],[478,0,478,3],[481,0,481,3],[482,0,482,3],[483,0,483,3],[466,0,466,1],[467,0,467,1],[468,0,468,1],[469,0,469,1],[473,0,473,1],[474,0,474,1],[460,0,460,1],[461,0,461,1],[462,0,462,1],[463,0,463,1],[464,0,464,1],[465,0,465,1],[454,0,454,1],[455,0,455,1],[456,0,456,1],[457,0,457,1],[458,0,458,1],[459,0,459,1],[448,0,448,1],[449,0,449,1],[450,0,450,1],[451,0,451,1],[452,0,452,1],[453,0,453,1],[442,0,442,1],[443,0,443,1],[444,0,444,1],[445,0,445,1],[446,0,446,1],[447,0,447,1],[433,0,433,3],[434,0,434,3],[435,0,435,3],[436,0,436,3],[440,0,440,1],[441,0,441,1],[421,0,421,1],[425,0,425,1],[426,0,426,1],[427,0,427,1],[428,0,428,3],[430,0,430,3],[415,0,415,1],[416,0,416,1],[417,0,417,1],[418,0,418,1],[419,0,419,1],[420,0,420,1],[409,0,409,1],[410,0,410,1],[411,0,411,1],[412,0,412,1],[413,0,413,1],[414,0,414,1],[403,0,403,1],[404,0,404,1],[405,0,405,1],[406,0,406,1],[407,0,407,1],[408,0,408,1],[397,0,397,1],[398,0,398,1],[399,0,399,1],[400,0,400,1],[401,0,401,1],[402,0,402,1],[388,0,388,3],[392,0,392,1],[393,0,393,1],[394,0,394,1],[395,0,395,1],[396,0,396,1],[379,0,379,1],[380,0,380,3],[382,0,382,3],[385,0,385,3],[386,0,386,3],[387,0,387,3],[370,0,370,1],[371,0,371,1],[372,0,372,1],[373,0,373,1],[377,0,377,1],[378,0,378,1],[364,0,364,1],[365,0,365,1],[366,0,366,1],[367,0,367,1],[368,0,368,1],[369,0,369,1],[358,0,358,1],[359,0,359,1],[360,0,360,1],[361,0,361,1],[362,0,362,1],[363,0,363,1],[352,0,352,1],[353,0,353,1],[354,0,354,1],[355,0,355,1],[356,0,356,1],[357,0,357,1],[346,0,346,1],[347,0,347,1],[348,0,348,1],[349,0,349,1],[350,0,350,1],[351,0,351,1],[337,0,337,3],[338,0,338,3],[339,0,339,3],[340,0,340,3],[344,0,344,1],[345,0,345,1],[325,0,325,1],[329,0,329,1],[330,0,330,1],[331,0,331,1],[332,0,332,3],[334,0,334,3],[319,0,319,1],[320,0,320,1],[321,0,321,1],[322,0,322,1],[323,0,323,1],[324,0,324,1],[313,0,313,1],[314,0,314,1],[315,0,315,1],[316,0,316,1],[317,0,317,1],[318,0,318,1],[307,0,307,1],[308,0,308,1],[309,0,309,1],[310,0,310,1],[311,0,311,1],[312,0,312,1],[301,0,301,1],[302,0,302,1],[303,0,303,1],[304,0,304,1],[305,0,305,1],[306,0,306,1],[292,0,292,3],[296,0,296,1],[297,0,297,1],[298,0,298,1],[299,0,299,1],[300,0,300,1],[283,0,283,1],[284,0,284,3],[286,0,286,3],[289,0,289,3],[290,0,290,3],[291,0,291,3],[274,0,274,1],[275,0,275,1],[276,0,276,1],[277,0,277,1],[281,0,281,1],[282,0,282,1],[268,0,268,1],[269,0,269,1],[270,0,270,1],[271,0,271,1],[272,0,272,1],[273,0,273,1],[262,0,262,1],[263,0,263,1],[264,0,264,1],[265,0,265,1],[266,0,266,1],[267,0,267,1],[256,0,256,1],[257,0,257,1],[258,0,258,1],[259,0,259,1],[260,0,260,1],[261,0,261,1],[250,0,250,1],[251,0,251,1],[252,0,252,1],[253,0,253,1],[254,0,254,1],[255,0,255,1],[241,0,241,3],[242,0,242,3],[243,0,243,3],[244,0,244,3],[248,0,248,1],[249,0,249,1],[229,0,229,1],[233,0,233,1],[234,0,234,1],[235,0,235,1],[236,0,236,3],[238,0,238,3],[223,0,223,1],[224,0,224,1],[225,0,225,1],[226,0,226,1],[227,0,227,1],[228,0,228,1],[217,0,217,1],[218,0,218,1],[219,0,219,1],[220,0,220,1],[221,0,221,1],[222,0,222,1],[211,0,211,1],[212,0,212,1],[213,0,213,1],[214,0,214,1],[215,0,215,1],[216,0,216,1],[205,0,205,1],[206,0,206,1],[207,0,207,1],[208,0,208,1],[209,0,209,1],[210,0,210,1],[196,0,196,3],[200,0,200,1],[201,0,201,1],[202,0,202,1],[203,0,203,1],[204,0,204,1],[187,0,187,1],[188,0,188,3],[190,0,190,3],[193,0,193,3],[194,0,194,3],[195,0,195,3],[178,0,178,1],[179,0,179,1],[180,0,180,1],[181,0,181,1],[185,0,185,1],[186,0,186,1],[172,0,172,1],[173,0,173,1],[174,0,174,1],[175,0,175,1],[176,0,176,1],[177,0,177,1],[166,0,166,1],[167,0,167,1],[168,0,168,1],[169,0,169,1],[170,0,170,1],[171,0,171,1],[160,0,160,1],[161,0,161,1],[162,0,162,1],[163,0,163,1],[164,0,164,1],[165,0,165,1],[154,0,154,1],[155,0,155,1],[156,0,156,1],[157,0,157,1],[158,0,158,1],[159,0,159,1],[145,0,145,3],[146,0,146,3],[147,0,147,3],[148,0,148,3],[152,0,152,1],[153,0,153,1],[133,0,133,1],[137,0,137,1],[138,0,138,1],[139,0,139,1],[140,0,140,3],[142,0,142,3],[127,0,127,1],[128,0,128,1],[129,0,129,1],[130,0,130,1],[131,0,131,1],[132,0,132,1],[121,0,121,1],[122,0,122,1],[123,0,123,1],[124,0,124,1],[125,0,125,1],[126,0,126,1],[115,0,115,1],[116,0,116,1],[117,0,117,1],[118,0,118,1],[119,0,119,1],[120,0,120,1],[109,0,109,1],[110,0,110,1],[111,0,111,1],[112,0,112,1],[113,0,113,1],[114,0,114,1],[100,0,100,3],[104,0,104,1],[105,0,105,1],[106,0,106,1],[107,0,107,1],[108,0,108,1],[91,0,91,1],[92,0,92,3],[94,0,94,3],[97,0,97,3],[98,0,98,3],[99,0,99,3],[82,0,82,1],[83,0,83,1],[84,0,84,1],[85,0,85,1],[89,0,89,1],[90,0,90,1],[76,0,76,1],[77,0,77,1],[78,0,78,1],[79,0,79,1],[80,0,80,1],[81,0,81,1],[70,0,70,1],[71,0,71,1],[72,0,72,1],[73,0,73,1],[74,0,74,1],[75,0,75,1],[64,0,64,1],[65,0,65,1],[66,0,66,1],[67,0,67,1],[68,0,68,1],[69,0,69,1],[58,0,58,1],[59,0,59,1],[60,0,60,1],[61,0,61,1],[62,0,62,1],[63,0,63,1],[49,0,49,3],[50,0,50,3],[51,0,51,3],[52,0,52,3],[56,0,56,1],[57,0,57,1],[38,0,38,3],[40,0,40,3],[41,0,41,3],[42,0,42,3],[44,0,44,3],[46,0,46,3],[24,0,24,3],[25,0,25,3],[26,0,26,3],[27,0,27,3],[36,0,36,3],[37,0,37,3],[21,0,21,3],[22,0,22,3],[23,0,23,3],[7,0,7,3],[9,0,9,3],[10,0,10,3],[12,0,12,1],[14,0,14,3],[17,0,17,3],[0,2,0,3],[1,2,1,3],[2,2,2,3],[3,2,3,3],[4,2,4,3],[6,2,6,3],[18,0,18,3],[19,0,19,3],[20,0,20,3]]}
[null,"File Number:","EB-2014-0002"]
[null,"Exhibit:"]
[null,"Tab:"]
[null,"Schedule:"]
[null,"Page:"]
[]
[null,"Date:"]
["Appendix 2-Z\nTariff of Rates and Charges"]
[]
["For each class, Applicants are required to copy and paste the class descriptions (located directly under the class name) and the description of the applicability of those rates (description is found under the class name and directly under the word \"APPLICATION\").  By using the drop-down lists located under the column labeled \"Rate Description\", please select the descriptions of the rates and charges that BEST MATCHES the descriptions on your most recent Board-Approved Tariff of Rates and Charges.  If the description is not found in the drop-down list, please enter the description in the green shaded cells under the correct class exactly as it appears on the tariff.   Please do not enter more than one \"Service Charge\" for each class for which a base monthly fixed charge applies.  All rate rider descriptions should begin with \"Rate Rider for...\"."]
["Select the appropriate rate classes as they appear on your most recent Board-Approved Tariff of Rates and Charges, including the MicroFit Class."]
[]
["How many classes are listed on your most recent Board-Approved Tariff of Rates and Charges?",null,10]
[]
["Select Your Rate Classes from the Blue Cells below.  \nPlease ensure that a rate class is assigned to each shaded cell."]
[]
[]
["Rate Class Classification"]
["RESIDENTIAL"]
["GENERAL SERVICE LESS THAN 50 KW"]
["GENERAL SERVICE 50 TO 4,999 KW"]
["LARGE USE"]
["LARGE USE (2)"]
["UNMETERED SCATTERED LOAD"]
["SENTINEL LIGHTING"]
["STREET LIGHTING"]
["STANDBY POWER"]
["microFIT"]
[]
[]
[]
[]
[]
[]
["Once all blue shaded cells above are filled out, press the following button to create your tariff template"]
[]
["Horizon Utilities"]
["TARIFF OF RATES AND CHARGES"]
[{"$f":"\"Effective and Implementation Date January 1, 2017\"","v":"Effective and Implementation Date January 1, 2017"}]
[]
["This schedule supersedes and replaces all previously"]
["approved schedules of Rates, Charges and Loss Factors"]
[{"$f":"C1","v":"EB-2014-0002"}]
[]
["RESIDENTIAL SERVICE CLASSIFICATION"]
[]
["This classification applies to an account taking electricity at 750 volts or less where the electricity is used exclusively in a separate metered living accommodation. Customers shall be residing in single-dwelling units that consist of a detached house or one unit of a semi-detached, duplex, triplex or quadruplex house, with a residential zoning. Separately metered dwellings within a town house complex or apartment building also qualify as residential customers. All customers are single-phase. Further servicing details are available in the distributor’s Conditions of Service."]
["APPLICATION"]
[]
["The application of these rates and charges shall be in accordance with the Licence of the Distributor and any Code or Order of the Board, and amendments thereto as approved by the Board, which may be applicable to the administration of this schedule."]
["No rates and charges for the distribution of electricity and charges to meet the costs of any work or service done or furnished for the purpose of the distribution of electricity shall be made except as permitted by this schedule, unless required by the Distributor’s Licence or a Code or Order of the Board, and amendments thereto as approved by the Board, or as specified herein."]
["Unless specifically noted, this schedule does not contain any charges for the electricity commodity, be it under the Regulated Price Plan, a contract with a retailer or the wholesale market price, as applicable."]
["It should be noted that this schedule does not list any charges, assessments, or credits that are required by law to be invoiced by a distributor and that are not subject to Board approval, such as the Debt Retirement Charge, the Global Adjustment, the Ontario Clean Energy Benefit and the HST."]
[]
["MONTHLY RATES AND CHARGES - Delivery Component"]
[]
["Service Charge",null,"customer",17.489999999999998]
["Smart Meter Entity Charge (effective from May 1, 2013 until Oct 31, 2018)",null,"customer",0.79]
["Distribution Volumetric Rate",null,"kWh",1.7100000000000001E-2]
[]
[]
[]
[]
["Low Voltage Service Rate",null,"kWh",5.9999999999999995E-5]
["Retail Transmission Rate – Network Service Rate",null,"kWh",8.0999999999999996E-3]
["Retail Transmission Rate – Line and Transformation Connection Service Rate",null,"kWh",5.7999999999999996E-3]
[]
[]
[]
[]
[]
[]
[]
[]
[]
[]
[]
[]
[]
[]
[]
[]
[]
[]
[]
[]
[]
["MONTHLY RATES AND CHARGES - Regulatory Component"]
[]
["Wholesale Market Service Rate",null,"$/kWh",4.4000000000000003E-3]
["Rural Rate Protection Charge",null,"$/kWh",1.2999999999999999E-3]
["Standard Supply Service - Administrative Charge (if applicable)",null,"$",0.25]
["GENERAL SERVICE LESS THAN 50 KW SERVICE CLASSIFICATION"]
[]
["This classification applies to a non residential account taking electricity at 750 volts or less whose average monthly maximum demand is less than, or is forecast to be less than, 50 kW. Further servicing details are available in the distributor’s Conditions of Service."]
["APPLICATION"]
[]
["The application of these rates and charges shall be in accordance with the Licence of the Distributor and any Code or Order of the Board, and amendments thereto as approved by the Board, which may be applicable to the administration of this schedule."]
["No rates and charges for the distribution of electricity and charges to meet the costs of any work or service done or furnished for the purpose of the distribution of electricity shall be made except as permitted by this schedule, unless required by the Distributor’s Licence or a Code or Order of the Board, and amendments thereto as approved by the Board, or as specified herein."]
["Unless specifically noted, this schedule does not contain any charges for the electricity commodity, be it under the Regulated Price Plan, a contract with a retailer or the wholesale market price, as applicable."]
["It should be noted that this schedule does not list any charges, assessments, or credits that are required by law to be invoiced by a distributor and that are not subject to Board approval, such as the Debt Retirement Charge, the Global Adjustment, the Ontario Clean Energy Benefit and the HST."]
[]
["MONTHLY RATES AND CHARGES - Delivery Component"]
[]
["Service Charge",null,"customer",44.28]
["Smart Meter Entity Charge (effective from May 1, 2013 until Oct 31, 2018)",null,"customer",0.78800000000000003]
["Distribution Volumetric Rate",null,"kWh",1.15E-2]
[]
[]
[]
[]
["Low Voltage Service Rate",null,"kWh",6.0000000000000002E-5]
["Retail Transmission Rate – Network Service Rate",null,"kWh",6.8999999999999999E-3]
["Retail Transmission Rate – Line and Transformation Connection Service Rate",null,"kWh",5.3E-3]
[]
[]
[]
[]
[]
[]
[]
[]
[]
[]
[]
[]
[]
[]
[]
[]
[]
[]
[]
[]
[]
["MONTHLY RATES AND CHARGES - Regulatory Component"]
[]
["Wholesale Market Service Rate",null,"kWh",4.4000000000000003E-3]
["Rural Rate Protection Charge",null,"kWh",1.2999999999999999E-3]
["Standard Supply Service - Administrative Charge (if applicable)",null,"$",0.25]
["GENERAL SERVICE 50 TO 4,999 KW SERVICE CLASSIFICATION"]
[]
["This classification applies to a non residential account whose average monthly maximum demand used for billing purposes is equal to or greater than, or is forecast to be equal to or greater than, 50 kW but less than 5,000 kW. Further servicing details are available in the distributor’s Conditions of Service."]
["APPLICATION"]
[]
["The application of these rates and charges shall be in accordance with the Licence of the Distributor and any Code or Order of the Board, and amendments thereto as approved by the Board, which may be applicable to the administration of this schedule."]
["No rates and charges for the distribution of electricity and charges to meet the costs of any work or service done or furnished for the purpose of the distribution of electricity shall be made except as permitted by this schedule, unless required by the Distributor’s Licence or a Code or Order of the Board, and amendments thereto as approved by the Board, or as specified herein."]
["Unless specifically noted, this schedule does not contain any charges for the electricity commodity, be it under the Regulated Price Plan, a contract with a retailer or the wholesale market price, as applicable."]
["It should be noted that this schedule does not list any charges, assessments, or credits that are required by law to be invoiced by a distributor and that are not subject to Board approval, such as the Debt Retirement Charge, the Global Adjustment, the Ontario Clean Energy Benefit and the HST."]
[]
["MONTHLY RATES AND CHARGES - Delivery Component"]
[]
["Service Charge",null,"customer",404.56]
["Distribution Volumetric Rate",null,"kW",2.7050999999999998]
[]
[]
[]
[]
["Low Voltage Service Rate",null,"kW",2.1690000000000001E-2]
["Retail Transmission Rate – Network Service Rate",null,"kW",2.7789000000000001]
["Retail Transmission Rate – Line and Transformation Connection Service Rate",null,"kW",2.0937999999999999]
[]
[]
[]
[]
[]
[]
[]
[]
[]
[]
[]
[]
[]
[]
[]
[]
[]
[]
[]
[]
[]
[]
["MONTHLY RATES AND CHARGES - Regulatory Component"]
[]
["Wholesale Market Service Rate",null,"kWh",4.4000000000000003E-3]
["Rural Rate Protection Charge",null,"kWh",1.2999999999999999E-3]
["Standard Supply Service - Administrative Charge (if applicable)",null,"$",0.25]
["LARGE USE SERVICE CLASSIFICATION"]
[]
["This classification applies to an account whose average monthly maximum demand used for billing purposes is equal to or greater than, or is forecast to be equal to or greater than, 5,000 kW. Further servicing details are available in the distributor’s Conditions of Service."]
["APPLICATION"]
[]
["The application of these rates and charges shall be in accordance with the Licence of the Distributor and any Code or Order of the Board, and amendments thereto as approved by the Board, which may be applicable to the administration of this schedule."]
["No rates and charges for the distribution of electricity and charges to meet the costs of any work or service done or furnished for the purpose of the distribution of electricity shall be made except as permitted by this schedule, unless required by the Distributor’s Licence or a Code or Order of the Board, and amendments thereto as approved by the Board, or as specified herein."]
["Unless specifically noted, this schedule does not contain any charges for the electricity commodity, be it under the Regulated Price Plan, a contract with a retailer or the wholesale market price, as applicable."]
["It should be noted that this schedule does not list any charges, assessments, or credits that are required by law to be invoiced by a distributor and that are not subject to Board approval, such as the Debt Retirement Charge, the Global Adjustment, the Ontario Clean Energy Benefit and the HST."]
[]
["MONTHLY RATES AND CHARGES - Delivery Component"]
[]
["Service Charge",null,"customer",19042.3]
["Distribution Volumetric Rate",null,"kW",1.1234999999999999]
[]
[]
[]
[]
["Low Voltage Service Rate",null,"kW",2.4920000000000001E-2]
["Retail Transmission Rate – Network Service Rate",null,"kW",3.1743999999999999]
["Retail Transmission Rate – Line and Transformation Connection Service Rate",null,"kW",2.4060000000000001]
[]
[]
[]
[]
[]
[]
[]
[]
[]
[]
[]
[]
[]
[]
[]
[]
[]
[]
[]
[]
[]
[]
["MONTHLY RATES AND CHARGES - Regulatory Component"]
[]
["Wholesale Market Service Rate",null,"kWh",4.4000000000000003E-3]
["Rural Rate Protection Charge",null,"kWh",1.2999999999999999E-3]
["Standard Supply Service - Administrative Charge (if applicable)",null,"$",0.25]
["LARGE USE (2) SERVICE CLASSIFICATION"]
[]
["This classification applies to an account whose average monthly maximum demand used for billing purposes is equal to or greater than, or is forecast to be equal to or greater than, 15,000 kW and it is served with dedicated assets . Further servicing details are available in the distributor’s Conditions of Service."]
["APPLICATION"]
[]
["The application of these rates and charges shall be in accordance with the Licence of the Distributor and any Code or Order of the Board, and amendments thereto as approved by the Board, which may be applicable to the administration of this schedule."]
["No rates and charges for the distribution of electricity and charges to meet the costs of any work or service done or furnished for the purpose of the distribution of electricity shall be made except as permitted by this schedule, unless required by the Distributor’s Licence or a Code or Order of the Board, and amendments thereto as approved by the Board, or as specified herein."]
["Unless specifically noted, this schedule does not contain any charges for the electricity commodity, be it under the Regulated Price Plan, a contract with a retailer or the wholesale market price, as applicable."]
["It should be noted that this schedule does not list any charges, assessments, or credits that are required by law to be invoiced by a distributor and that are not subject to Board approval, such as the Debt Retirement Charge, the Global Adjustment, the Ontario Clean Energy Benefit and the HST."]
[]
["MONTHLY RATES AND CHARGES - Delivery Component"]
[]
["Service Charge",null,"customer",4784.55]
["Distribution Volumetric Rate",null,"kW",0.2823]
[]
[]
[]
[]
["Low Voltage Service Rate",null,"kW",2.4920000000000001E-2]
["Retail Transmission Rate – Network Service Rate",null,"kW",3.1743999999999999]
["Retail Transmission Rate – Line and Transformation Connection Service Rate",null,"kW",2.4060000000000001]
[]
[]
[]
[]
[]
[]
[]
[]
[]
[]
[]
[]
[]
[]
[]
[]
[]
[]
[]
[]
[]
[]
["MONTHLY RATES AND CHARGES - Regulatory Component"]
[]
["Wholesale Market Service Rate",null,"$/kWh",4.4000000000000003E-3]
["Rural Rate Protection Charge",null,"$/kWh",1.2999999999999999E-3]
["Standard Supply Service - Administrative Charge (if applicable)",null,"$",0.25]
["UNMETERED SCATTERED LOAD SERVICE CLASSIFICATION"]
[]
["This classification applies to an account taking electricity at 750 volts or less whose average monthly maximum demand is less than, or is forecast to be less than, 50 kW and the consumption is unmetered. Such connections include cable TV power packs, bus shelters, telephone booths, traffic lights, railway crossings, etc. The level of the consumption will be agreed to by the distributor and the customer, based on detailed manufacturer information/ documentation with regard to electrical consumption of the unmetered load or periodic monitoring of actual consumption. Further servicing details are available in the distributor’s Conditions of Service."]
["APPLICATION"]
[]
["The application of these rates and charges shall be in accordance with the Licence of the Distributor and any Code or Order of the Board, and amendments thereto as approved by the Board, which may be applicable to the administration of this schedule."]
["No rates and charges for the distribution of electricity and charges to meet the costs of any work or service done or furnished for the purpose of the distribution of electricity shall be made except as permitted by this schedule, unless required by the Distributor’s Licence or a Code or Order of the Board, and amendments thereto as approved by the Board, or as specified herein."]
["Unless specifically noted, this schedule does not contain any charges for the electricity commodity, be it under the Regulated Price Plan, a contract with a retailer or the wholesale market price, as applicable."]
["It should be noted that this schedule does not list any charges, assessments, or credits that are required by law to be invoiced by a distributor and that are not subject to Board approval, such as the Debt Retirement Charge, the Global Adjustment, the Ontario Clean Energy Benefit and the HST."]
[]
["MONTHLY RATES AND CHARGES - Delivery Component"]
[]
["Service Charge",null,"connection",9.9322999999999997]
["Distribution Volumetric Rate",null,"kWh",1.54E-2]
[]
[]
[]
[]
["Low Voltage Service Rate",null,"kWh",6.0000000000000002E-5]
["Retail Transmission Rate – Network Service Rate",null,"kWh",7.0000000000000001E-3]
["Retail Transmission Rate – Line and Transformation Connection Service Rate",null,"kWh",5.4000000000000003E-3]
[]
[]
[]
[]
[]
[]
[]
[]
[]
[]
[]
[]
[]
[]
[]
[]
[]
[]
[]
[]
[]
[]
["MONTHLY RATES AND CHARGES - Regulatory Component"]
[]
["Wholesale Market Service Rate",null,"$/kWh",4.4000000000000003E-3]
["Rural Rate Protection Charge",null,"$/kWh",1.2999999999999999E-3]
["Standard Supply Service - Administrative Charge (if applicable)",null,"$",0.25]
["SENTINEL LIGHTING SERVICE CLASSIFICATION"]
[]
["This classification applies to safety/security lighting with a Residential, General Service or Large Use customer. This is typically exterior lighting, and often unmetered. Consumption is estimated based on the equipment rating and estimated hours of use. Further servicing details are available in the distributor’s Conditions of Service."]
["APPLICATION"]
[]
["The application of these rates and charges shall be in accordance with the Licence of the Distributor and any Code or Order of the Board, and amendments thereto as approved by the Board, which may be applicable to the administration of this schedule."]
["No rates and charges for the distribution of electricity and charges to meet the costs of any work or service done or furnished for the purpose of the distribution of electricity shall be made except as permitted by this schedule, unless required by the Distributor’s Licence or a Code or Order of the Board, and amendments thereto as approved by the Board, or as specified herein."]
["Unless specifically noted, this schedule does not contain any charges for the electricity commodity, be it under the Regulated Price Plan, a contract with a retailer or the wholesale market price, as applicable."]
["It should be noted that this schedule does not list any charges, assessments, or credits that are required by law to be invoiced by a distributor and that are not subject to Board approval, such as the Debt Retirement Charge, the Global Adjustment, the Ontario Clean Energy Benefit and the HST."]
[]
["MONTHLY RATES AND CHARGES - Delivery Component"]
[]
["Service Charge",null,"connection",6.0942999999999996]
["Distribution Volumetric Rate",null,"kW",16.714099999999998]
[]
[]
[]
[]
["Low Voltage Service Rate",null,"kW",1.745E-2]
["Retail Transmission Rate – Network Service Rate",null,"kW",2.3090999999999999]
["Retail Transmission Rate – Line and Transformation Connection Service Rate",null,"kW",1.6848000000000001]
[]
[]
[]
[]
[]
[]
[]
[]
[]
[]
[]
[]
[]
[]
[]
[]
[]
[]
[]
[]
[]
[]
["MONTHLY RATES AND CHARGES - Regulatory Component"]
[]
["Wholesale Market Service Rate",null,"$/kWh",4.4000000000000003E-3]
["Rural Rate Protection Charge",null,"$/kWh",1.2999999999999999E-3]
["Standard Supply Service - Administrative Charge (if applicable)",null,"$",0.25]
["STREET LIGHTING SERVICE CLASSIFICATION"]
[]
["This classification applies to an account for roadway lighting with a Municipality, Regional Municipality, Ministry of Transportation and private roadway lighting, controlled by photo cells. The consumption for these "]
["APPLICATION"]
[]
["The application of these rates and charges shall be in accordance with the Licence of the Distributor and any Code or Order of the Board, and amendments thereto as approved by the Board, which may be applicable to the administration of this schedule."]
["No rates and charges for the distribution of electricity and charges to meet the costs of any work or service done or furnished for the purpose of the distribution of electricity shall be made except as permitted by this schedule, unless required by the Distributor’s Licence or a Code or Order of the Board, and amendments thereto as approved by the Board, or as specified herein."]
["Unless specifically noted, this schedule does not contain any charges for the electricity commodity, be it under the Regulated Price Plan, a contract with a retailer or the wholesale market price, as applicable."]
["It should be noted that this schedule does not list any charges, assessments, or credits that are required by law to be invoiced by a distributor and that are not subject to Board approval, such as the Debt Retirement Charge, the Global Adjustment, the Ontario Clean Energy Benefit and the HST."]
[]
["MONTHLY RATES AND CHARGES - Delivery Component"]
[]
["Service Charge",null,"device",3.1871]
["Distribution Volumetric Rate",null,"kW",8.4815000000000005]
[]
[]
[]
[]
["Low Voltage Service Rate",null,"kW",1.702E-2]
["Retail Transmission Rate – Network Service Rate",null,"kW",2.1876000000000002]
["Retail Transmission Rate – Line and Transformation Connection Service Rate",null,"kW",1.6427]
[]
[]
[]
[]
[]
[]
[]
[]
[]
[]
[]
[]
[]
[]
[]
[]
[]
[]
[]
[]
[]
[]
["MONTHLY RATES AND CHARGES - Regulatory Component"]
[]
["Wholesale Market Service Rate",null,"$/kWh",4.4000000000000003E-3]
["Rural Rate Protection Charge",null,"$/kWh",1.2999999999999999E-3]
["Standard Supply Service - Administrative Charge (if applicable)",null,"$",0.25]
["STANDBY POWER SERVICE CLASSIFICATION"]
[]
["This classification refers to an account that has Load Displacement Generation and requires the distributor to provide back-up service. Further servicing details are available in the distributor’s Conditions of Service."]
["APPLICATION"]
[]
["The application of these rates and charges shall be in accordance with the Licence of the Distributor and any Code or Order of the Board, and amendments thereto as approved by the Board, which may be applicable to the administration of this schedule."]
["No rates and charges for the distribution of electricity and charges to meet the costs of any work or service done or furnished for the purpose of the distribution of electricity shall be made except as permitted by this schedule, unless required by the Distributor’s Licence or a Code or Order of the Board, and amendments thereto as approved by the Board, or as specified herein."]
["Unless specifically noted, this schedule does not contain any charges for the electricity commodity, be it under the Regulated Price Plan, a contract with a retailer or the wholesale market price, as applicable."]
["It should be noted that this schedule does not list any charges, assessments, or credits that are required by law to be invoiced by a distributor and that are not subject to Board approval, such as the Debt Retirement Charge, the Global Adjustment, the Ontario Clean Energy Benefit and the HST."]
[]
["MONTHLY RATES AND CHARGES - Delivery Component"]
[]
["GS < 50 kW Standby Charge",null,"kW",2.7056]
["Large Use (1) Standby Charge",null,"kW",{"$f":"D202","v":1.1234999999999999}]
["Large Use (2) Standby Charge",null,"kW",{"$f":"D250","v":0.2823}]
[]
[]
[]
[]
[]
[]
[]
[]
[]
[]
[]
[]
[]
[]
[]
[]
[]
[]
[]
[]
[]
[]
[]
[]
[]
[]
[]
[]
["MONTHLY RATES AND CHARGES - Regulatory Component"]
[]
["Wholesale Market Service Rate"]
["Rural Rate Protection Charge"]
["Standard Supply Service - Administrative Charge (if applicable)"]
["microFIT SERVICE CLASSIFICATION"]
[]
["This classification applies to an electricity generation facility contracted under the Ontario Power Authority’s microFIT program and connected to the distributor’s distribution system. Further servicing details are available in the distributor’s Conditions of Service."]
["APPLICATION"]
[]
["The application of these rates and charges shall be in accordance with the Licence of the Distributor and any Code or Order of the Board, and amendments thereto as approved by the Board, which may be applicable to the administration of this schedule."]
["No rates and charges for the distribution of electricity and charges to meet the costs of any work or service done or furnished for the purpose of the distribution of electricity shall be made except as permitted by this schedule, unless required by the Distributor’s Licence or a Code or Order of the Board, and amendments thereto as approved by the Board, or as specified herein."]
["Unless specifically noted, this schedule does not contain any charges for the electricity commodity, be it under the Regulated Price Plan, a contract with a retailer or the wholesale market price, as applicable."]
["It should be noted that this schedule does not list any charges, assessments, or credits that are required by law to be invoiced by a distributor and that are not subject to Board approval, such as the Debt Retirement Charge, the Global Adjustment, the Ontario Clean Energy Benefit and the HST."]
[]
["MONTHLY RATES AND CHARGES - Delivery Component"]
[]
["microFIT",null,0,5.4]
[]
[]
[]
[]
[]
[]
[]
[]
[]
[]
[]
[]
[]
[]
[]
[]
[]
[]
[]
[]
[]
[]
[]
[]
[]
[]
[]
[]
[]
[]
["MONTHLY RATES AND CHARGES - Regulatory Component"]
[]
["Wholesale Market Service Rate"]
["Rural Rate Protection Charge"]
["Standard Supply Service - Administrative Charge (if applicable)"]
[]
["ALLOWANCES"]
[]
["Transformer Allowance for Ownership - per kW of billing demand/month"]
["Transformer Allowance Discount",null,"kW",-0.73]
[]
["Primary Metering Allowance for transformer losses – applied to measured demand and energy",null,"%",-1]
[]
["SPECIFIC SERVICE CHARGES"]
[]
["APPLICATION"]
[]
["The application of these rates and charges shall be in accordance with the Licence of the Distributor and any Code or Order of the Board, and amendments thereto as approved by the Board, which may be applicable to the administration of this schedule."]
[]
["No charges to meet the costs of any work or service done or furnished for the purpose of the distribution of electricity shall be made except as permitted by this schedule, unless required by the Distributor’s Licence or a Code or Order of the Board, and amendments thereto as approved by the Board, or as specified herein."]
[]
["It should be noted that this schedule does not list any charges, assessments or credits that are required by law to be invoiced by a distributor and that are not subject to Board approval, such as the Debt Retirement Charge, the Global Adjustment, the Ontario Clean Energy Benefit and the HST."]
[]
["Customer Administration"]
[]
["Arrears certificate",null,"$",15]
["Statement of Account",null,"$",15]
["Pulling Post Dated Cheques",null,"$",15]
["Duplicate Invoices for previous billing",null,"$",15]
["Request for other billing information",null,"$",15]
["Easement Letter",null,"$",15]
["Income Tax Letter",null,"$",15]
["Notification charge",null,"$",15]
["Account History",null,"$",15]
["Returned cheque charge (plus bank charges)",null,"$",15]
["Charge to certify cheque",null,"$",15]
["Legal letter charge",null,"$",15]
["Account set up charge/change of occupancy charge (plus credit agency costs if applicable)",null,"$",30]
["Special meter reads",null,"$",30]
["Meter dispute charge plus Measurement Canada fees (if meter found correct)",null,"$",30]
["Credit Card Convenience Charge",null,"$",15]
["Paymentus Service Fee",null,"$",5.95]
["Credit check (plus credit agency costs)",null,"$",15]
[]
[]
[]
[]
[]
[]
[]
[]
[]
[]
[]
[]
[]
[]
[]
[]
[]
[]
[]
["Non-Payment of Account"]
[]
["Late Payment – per month",null,"%",1.5]
["Late Payment – per annum",null,"%",19.559999999999999]
["Collection of account charge – no disconnection",null,"$",30]
["Collection of account charge – no disconnection – after regular hours",null,"$",165]
["Disconnect/Reconnect at meter – during regular hours",null,"$",65]
["Disconnect/Reconnect at meter – after regular hours",null,"$",185]
["Disconnect/Reconnect at pole – during regular hours",null,"$",185]
["Disconnect/Reconnect at pole – after regular hours",null,"$",415]
["Service call – customer owned equipment",null,"$",30]
["Service call – after regular hours",null,"$",165]
["Temporary Service – Install & remove – overhead – no transformer",null,"$",500]
["Temporary Service – Install & remove – underground – no transformer",null,"$",300]
["Temporary Service – Install & remove – overhead – with transformer",null,"$",1000]
["Specific Charge for Access to the Power Poles - $/pole/year",null,"$",22.35]
["Administrative Billing Charge",null,"$",150]
["Install/Remove load control device – during regular hours",null,"$",65]
["Install/Remove load control device – after regular hours",null,"$",185]
[]
[]
[]
[]
[]
[]
[]
[]
[]
[]
[]
[]
[]
[]
[]
[]
[]
[]
[]
[]
[]
[]
[]
[]
[]
[]
[]
[]
[]
[]
[]
[]
["RETAIL SERVICE CHARGES (if applicable)"]
[]
["The application of these rates and charges shall be in accordance with the Licence of the Distributor and any Code or Order of the Board, and amendments thereto as approved by the Board, which may be applicable to the administration of this schedule."]
[]
["No rates and charges for the distribution of electricity and charges to meet the costs of any work or service done or furnished for the purpose of the distribution of electricity shall be made except as permitted by this schedule, unless required by the Distributor’s Licence or a Code or Order of the Board, and amendments thereto as approved by the Board, or as specified herein."]
[]
["Unless specifically noted, this schedule does not contain any charges for the electricity commodity, be it under the Regulated Price Plan, a contract with a retailer or the wholesale market price, as applicable."]
[]
["It should be noted that this schedule does not list any charges, assessments or credits that are required by law to be invoiced by a distributor and that are not subject to Board approval, such as the Debt Retirement Charge, the Global Adjustment, the Ontario Clean Energy Benefit and the HST."]
[]
["Retail Service Charges refer to services provided by a distributor to retailers or customers related to the supply of competitive electricity."]
[]
["One-time charge, per retailer, to establish the service agreement between the distributor and the retailer",null,"$",100]
["Monthly Fixed Charge, per retailer",null,"$",20]
["Monthly Variable Charge, per customer, per retailer",null,"$/cust.",0.5]
["Distributor-consolidated billing monthly charge, per customer, per retailer",null,"$/cust.",0.3]
["Retailer-consolidated billing monthly credit, per customer, per retailer",null,"$/cust.",-0.3]
["Service Transaction Requests (STR) "]
["Request fee, per request, applied to the requesting party",null,"$",0.25]
["Processing fee, per request, applied to the requesting party",null,"$",0.5]
["Request for customer information as outlined in Section 10.6.3 and Chapter 11 of the Retail"]
["Settlement Code directly to retailers and customers, if not delivered electronically through the"]
["Electronic Business Transaction (EBT) system, applied to the requesting party "]
["Up to twice a year",null,"$","no charge"]
["More than twice a year, per request (plus incremental delivery costs)",null,"$",2]
[]
["LOSS FACTORS"]
[]
["If the distributor is not capable of prorating changed loss factors jointly with distribution rates, the revised loss factors will be implemented upon the first subsequent billing for each billing cycle."]
[]
[]
["Total Loss Factor – Secondary Metered Customer < 5,000 kW",null,null,{"$f":"'2016'!D663","v":1.0379481503018717}]
["Total Loss Factor – Secondary Metered Customer > 5,000 kW",null,null,{"$f":"'2016'!D664","v":1.0160223290410131}]
["Distribution Loss Factor - Primary Metered Customer < 5,000 kW",null,null,{"$f":"'2016'!D665","v":1.027568668798853}]
["Distribution Loss Factor - Primary Metered Customer > 5,000 kW",null,null,{"$f":"'2016'!D666","v":1.0059627020208051}]

{"sheet":"2018","index":3,"n_rows":667,"n_cols":4,"rows_kept":667,"cut":false,"hidden":false,"merged":[[663,0,663,1],[664,0,664,1],[665,0,665,1],[666,0,666,1],[667,0,667,1],[668,0,668,1],[653,0,653,1],[654,0,654,1],[655,0,655,1],[656,0,656,1],[660,0,660,3],[660,4,660,7],[647,0,647,1],[648,0,648,1],[649,0,649,1],[650,0,650,1],[651,0,651,1],[652,0,652,1],[642,0,642,3],[642,4,642,7],[644,0,644,1],[644,4,644,5],[645,0,645,1],[646,0,646,1],[639,0,639,3],[639,4,639,7],[640,0,640,3],[640,4,640,7],[641,0,641,3],[641,4,641,7],[636,0,636,3],[636,4,636,7],[637,0,637,3],[637,4,637,7],[638,0,638,3],[638,4,638,7],[628,0,628,1],[629,0,629,1],[630,0,630,1],[634,0,634,3],[634,4,634,7],[635,0,635,3],[635,4,635,7],[622,0,622,1],[623,0,623,1],[624,0,624,1],[625,0,625,1],[626,0,626,1],[627,0,627,1],[616,0,616,1],[617,0,617,1],[618,0,618,1],[619,0,619,1],[620,0,620,1],[621,0,621,1],[610,0,610,1],[611,0,611,1],[612,0,612,1],[613,0,613,1],[614,0,614,1],[615,0,615,1],[602,0,602,1],[603,0,603,1],[604,0,604,1],[605,0,605,1],[606,0,606,1],[607,0,607,1],[596,0,596,1],[597,0,597,1],[598,0,598,1],[599,0,599,1],[600,0,600,1],[601,0,601,1],[590,0,590,1],[591,0,591,1],[592,0,592,1],[593,0,593,1],[594,0,594,1],[595,0,595,1],[584,0,584,1],[585,0,585,1],[586,0,586,1],[587,0,587,1],[588,0,588,1],[589,0,589,1],[575,0,575,1],[576,0,576,1],[577,0,577,1],[578,0,578,1],[579,0,579,1],[583,0,583,1],[569,0,569,1],[570,0,570,1],[571,0,571,1],[572,0,572,1],[573,0,573,1],[574,0,574,1],[563,0,563,1],[564,0,564,1],[565,0,565,1],[566,0,566,1],[567,0,567,1],[568,0,568,1],[556,0,556,1],[557,0,557,1],[558,0,558,1],[559,0,559,1],[561,0,561,1],[562,0,562,1],[550,0,550,1],[551,0,551,1],[552,0,552,1],[553,0,553,1],[554,0,554,1],[555,0,555,1],[544,0,544,1],[545,0,545,1],[546,0,546,1],[547,0,547,1],[548,0,548,1],[549,0,549,1],[529,0,529,1],[530,0,530,1],[536,0,536,3],[538,0,538,3],[538,4,538,7],[540,0,540,3],[540,4,540,7],[517,0,517,1],[521,0,521,1],[522,0,522,1],[523,0,523,1],[527,0,527,1],[528,0,528,1],[511,0,511,1],[512,0,512,1],[513,0,513,1],[514,0,514,1],[515,0,515,1],[516,0,516,1],[505,0,505,1],[506,0,506,1],[507,0,507,1],[508,0,508,1],[509,0,509,1],[510,0,510,1],[499,0,499,1],[500,0,500,1],[501,0,501,1],[502,0,502,1],[503,0,503,1],[504,0,504,1],[493,0,493,1],[494,0,494,1],[495,0,495,1],[496,0,496,1],[497,0,497,1],[498,0,498,1],[484,0,484,3],[488,0,488,1],[489,0,489,1],[490,0,490,1],[491,0,491,1],[492,0,492,1],[475,0,475,1],[476,0,476,3],[478,0,478,3],[481,0,481,3],[482,0,482,3],[483,0,483,3],[466,0,466,1],[467,0,467,1],[468,0,468,1],[469,0,469,1],[473,0,473,1],[474,0,474,1],[460,0,460,1],[461,0,461,1],[462,0,462,1],[463,0,463,1],[464,0,464,1],[465,0,465,1],[454,0,454,1],[455,0,455,1],[456,0,456,1],[457,0,457,1],[458,0,458,1],[459,0,459,1],[448,0,448,1],[449,0,449,1],[450,0,450,1],[451,0,451,1],[452,0,452,1],[453,0,453,1],[442,0,442,1],[443,0,443,1],[444,0,444,1],[445,0,445,1],[446,0,446,1],[447,0,447,1],[433,0,433,3],[434,0,434,3],[435,0,435,3],[436,0,436,3],[440,0,440,1],[441,0,441,1],[421,0,421,1],[425,0,425,1],[426,0,426,1],[427,0,427,1],[428,0,428,3],[430,0,430,3],[415,0,415,1],[416,0,416,1],[417,0,417,1],[418,0,418,1],[419,0,419,1],[420,0,420,1],[409,0,409,1],[410,0,410,1],[411,0,411,1],[412,0,412,1],[413,0,413,1],[414,0,414,1],[403,0,403,1],[404,0,404,1],[405,0,405,1],[406,0,406,1],[407,0,407,1],[408,0,408,1],[397,0,397,1],[398,0,398,1],[399,0,399,1],[400,0,400,1],[401,0,401,1],[402,0,402,1],[388,0,388,3],[392,0,392,1],[393,0,393,1],[394,0,394,1],[395,0,395,1],[396,0,396,1],[379,0,379,1],[380,0,380,3],[382,0,382,3],[385,0,385,3],[386,0,386,3],[387,0,387,3],[370,0,370,1],[371,0,371,1],[372,0,372,1],[373,0,373,1],[377,0,377,1],[378,0,378,1],[364,0,364,1],[365,0,365,1],[366,0,366,1],[367,0,367,1],[368,0,368,1],[369,0,369,1],[358,0,358,1],[359,0,359,1],[360,0,360,1],[361,0,361,1],[362,0,362,1],[363,0,363,1],[352,0,352,1],[353,0,353,1],[354,0,354,1],[355,0,355,1],[356,0,356,1],[357,0,357,1],[346,0,346,1],[347,0,347,1],[348,0,348,1],[349,0,349,1],[350,0,350,1],[351,0,351,1],[337,0,337,3],[338,0,338,3],[339,0,339,3],[340,0,340,3],[344,0,344,1],[345,0,345,1],[325,0,325,1],[329,0,329,1],[330,0,330,1],[331,0,331,1],[332,0,332,3],[334,0,334,3],[319,0,319,1],[320,0,320,1],[321,0,321,1],[322,0,322,1],[323,0,323,1],[324,0,324,1],[313,0,313,1],[314,0,314,1],[315,0,315,1],[316,0,316,1],[317,0,317,1],[318,0,318,1],[307,0,307,1],[308,0,308,1],[309,0,309,1],[310,0,310,1],[311,0,311,1],[312,0,312,1],[301,0,301,1],[302,0,302,1],[303,0,303,1],[304,0,304,1],[305,0,305,1],[306,0,306,1],[292,0,292,3],[296,0,296,1],[297,0,297,1],[298,0,298,1],[299,0,299,1],[300,0,300,1],[283,0,283,1],[284,0,284,3],[286,0,286,3],[289,0,289,3],[290,0,290,3],[291,0,291,3],[274,0,274,1],[275,0,275,1],[276,0,276,1],[277,0,277,1],[281,0,281,1],[282,0,282,1],[268,0,268,1],[269,0,269,1],[270,0,270,1],[271,0,271,1],[272,0,272,1],[273,0,273,1],[262,0,262,1],[263,0,263,1],[264,0,264,1],[265,0,265,1],[266,0,266,1],[267,0,267,1],[256,0,256,1],[257,0,257,1],[258,0,258,1],[259,0,259,1],[260,0,260,1],[261,0,261,1],[250,0,250,1],[251,0,251,1],[252,0,252,1],[253,0,253,1],[254,0,254,1],[255,0,255,1],[241,0,241,3],[242,0,242,3],[243,0,243,3],[244,0,244,3],[248,0,248,1],[249,0,249,1],[229,0,229,1],[233,0,233,1],[234,0,234,1],[235,0,235,1],[236,0,236,3],[238,0,238,3],[223,0,223,1],[224,0,224,1],[225,0,225,1],[226,0,226,1],[227,0,227,1],[228,0,228,1],[217,0,217,1],[218,0,218,1],[219,0,219,1],[220,0,220,1],[221,0,221,1],[222,0,222,1],[211,0,211,1],[212,0,212,1],[213,0,213,1],[214,0,214,1],[215,0,215,1],[216,0,216,1],[205,0,205,1],[206,0,206,1],[207,0,207,1],[208,0,208,1],[209,0,209,1],[210,0,210,1],[196,0,196,3],[200,0,200,1],[201,0,201,1],[202,0,202,1],[203,0,203,1],[204,0,204,1],[187,0,187,1],[188,0,188,3],[190,0,190,3],[193,0,193,3],[194,0,194,3],[195,0,195,3],[178,0,178,1],[179,0,179,1],[180,0,180,1],[181,0,181,1],[185,0,185,1],[186,0,186,1],[172,0,172,1],[173,0,173,1],[174,0,174,1],[175,0,175,1],[176,0,176,1],[177,0,177,1],[166,0,166,1],[167,0,167,1],[168,0,168,1],[169,0,169,1],[170,0,170,1],[171,0,171,1],[160,0,160,1],[161,0,161,1],[162,0,162,1],[163,0,163,1],[164,0,164,1],[165,0,165,1],[154,0,154,1],[155,0,155,1],[156,0,156,1],[157,0,157,1],[158,0,158,1],[159,0,159,1],[145,0,145,3],[146,0,146,3],[147,0,147,3],[148,0,148,3],[152,0,152,1],[153,0,153,1],[133,0,133,1],[137,0,137,1],[138,0,138,1],[139,0,139,1],[140,0,140,3],[142,0,142,3],[127,0,127,1],[128,0,128,1],[129,0,129,1],[130,0,130,1],[131,0,131,1],[132,0,132,1],[121,0,121,1],[122,0,122,1],[123,0,123,1],[124,0,124,1],[125,0,125,1],[126,0,126,1],[115,0,115,1],[116,0,116,1],[117,0,117,1],[118,0,118,1],[119,0,119,1],[120,0,120,1],[109,0,109,1],[110,0,110,1],[111,0,111,1],[112,0,112,1],[113,0,113,1],[114,0,114,1],[100,0,100,3],[104,0,104,1],[105,0,105,1],[106,0,106,1],[107,0,107,1],[108,0,108,1],[91,0,91,1],[92,0,92,3],[94,0,94,3],[97,0,97,3],[98,0,98,3],[99,0,99,3],[82,0,82,1],[83,0,83,1],[84,0,84,1],[85,0,85,1],[89,0,89,1],[90,0,90,1],[76,0,76,1],[77,0,77,1],[78,0,78,1],[79,0,79,1],[80,0,80,1],[81,0,81,1],[70,0,70,1],[71,0,71,1],[72,0,72,1],[73,0,73,1],[74,0,74,1],[75,0,75,1],[64,0,64,1],[65,0,65,1],[66,0,66,1],[67,0,67,1],[68,0,68,1],[69,0,69,1],[58,0,58,1],[59,0,59,1],[60,0,60,1],[61,0,61,1],[62,0,62,1],[63,0,63,1],[49,0,49,3],[50,0,50,3],[51,0,51,3],[52,0,52,3],[56,0,56,1],[57,0,57,1],[38,0,38,3],[40,0,40,3],[41,0,41,3],[42,0,42,3],[44,0,44,3],[46,0,46,3],[24,0,24,3],[25,0,25,3],[26,0,26,3],[27,0,27,3],[36,0,36,3],[37,0,37,3],[21,0,21,3],[22,0,22,3],[23,0,23,3],[7,0,7,3],[9,0,9,3],[10,0,10,3],[12,0,12,1],[14,0,14,3],[17,0,17,3],[0,2,0,3],[1,2,1,3],[2,2,2,3],[3,2,3,3],[4,2,4,3],[6,2,6,3],[18,0,18,3],[19,0,19,3],[20,0,20,3]]}
[null,"File Number:","EB-2014-0002"]
[null,"Exhibit:"]
[null,"Tab:"]
[null,"Schedule:"]
[null,"Page:"]
[]
[null,"Date:"]
["Appendix 2-Z\nTariff of Rates and Charges"]
[]
["For each class, Applicants are required to copy and paste the class descriptions (located directly under the class name) and the description of the applicability of those rates (description is found under the class name and directly under the word \"APPLICATION\").  By using the drop-down lists located under the column labeled \"Rate Description\", please select the descriptions of the rates and charges that BEST MATCHES the descriptions on your most recent Board-Approved Tariff of Rates and Charges.  If the description is not found in the drop-down list, please enter the description in the green shaded cells under the correct class exactly as it appears on the tariff.   Please do not enter more than one \"Service Charge\" for each class for which a base monthly fixed charge applies.  All rate rider descriptions should begin with \"Rate Rider for...\"."]
["Select the appropriate rate classes as they appear on your most recent Board-Approved Tariff of Rates and Charges, including the MicroFit Class."]
[]
["How many classes are listed on your most recent Board-Approved Tariff of Rates and Charges?",null,10]
[]
["Select Your Rate Classes from the Blue Cells below.  \nPlease ensure that a rate class is assigned to each shaded cell."]
[]
[]
["Rate Class Classification"]
["RESIDENTIAL"]
["GENERAL SERVICE LESS THAN 50 KW"]
["GENERAL SERVICE 50 TO 4,999 KW"]
["LARGE USE"]
["LARGE USE (2)"]
["UNMETERED SCATTERED LOAD"]
["SENTINEL LIGHTING"]
["STREET LIGHTING"]
["STANDBY POWER"]
["microFIT"]
[]
[]
[]
[]
[]
[]
["Once all blue shaded cells above are filled out, press the following button to create your tariff template"]
[]
["Horizon Utilities"]
["TARIFF OF RATES AND CHARGES"]
[{"$f":"\"Effective and Implementation Date January 1, 2018\"","v":"Effective and Implementation Date January 1, 2018"}]
[]
["This schedule supersedes and replaces all previously"]
["approved schedules of Rates, Charges and Loss Factors"]
[{"$f":"C1","v":"EB-2014-0002"}]
[]
["RESIDENTIAL SERVICE CLASSIFICATION"]
[]
["This classification applies to an account taking electricity at 750 volts or less where the electricity is used exclusively in a separate metered living accommodation. Customers shall be residing in single-dwelling units that consist of a detached house or one unit of a semi-detached, duplex, triplex or quadruplex house, with a residential zoning. Separately metered dwellings within a town house complex or apartment building also qualify as residential customers. All customers are single-phase. Further servicing details are available in the distributor’s Conditions of Service."]
["APPLICATION"]
[]
["The application of these rates and charges shall be in accordance with the Licence of the Distributor and any Code or Order of the Board, and amendments thereto as approved by the Board, which may be applicable to the administration of this schedule."]
["No rates and charges for the distribution of electricity and charges to meet the costs of any work or service done or furnished for the purpose of the distribution of electricity shall be made except as permitted by this schedule, unless required by the Distributor’s Licence or a Code or Order of the Board, and amendments thereto as approved by the Board, or as specified herein."]
["Unless specifically noted, this schedule does not contain any charges for the electricity commodity, be it under the Regulated Price Plan, a contract with a retailer or the wholesale market price, as applicable."]
["It should be noted that this schedule does not list any charges, assessments, or credits that are required by law to be invoiced by a distributor and that are not subject to Board approval, such as the Debt Retirement Charge, the Global Adjustment, the Ontario Clean Energy Benefit and the HST."]
[]
["MONTHLY RATES AND CHARGES - Delivery Component"]
[]
["Service Charge",null,"customer",17.739999999999998]
["Smart Meter Entity Charge (effective from May 1, 2013 until Oct 31, 2018)",null,"customer",0.79]
["Distribution Volumetric Rate",null,"kWh",1.7299999999999999E-2]
[]
[]
[]
[]
["Low Voltage Service Rate",null,"kWh",6.0000000000000008E-5]
["Retail Transmission Rate – Network Service Rate",null,"kWh",8.3999999999999995E-3]
["Retail Transmission Rate – Line and Transformation Connection Service Rate",null,"kWh",6.0000000000000001E-3]
[]
[]
[]
[]
[]
[]
[]
[]
[]
[]
[]
[]
[]
[]
[]
[]
[]
[]
[]
[]
[]
["MONTHLY RATES AND CHARGES - Regulatory Component"]
[]
["Wholesale Market Service Rate",null,"$/kWh",4.4000000000000003E-3]
["Rural Rate Protection Charge",null,"$/kWh",1.2999999999999999E-3]
["Standard Supply Service - Administrative Charge (if applicable)",null,"$",0.25]
["GENERAL SERVICE LESS THAN 50 KW SERVICE CLASSIFICATION"]
[]
["This classification applies to a non residential account taking electricity at 750 volts or less whose average monthly maximum demand is less than, or is forecast to be less than, 50 kW. Further servicing details are available in the distributor’s Conditions of Service."]
["APPLICATION"]
[]
["The application of these rates and charges shall be in accordance with the Licence of the Distributor and any Code or Order of the Board, and amendments thereto as approved by the Board, which may be applicable to the administration of this schedule."]
["No rates and charges for the distribution of electricity and charges to meet the costs of any work or service done or furnished for the purpose of the distribution of electricity shall be made except as permitted by this schedule, unless required by the Distributor’s Licence or a Code or Order of the Board, and amendments thereto as approved by the Board, or as specified herein."]
["Unless specifically noted, this schedule does not contain any charges for the electricity commodity, be it under the Regulated Price Plan, a contract with a retailer or the wholesale market price, as applicable."]
["It should be noted that this schedule does not list any charges, assessments, or credits that are required by law to be invoiced by a distributor and that are not subject to Board approval, such as the Debt Retirement Charge, the Global Adjustment, the Ontario Clean Energy Benefit and the HST."]
[]
["MONTHLY RATES AND CHARGES - Delivery Component"]
[]
["Service Charge",null,"customer",44.91]
["Smart Meter Entity Charge (effective from May 1, 2013 until Oct 31, 2018)",null,"customer",0.78800000000000003]
["Distribution Volumetric Rate",null,"kWh",1.17E-2]
[]
[]
[]
[]
["Low Voltage Service Rate",null,"kWh",6.0000000000000002E-5]
["Retail Transmission Rate – Network Service Rate",null,"kWh",7.1999999999999998E-3]
["Retail Transmission Rate – Line and Transformation Connection Service Rate",null,"kWh",5.4000000000000003E-3]
[]
[]
[]
[]
[]
[]
[]
[]
[]
[]
[]
[]
[]
[]
[]
[]
[]
[]
[]
[]
[]
["MONTHLY RATES AND CHARGES - Regulatory Component"]
[]
["Wholesale Market Service Rate",null,"kWh",4.4000000000000003E-3]
["Rural Rate Protection Charge",null,"kWh",1.2999999999999999E-3]
["Standard Supply Service - Administrative Charge (if applicable)",null,"$",0.25]
["GENERAL SERVICE 50 TO 4,999 KW SERVICE CLASSIFICATION"]
[]
["This classification applies to a non residential account whose average monthly maximum demand used for billing purposes is equal to or greater than, or is forecast to be equal to or greater than, 50 kW but less than 5,000 kW. Further servicing details are available in the distributor’s Conditions of Service."]
["APPLICATION"]
[]
["The application of these rates and charges shall be in accordance with the Licence of the Distributor and any Code or Order of the Board, and amendments thereto as approved by the Board, which may be applicable to the administration of this schedule."]
["No rates and charges for the distribution of electricity and charges to meet the costs of any work or service done or furnished for the purpose of the distribution of electricity shall be made except as permitted by this schedule, unless required by the Distributor’s Licence or a Code or Order of the Board, and amendments thereto as approved by the Board, or as specified herein."]
["Unless specifically noted, this schedule does not contain any charges for the electricity commodity, be it under the Regulated Price Plan, a contract with a retailer or the wholesale market price, as applicable."]
["It should be noted that this schedule does not list any charges, assessments, or credits that are required by law to be invoiced by a distributor and that are not subject to Board approval, such as the Debt Retirement Charge, the Global Adjustment, the Ontario Clean Energy Benefit and the HST."]
[]
["MONTHLY RATES AND CHARGES - Delivery Component"]
[]
["Service Charge",null,"customer",410.35]
["Distribution Volumetric Rate",null,"kW",2.7395]
[]
[]
[]
[]
["Low Voltage Service Rate",null,"kW",2.1690000000000001E-2]
["Retail Transmission Rate – Network Service Rate",null,"kW",2.8664000000000001]
["Retail Transmission Rate – Line and Transformation Connection Service Rate",null,"kW",2.1349]
[]
[]
[]
[]
[]
[]
[]
[]
[]
[]
[]
[]
[]
[]
[]
[]
[]
[]
[]
[]
[]
[]
["MONTHLY RATES AND CHARGES - Regulatory Component"]
[]
["Wholesale Market Service Rate",null,"kWh",4.4000000000000003E-3]
["Rural Rate Protection Charge",null,"kWh",1.2999999999999999E-3]
["Standard Supply Service - Administrative Charge (if applicable)",null,"$",0.25]
["LARGE USE SERVICE CLASSIFICATION"]
[]
["This classification applies to an account whose average monthly maximum demand used for billing purposes is equal to or greater than, or is forecast to be equal to or greater than, 5,000 kW. Further servicing details are available in the distributor’s Conditions of Service."]
["APPLICATION"]
[]
["The application of these rates and charges shall be in accordance with the Licence of the Distributor and any Code or Order of the Board, and amendments thereto as approved by the Board, which may be applicable to the administration of this schedule."]
["No rates and charges for the distribution of electricity and charges to meet the costs of any work or service done or furnished for the purpose of the distribution of electricity shall be made except as permitted by this schedule, unless required by the Distributor’s Licence or a Code or Order of the Board, and amendments thereto as approved by the Board, or as specified herein."]
["Unless specifically noted, this schedule does not contain any charges for the electricity commodity, be it under the Regulated Price Plan, a contract with a retailer or the wholesale market price, as applicable."]
["It should be noted that this schedule does not list any charges, assessments, or credits that are required by law to be invoiced by a distributor and that are not subject to Board approval, such as the Debt Retirement Charge, the Global Adjustment, the Ontario Clean Energy Benefit and the HST."]
[]
["MONTHLY RATES AND CHARGES - Delivery Component"]
[]
["Service Charge",null,"customer",19314.38]
["Distribution Volumetric Rate",null,"kW",1.1395999999999999]
[]
[]
[]
[]
["Low Voltage Service Rate",null,"kW",2.4920000000000001E-2]
["Retail Transmission Rate – Network Service Rate",null,"kW",3.2744]
["Retail Transmission Rate – Line and Transformation Connection Service Rate",null,"kW",2.4533]
[]
[]
[]
[]
[]
[]
[]
[]
[]
[]
[]
[]
[]
[]
[]
[]
[]
[]
[]
[]
[]
[]
["MONTHLY RATES AND CHARGES - Regulatory Component"]
[]
["Wholesale Market Service Rate",null,"kWh",4.4000000000000003E-3]
["Rural Rate Protection Charge",null,"kWh",1.2999999999999999E-3]
["Standard Supply Service - Administrative Charge (if applicable)",null,"$",0.25]
["LARGE USE (2) SERVICE CLASSIFICATION"]
[]
["This classification applies to an account whose average monthly maximum demand used for billing purposes is equal to or greater than, or is forecast to be equal to or greater than, 15,000 kW and it is served with dedicated assets . Further servicing details are available in the distributor’s Conditions of Service."]
["APPLICATION"]
[]
["The application of these rates and charges shall be in accordance with the Licence of the Distributor and any Code or Order of the Board, and amendments thereto as approved by the Board, which may be applicable to the administration of this schedule."]
["No rates and charges for the distribution of electricity and charges to meet the costs of any work or service done or furnished for the purpose of the distribution of electricity shall be made except as permitted by this schedule, unless required by the Distributor’s Licence or a Code or Order of the Board, and amendments thereto as approved by the Board, or as specified herein."]
["Unless specifically noted, this schedule does not contain any charges for the electricity commodity, be it under the Regulated Price Plan, a contract with a retailer or the wholesale market price, as applicable."]
["It should be noted that this schedule does not list any charges, assessments, or credits that are required by law to be invoiced by a distributor and that are not subject to Board approval, such as the Debt Retirement Charge, the Global Adjustment, the Ontario Clean Energy Benefit and the HST."]
[]
["MONTHLY RATES AND CHARGES - Delivery Component"]
[]
["Service Charge",null,"customer",4856.33]
["Distribution Volumetric Rate",null,"kW",0.28649999999999998]
[]
[]
[]
[]
["Low Voltage Service Rate",null,"kW",2.4920000000000001E-2]
["Retail Transmission Rate – Network Service Rate",null,"kW",3.2744]
["Retail Transmission Rate – Line and Transformation Connection Service Rate",null,"kW",2.4533]
[]
[]
[]
[]
[]
[]
[]
[]
[]
[]
[]
[]
[]
[]
[]
[]
[]
[]
[]
[]
[]
[]
["MONTHLY RATES AND CHARGES - Regulatory Component"]
[]
["Wholesale Market Service Rate",null,"$/kWh",4.4000000000000003E-3]
["Rural Rate Protection Charge",null,"$/kWh",1.2999999999999999E-3]
["Standard Supply Service - Administrative Charge (if applicable)",null,"$",0.25]
["UNMETERED SCATTERED LOAD SERVICE CLASSIFICATION"]
[]
["This classification applies to an account taking electricity at 750 volts or less whose average monthly maximum demand is less than, or is forecast to be less than, 50 kW and the consumption is unmetered. Such connections include cable TV power packs, bus shelters, telephone booths, traffic lights, railway crossings, etc. The level of the consumption will be agreed to by the distributor and the customer, based on detailed manufacturer information/ documentation with regard to electrical consumption of the unmetered load or periodic monitoring of actual consumption. Further servicing details are available in the distributor’s Conditions of Service."]
["APPLICATION"]
[]
["The application of these rates and charges shall be in accordance with the Licence of the Distributor and any Code or Order of the Board, and amendments thereto as approved by the Board, which may be applicable to the administration of this schedule."]
["No rates and charges for the distribution of electricity and charges to meet the costs of any work or service done or furnished for the purpose of the distribution of electricity shall be made except as permitted by this schedule, unless required by the Distributor’s Licence or a Code or Order of the Board, and amendments thereto as approved by the Board, or as specified herein."]
["Unless specifically noted, this schedule does not contain any charges for the electricity commodity, be it under the Regulated Price Plan, a contract with a retailer or the wholesale market price, as applicable."]
["It should be noted that this schedule does not list any charges, assessments, or credits that are required by law to be invoiced by a distributor and that are not subject to Board approval, such as the Debt Retirement Charge, the Global Adjustment, the Ontario Clean Energy Benefit and the HST."]
[]
["MONTHLY RATES AND CHARGES - Delivery Component"]
[]
["Service Charge",null,"connection",10.0406]
["Distribution Volumetric Rate",null,"kWh",1.5599999999999999E-2]
[]
[]
[]
[]
["Low Voltage Service Rate",null,"kWh",6.0000000000000002E-5]
["Retail Transmission Rate – Network Service Rate",null,"kWh",7.3000000000000001E-3]
["Retail Transmission Rate – Line and Transformation Connection Service Rate",null,"kWh",5.4999999999999997E-3]
[]
[]
[]
[]
[]
[]
[]
[]
[]
[]
[]
[]
[]
[]
[]
[]
[]
[]
[]
[]
[]
[]
["MONTHLY RATES AND CHARGES - Regulatory Component"]
[]
["Wholesale Market Service Rate",null,"$/kWh",4.4000000000000003E-3]
["Rural Rate Protection Charge",null,"$/kWh",1.2999999999999999E-3]
["Standard Supply Service - Administrative Charge (if applicable)",null,"$",0.25]
["SENTINEL LIGHTING SERVICE CLASSIFICATION"]
[]
["This classification applies to safety/security lighting with a Residential, General Service or Large Use customer. This is typically exterior lighting, and often unmetered. Consumption is estimated based on the equipment rating and estimated hours of use. Further servicing details are available in the distributor’s Conditions of Service."]
["APPLICATION"]
[]
["The application of these rates and charges shall be in accordance with the Licence of the Distributor and any Code or Order of the Board, and amendments thereto as approved by the Board, which may be applicable to the administration of this schedule."]
["No rates and charges for the distribution of electricity and charges to meet the costs of any work or service done or furnished for the purpose of the distribution of electricity shall be made except as permitted by this schedule, unless required by the Distributor’s Licence or a Code or Order of the Board, and amendments thereto as approved by the Board, or as specified herein."]
["Unless specifically noted, this schedule does not contain any charges for the electricity commodity, be it under the Regulated Price Plan, a contract with a retailer or the wholesale market price, as applicable."]
["It should be noted that this schedule does not list any charges, assessments, or credits that are required by law to be invoiced by a distributor and that are not subject to Board approval, such as the Debt Retirement Charge, the Global Adjustment, the Ontario Clean Energy Benefit and the HST."]
[]
["MONTHLY RATES AND CHARGES - Delivery Component"]
[]
["Service Charge",null,"connection",6.1856999999999998]
["Distribution Volumetric Rate",null,"kW",16.9648]
[]
[]
[]
[]
["Low Voltage Service Rate",null,"kW",1.745E-2]
["Retail Transmission Rate – Network Service Rate",null,"kW",2.3818999999999999]
["Retail Transmission Rate – Line and Transformation Connection Service Rate",null,"kW",1.7179]
[]
[]
[]
[]
[]
[]
[]
[]
[]
[]
[]
[]
[]
[]
[]
[]
[]
[]
[]
[]
[]
[]
["MONTHLY RATES AND CHARGES - Regulatory Component"]
[]
["Wholesale Market Service Rate",null,"$/kWh",4.4000000000000003E-3]
["Rural Rate Protection Charge",null,"$/kWh",1.2999999999999999E-3]
["Standard Supply Service - Administrative Charge (if applicable)",null,"$",0.25]
["STREET LIGHTING SERVICE CLASSIFICATION"]
[]
["This classification applies to an account for roadway lighting with a Municipality, Regional Municipality, Ministry of Transportation and private roadway lighting, controlled by photo cells. The consumption for these "]
["APPLICATION"]
[]
["The application of these rates and charges shall be in accordance with the Licence of the Distributor and any Code or Order of the Board, and amendments thereto as approved by the Board, which may be applicable to the administration of this schedule."]
["No rates and charges for the distribution of electricity and charges to meet the costs of any work or service done or furnished for the purpose of the distribution of electricity shall be made except as permitted by this schedule, unless required by the Distributor’s Licence or a Code or Order of the Board, and amendments thereto as approved by the Board, or as specified herein."]
["Unless specifically noted, this schedule does not contain any charges for the electricity commodity, be it under the Regulated Price Plan, a contract with a retailer or the wholesale market price, as applicable."]
["It should be noted that this schedule does not list any charges, assessments, or credits that are required by law to be invoiced by a distributor and that are not subject to Board approval, such as the Debt Retirement Charge, the Global Adjustment, the Ontario Clean Energy Benefit and the HST."]
[]
["MONTHLY RATES AND CHARGES - Delivery Component"]
[]
["Service Charge",null,"device",3.2349000000000001]
["Distribution Volumetric Rate",null,"kW",8.6087000000000007]
[]
[]
[]
[]
["Low Voltage Service Rate",null,"kW",1.702E-2]
["Retail Transmission Rate – Network Service Rate",null,"kW",2.2565]
["Retail Transmission Rate – Line and Transformation Connection Service Rate",null,"kW",1.675]
[]
[]
[]
[]
[]
[]
[]
[]
[]
[]
[]
[]
[]
[]
[]
[]
[]
[]
[]
[]
[]
[]
["MONTHLY RATES AND CHARGES - Regulatory Component"]
[]
["Wholesale Market Service Rate",null,"$/kWh",4.4000000000000003E-3]
["Rural Rate Protection Charge",null,"$/kWh",1.2999999999999999E-3]
["Standard Supply Service - Administrative Charge (if applicable)",null,"$",0.25]
["STANDBY POWER SERVICE CLASSIFICATION"]
[]
["This classification refers to an account that has Load Displacement Generation and requires the distributor to provide back-up service. Further servicing details are available in the distributor’s Conditions of Service."]
["APPLICATION"]
[]
["The application of these rates and charges shall be in accordance with the Licence of the Distributor and any Code or Order of the Board, and amendments thereto as approved by the Board, which may be applicable to the administration of this schedule."]
["No rates and charges for the distribution of electricity and charges to meet the costs of any work or service done or furnished for the purpose of the distribution of electricity shall be made except as permitted by this schedule, unless required by the Distributor’s Licence or a Code or Order of the Board, and amendments thereto as approved by the Board, or as specified herein."]
["Unless specifically noted, this schedule does not contain any charges for the electricity commodity, be it under the Regulated Price Plan, a contract with a retailer or the wholesale market price, as applicable."]
["It should be noted that this schedule does not list any charges, assessments, or credits that are required by law to be invoiced by a distributor and that are not subject to Board approval, such as the Debt Retirement Charge, the Global Adjustment, the Ontario Clean Energy Benefit and the HST."]
[]
["MONTHLY RATES AND CHARGES - Delivery Component"]
[]
["GS < 50 kW Standby Charge",null,"kW",2.7399]
["Large Use (1) Standby Charge",null,"kW",{"$f":"D202","v":1.1395999999999999}]
["Large Use (2) Standby Charge",null,"kW",{"$f":"D250","v":0.28649999999999998}]
[]
[]
[]
[]
[]
[]
[]
[]
[]
[]
[]
[]
[]
[]
[]
[]
[]
[]
[]
[]
[]
[]
[]
[]
[]
[]
[]
[]
["MONTHLY RATES AND CHARGES - Regulatory Component"]
[]
["Wholesale Market Service Rate"]
["Rural Rate Protection Charge"]
["Standard Supply Service - Administrative Charge (if applicable)"]
["microFIT SERVICE CLASSIFICATION"]
[]
["This classification applies to an electricity generation facility contracted under the Ontario Power Authority’s microFIT program and connected to the distributor’s distribution system. Further servicing details are available in the distributor’s Conditions of Service."]
["APPLICATION"]
[]
["The application of these rates and charges shall be in accordance with the Licence of the Distributor and any Code or Order of the Board, and amendments thereto as approved by the Board, which may be applicable to the administration of this schedule."]
["No rates and charges for the distribution of electricity and charges to meet the costs of any work or service done or furnished for the purpose of the distribution of electricity shall be made except as permitted by this schedule, unless required by the Distributor’s Licence or a Code or Order of the Board, and amendments thereto as approved by the Board, or as specified herein."]
["Unless specifically noted, this schedule does not contain any charges for the electricity commodity, be it under the Regulated Price Plan, a contract with a retailer or the wholesale market price, as applicable."]
["It should be noted that this schedule does not list any charges, assessments, or credits that are required by law to be invoiced by a distributor and that are not subject to Board approval, such as the Debt Retirement Charge, the Global Adjustment, the Ontario Clean Energy Benefit and the HST."]
[]
["MONTHLY RATES AND CHARGES - Delivery Component"]
[]
["microFIT",null,0,5.4]
[]
[]
[]
[]
[]
[]
[]
[]
[]
[]
[]
[]
[]
[]
[]
[]
[]
[]
[]
[]
[]
[]
[]
[]
[]
[]
[]
[]
[]
[]
["MONTHLY RATES AND CHARGES - Regulatory Component"]
[]
["Wholesale Market Service Rate"]
["Rural Rate Protection Charge"]
["Standard Supply Service - Administrative Charge (if applicable)"]
[]
["ALLOWANCES"]
[]
["Transformer Allowance for Ownership - per kW of billing demand/month"]
["Transformer Allowance Discount",null,"kW",-0.73]
[]
["Primary Metering Allowance for transformer losses – applied to measured demand and energy",null,"%",-1]
[]
["SPECIFIC SERVICE CHARGES"]
[]
["APPLICATION"]
[]
["The application of these rates and charges shall be in accordance with the Licence of the Distributor and any Code or Order of the Board, and amendments thereto as approved by the Board, which may be applicable to the administration of this schedule."]
[]
["No charges to meet the costs of any work or service done or furnished for the purpose of the distribution of electricity shall be made except as permitted by this schedule, unless required by the Distributor’s Licence or a Code or Order of the Board, and amendments thereto as approved by the Board, or as specified herein."]
[]
["It should be noted that this schedule does not list any charges, assessments or credits that are required by law to be invoiced by a distributor and that are not subject to Board approval, such as the Debt Retirement Charge, the Global Adjustment, the Ontario Clean Energy Benefit and the HST."]
[]
["Customer Administration"]
[]
["Arrears certificate",null,"$",15]
["Statement of Account",null,"$",15]
["Pulling Post Dated Cheques",null,"$",15]
["Duplicate Invoices for previous billing",null,"$",15]
["Request for other billing information",null,"$",15]
["Easement Letter",null,"$",15]
["Income Tax Letter",null,"$",15]
["Notification charge",null,"$",15]
["Account History",null,"$",15]
["Returned cheque charge (plus bank charges)",null,"$",15]
["Charge to certify cheque",null,"$",15]
["Legal letter charge",null,"$",15]
["Account set up charge/change of occupancy charge (plus credit agency costs if applicable)",null,"$",30]
["Special meter reads",null,"$",30]
["Meter dispute charge plus Measurement Canada fees (if meter found correct)",null,"$",30]
["Credit Card Convenience Charge",null,"$",15]
["Paymentus Service Fee",null,"$",5.95]
["Credit check (plus credit agency costs)",null,"$",15]
[]
[]
[]
[]
[]
[]
[]
[]
[]
[]
[]
[]
[]
[]
[]
[]
[]
[]
[]
["Non-Payment of Account"]
[]
["Late Payment – per month",null,"%",1.5]
["Late Payment – per annum",null,"%",19.559999999999999]
["Collection of account charge – no disconnection",null,"$",30]
["Collection of account charge – no disconnection – after regular hours",null,"$",165]
["Disconnect/Reconnect at meter – during regular hours",null,"$",65]
["Disconnect/Reconnect at meter – after regular hours",null,"$",185]
["Disconnect/Reconnect at pole – during regular hours",null,"$",185]
["Disconnect/Reconnect at pole – after regular hours",null,"$",415]
["Service call – customer owned equipment",null,"$",30]
["Service call – after regular hours",null,"$",165]
["Temporary Service – Install & remove – overhead – no transformer",null,"$",500]
["Temporary Service – Install & remove – underground – no transformer",null,"$",300]
["Temporary Service – Install & remove – overhead – with transformer",null,"$",1000]
["Specific Charge for Access to the Power Poles - $/pole/year",null,"$",22.35]
["Administrative Billing Charge",null,"$",150]
["Install/Remove load control device – during regular hours",null,"$",65]
["Install/Remove load control device – after regular hours",null,"$",185]
[]
[]
[]
[]
[]
[]
[]
[]
[]
[]
[]
[]
[]
[]
[]
[]
[]
[]
[]
[]
[]
[]
[]
[]
[]
[]
[]
[]
[]
[]
[]
[]
["RETAIL SERVICE CHARGES (if applicable)"]
[]
["The application of these rates and charges shall be in accordance with the Licence of the Distributor and any Code or Order of the Board, and amendments thereto as approved by the Board, which may be applicable to the administration of this schedule."]
[]
["No rates and charges for the distribution of electricity and charges to meet the costs of any work or service done or furnished for the purpose of the distribution of electricity shall be made except as permitted by this schedule, unless required by the Distributor’s Licence or a Code or Order of the Board, and amendments thereto as approved by the Board, or as specified herein."]
[]
["Unless specifically noted, this schedule does not contain any charges for the electricity commodity, be it under the Regulated Price Plan, a contract with a retailer or the wholesale market price, as applicable."]
[]
["It should be noted that this schedule does not list any charges, assessments or credits that are required by law to be invoiced by a distributor and that are not subject to Board approval, such as the Debt Retirement Charge, the Global Adjustment, the Ontario Clean Energy Benefit and the HST."]
[]
["Retail Service Charges refer to services provided by a distributor to retailers or customers related to the supply of competitive electricity."]
[]
["One-time charge, per retailer, to establish the service agreement between the distributor and the retailer",null,"$",100]
["Monthly Fixed Charge, per retailer",null,"$",20]
["Monthly Variable Charge, per customer, per retailer",null,"$/cust.",0.5]
["Distributor-consolidated billing monthly charge, per customer, per retailer",null,"$/cust.",0.3]
["Retailer-consolidated billing monthly credit, per customer, per retailer",null,"$/cust.",-0.3]
["Service Transaction Requests (STR) "]
["Request fee, per request, applied to the requesting party",null,"$",0.25]
["Processing fee, per request, applied to the requesting party",null,"$",0.5]
["Request for customer information as outlined in Section 10.6.3 and Chapter 11 of the Retail"]
["Settlement Code directly to retailers and customers, if not delivered electronically through the"]
["Electronic Business Transaction (EBT) system, applied to the requesting party "]
["Up to twice a year",null,"$","no charge"]
["More than twice a year, per request (plus incremental delivery costs)",null,"$",2]
[]
["LOSS FACTORS"]
[]
["If the distributor is not capable of prorating changed loss factors jointly with distribution rates, the revised loss factors will be implemented upon the first subsequent billing for each billing cycle."]
[]
[]
["Total Loss Factor – Secondary Metered Customer < 5,000 kW",null,null,{"$f":"'2017'!D664","v":1.0379481503018717}]
["Total Loss Factor – Secondary Metered Customer > 5,000 kW",null,null,{"$f":"'2017'!D665","v":1.0160223290410131}]
["Distribution Loss Factor - Primary Metered Customer < 5,000 kW",null,null,{"$f":"'2017'!D666","v":1.027568668798853}]
["Distribution Loss Factor - Primary Metered Customer > 5,000 kW",null,null,{"$f":"'2017'!D667","v":1.0059627020208051}]

{"sheet":"2019","index":4,"n_rows":666,"n_cols":4,"rows_kept":666,"cut":false,"hidden":false,"merged":[[662,0,662,1],[663,0,663,1],[664,0,664,1],[665,0,665,1],[666,0,666,1],[667,0,667,1],[652,0,652,1],[653,0,653,1],[654,0,654,1],[655,0,655,1],[659,0,659,3],[659,4,659,7],[646,0,646,1],[647,0,647,1],[648,0,648,1],[649,0,649,1],[650,0,650,1],[651,0,651,1],[641,0,641,3],[641,4,641,7],[643,0,643,1],[643,4,643,5],[644,0,644,1],[645,0,645,1],[638,0,638,3],[638,4,638,7],[639,0,639,3],[639,4,639,7],[640,0,640,3],[640,4,640,7],[635,0,635,3],[635,4,635,7],[636,0,636,3],[636,4,636,7],[637,0,637,3],[637,4,637,7],[627,0,627,1],[628,0,628,1],[629,0,629,1],[633,0,633,3],[633,4,633,7],[634,0,634,3],[634,4,634,7],[621,0,621,1],[622,0,622,1],[623,0,623,1],[624,0,624,1],[625,0,625,1],[626,0,626,1],[615,0,615,1],[616,0,616,1],[617,0,617,1],[618,0,618,1],[619,0,619,1],[620,0,620,1],[609,0,609,1],[610,0,610,1],[611,0,611,1],[612,0,612,1],[613,0,613,1],[614,0,614,1],[601,0,601,1],[602,0,602,1],[603,0,603,1],[604,0,604,1],[605,0,605,1],[606,0,606,1],[595,0,595,1],[596,0,596,1],[597,0,597,1],[598,0,598,1],[599,0,599,1],[600,0,600,1],[589,0,589,1],[590,0,590,1],[591,0,591,1],[592,0,592,1],[593,0,593,1],[594,0,594,1],[583,0,583,1],[584,0,584,1],[585,0,585,1],[586,0,586,1],[587,0,587,1],[588,0,588,1],[574,0,574,1],[575,0,575,1],[576,0,576,1],[577,0,577,1],[578,0,578,1],[582,0,582,1],[568,0,568,1],[569,0,569,1],[570,0,570,1],[571,0,571,1],[572,0,572,1],[573,0,573,1],[562,0,562,1],[563,0,563,1],[564,0,564,1],[565,0,565,1],[566,0,566,1],[567,0,567,1],[556,0,556,1],[557,0,557,1],[558,0,558,1],[559,0,559,1],[560,0,560,1],[561,0,561,1],[550,0,550,1],[551,0,551,1],[552,0,552,1],[553,0,553,1],[554,0,554,1],[555,0,555,1],[544,0,544,1],[545,0,545,1],[546,0,546,1],[547,0,547,1],[548,0,548,1],[549,0,549,1],[529,0,529,1],[530,0,530,1],[536,0,536,3],[538,0,538,3],[538,4,538,7],[540,0,540,3],[540,4,540,7],[517,0,517,1],[521,0,521,1],[522,0,522,1],[523,0,523,1],[527,0,527,1],[528,0,528,1],[511,0,511,1],[512,0,512,1],[513,0,513,1],[514,0,514,1],[515,0,515,1],[516,0,516,1],[505,0,505,1],[506,0,506,1],[507,0,507,1],[508,0,508,1],[509,0,509,1],[510,0,510,1],[499,0,499,1],[500,0,500,1],[501,0,501,1],[502,0,502,1],[503,0,503,1],[504,0,504,1],[493,0,493,1],[494,0,494,1],[495,0,495,1],[496,0,496,1],[497,0,497,1],[498,0,498,1],[484,0,484,3],[488,0,488,1],[489,0,489,1],[490,0,490,1],[491,0,491,1],[492,0,492,1],[475,0,475,1],[476,0,476,3],[478,0,478,3],[481,0,481,3],[482,0,482,3],[483,0,483,3],[466,0,466,1],[467,0,467,1],[468,0,468,1],[469,0,469,1],[473,0,473,1],[474,0,474,1],[460,0,460,1],[461,0,461,1],[462,0,462,1],[463,0,463,1],[464,0,464,1],[465,0,465,1],[454,0,454,1],[455,0,455,1],[456,0,456,1],[457,0,457,1],[458,0,458,1],[459,0,459,1],[448,0,448,1],[449,0,449,1],[450,0,450,1],[451,0,451,1],[452,0,452,1],[453,0,453,1],[442,0,442,1],[443,0,443,1],[444,0,444,1],[445,0,445,1],[446,0,446,1],[447,0,447,1],[433,0,433,3],[434,0,434,3],[435,0,435,3],[436,0,436,3],[440,0,440,1],[441,0,441,1],[421,0,421,1],[425,0,425,1],[426,0,426,1],[427,0,427,1],[428,0,428,3],[430,0,430,3],[415,0,415,1],[416,0,416,1],[417,0,417,1],[418,0,418,1],[419,0,419,1],[420,0,420,1],[409,0,409,1],[410,0,410,1],[411,0,411,1],[412,0,412,1],[413,0,413,1],[414,0,414,1],[403,0,403,1],[404,0,404,1],[405,0,405,1],[406,0,406,1],[407,0,407,1],[408,0,408,1],[397,0,397,1],[398,0,398,1],[399,0,399,1],[400,0,400,1],[401,0,401,1],[402,0,402,1],[388,0,388,3],[392,0,392,1],[393,0,393,1],[394,0,394,1],[395,0,395,1],[396,0,396,1],[379,0,379,1],[380,0,380,3],[382,0,382,3],[385,0,385,3],[386,0,386,3],[387,0,387,3],[370,0,370,1],[371,0,371,1],[372,0,372,1],[373,0,373,1],[377,0,377,1],[378,0,378,1],[364,0,364,1],[365,0,365,1],[366,0,366,1],[367,0,367,1],[368,0,368,1],[369,0,369,1],[358,0,358,1],[359,0,359,1],[360,0,360,1],[361,0,361,1],[362,0,362,1],[363,0,363,1],[352,0,352,1],[353,0,353,1],[354,0,354,1],[355,0,355,1],[356,0,356,1],[357,0,357,1],[346,0,346,1],[347,0,347,1],[348,0,348,1],[349,0,349,1],[350,0,350,1],[351,0,351,1],[337,0,337,3],[338,0,338,3],[339,0,339,3],[340,0,340,3],[344,0,344,1],[345,0,345,1],[325,0,325,1],[329,0,329,1],[330,0,330,1],[331,0,331,1],[332,0,332,3],[334,0,334,3],[319,0,319,1],[320,0,320,1],[321,0,321,1],[322,0,322,1],[323,0,323,1],[324,0,324,1],[313,0,313,1],[314,0,314,1],[315,0,315,1],[316,0,316,1],[317,0,317,1],[318,0,318,1],[307,0,307,1],[308,0,308,1],[309,0,309,1],[310,0,310,1],[311,0,311,1],[312,0,312,1],[301,0,301,1],[302,0,302,1],[303,0,303,1],[304,0,304,1],[305,0,305,1],[306,0,306,1],[292,0,292,3],[296,0,296,1],[297,0,297,1],[298,0,298,1],[299,0,299,1],[300,0,300,1],[283,0,283,1],[284,0,284,3],[286,0,286,3],[289,0,289,3],[290,0,290,3],[291,0,291,3],[274,0,274,1],[275,0,275,1],[276,0,276,1],[277,0,277,1],[281,0,281,1],[282,0,282,1],[268,0,268,1],[269,0,269,1],[270,0,270,1],[271,0,271,1],[272,0,272,1],[273,0,273,1],[262,0,262,1],[263,0,263,1],[264,0,264,1],[265,0,265,1],[266,0,266,1],[267,0,267,1],[256,0,256,1],[257,0,257,1],[258,0,258,1],[259,0,259,1],[260,0,260,1],[261,0,261,1],[250,0,250,1],[251,0,251,1],[252,0,252,1],[253,0,253,1],[254,0,254,1],[255,0,255,1],[241,0,241,3],[242,0,242,3],[243,0,243,3],[244,0,244,3],[248,0,248,1],[249,0,249,1],[229,0,229,1],[233,0,233,1],[234,0,234,1],[235,0,235,1],[236,0,236,3],[238,0,238,3],[223,0,223,1],[224,0,224,1],[225,0,225,1],[226,0,226,1],[227,0,227,1],[228,0,228,1],[217,0,217,1],[218,0,218,1],[219,0,219,1],[220,0,220,1],[221,0,221,1],[222,0,222,1],[211,0,211,1],[212,0,212,1],[213,0,213,1],[214,0,214,1],[215,0,215,1],[216,0,216,1],[205,0,205,1],[206,0,206,1],[207,0,207,1],[208,0,208,1],[209,0,209,1],[210,0,210,1],[196,0,196,3],[200,0,200,1],[201,0,201,1],[202,0,202,1],[203,0,203,1],[204,0,204,1],[187,0,187,1],[188,0,188,3],[190,0,190,3],[193,0,193,3],[194,0,194,3],[195,0,195,3],[178,0,178,1],[179,0,179,1],[180,0,180,1],[181,0,181,1],[185,0,185,1],[186,0,186,1],[172,0,172,1],[173,0,173,1],[174,0,174,1],[175,0,175,1],[176,0,176,1],[177,0,177,1],[166,0,166,1],[167,0,167,1],[168,0,168,1],[169,0,169,1],[170,0,170,1],[171,0,171,1],[160,0,160,1],[161,0,161,1],[162,0,162,1],[163,0,163,1],[164,0,164,1],[165,0,165,1],[154,0,154,1],[155,0,155,1],[156,0,156,1],[157,0,157,1],[158,0,158,1],[159,0,159,1],[145,0,145,3],[146,0,146,3],[147,0,147,3],[148,0,148,3],[152,0,152,1],[153,0,153,1],[133,0,133,1],[137,0,137,1],[138,0,138,1],[139,0,139,1],[140,0,140,3],[142,0,142,3],[127,0,127,1],[128,0,128,1],[129,0,129,1],[130,0,130,1],[131,0,131,1],[132,0,132,1],[121,0,121,1],[122,0,122,1],[123,0,123,1],[124,0,124,1],[125,0,125,1],[126,0,126,1],[115,0,115,1],[116,0,116,1],[117,0,117,1],[118,0,118,1],[119,0,119,1],[120,0,120,1],[109,0,109,1],[110,0,110,1],[111,0,111,1],[112,0,112,1],[113,0,113,1],[114,0,114,1],[100,0,100,3],[104,0,104,1],[105,0,105,1],[106,0,106,1],[107,0,107,1],[108,0,108,1],[91,0,91,1],[92,0,92,3],[94,0,94,3],[97,0,97,3],[98,0,98,3],[99,0,99,3],[82,0,82,1],[83,0,83,1],[84,0,84,1],[85,0,85,1],[89,0,89,1],[90,0,90,1],[76,0,76,1],[77,0,77,1],[78,0,78,1],[79,0,79,1],[80,0,80,1],[81,0,81,1],[70,0,70,1],[71,0,71,1],[72,0,72,1],[73,0,73,1],[74,0,74,1],[75,0,75,1],[64,0,64,1],[65,0,65,1],[66,0,66,1],[67,0,67,1],[68,0,68,1],[69,0,69,1],[58,0,58,1],[59,0,59,1],[60,0,60,1],[61,0,61,1],[62,0,62,1],[63,0,63,1],[49,0,49,3],[50,0,50,3],[51,0,51,3],[52,0,52,3],[56,0,56,1],[57,0,57,1],[38,0,38,3],[40,0,40,3],[41,0,41,3],[42,0,42,3],[44,0,44,3],[46,0,46,3],[24,0,24,3],[25,0,25,3],[26,0,26,3],[27,0,27,3],[36,0,36,3],[37,0,37,3],[21,0,21,3],[22,0,22,3],[23,0,23,3],[7,0,7,3],[9,0,9,3],[10,0,10,3],[12,0,12,1],[14,0,14,3],[17,0,17,3],[0,2,0,3],[1,2,1,3],[2,2,2,3],[3,2,3,3],[4,2,4,3],[6,2,6,3],[18,0,18,3],[19,0,19,3],[20,0,20,3]]}
[null,"File Number:","EB-2014-0002"]
[null,"Exhibit:"]
[null,"Tab:"]
[null,"Schedule:"]
[null,"Page:"]
[]
[null,"Date:"]
["Appendix 2-Z\nTariff of Rates and Charges"]
[]
["For each class, Applicants are required to copy and paste the class descriptions (located directly under the class name) and the description of the applicability of those rates (description is found under the class name and directly under the word \"APPLICATION\").  By using the drop-down lists located under the column labeled \"Rate Description\", please select the descriptions of the rates and charges that BEST MATCHES the descriptions on your most recent Board-Approved Tariff of Rates and Charges.  If the description is not found in the drop-down list, please enter the description in the green shaded cells under the correct class exactly as it appears on the tariff.   Please do not enter more than one \"Service Charge\" for each class for which a base monthly fixed charge applies.  All rate rider descriptions should begin with \"Rate Rider for...\"."]
["Select the appropriate rate classes as they appear on your most recent Board-Approved Tariff of Rates and Charges, including the MicroFit Class."]
[]
["How many classes are listed on your most recent Board-Approved Tariff of Rates and Charges?",null,10]
[]
["Select Your Rate Classes from the Blue Cells below.  \nPlease ensure that a rate class is assigned to each shaded cell."]
[]
[]
["Rate Class Classification"]
["RESIDENTIAL"]
["GENERAL SERVICE LESS THAN 50 KW"]
["GENERAL SERVICE 50 TO 4,999 KW"]
["LARGE USE"]
["LARGE USE (2)"]
["UNMETERED SCATTERED LOAD"]
["SENTINEL LIGHTING"]
["STREET LIGHTING"]
["STANDBY POWER"]
["microFIT"]
[]
[]
[]
[]
[]
[]
["Once all blue shaded cells above are filled out, press the following button to create your tariff template"]
[]
["Horizon Utilities"]
["TARIFF OF RATES AND CHARGES"]
[{"$f":"\"Effective and Implementation Date January 1, 2019\"","v":"Effective and Implementation Date January 1, 2019"}]
[]
["This schedule supersedes and replaces all previously"]
["approved schedules of Rates, Charges and Loss Factors"]
[{"$f":"C1","v":"EB-2014-0002"}]
[]
["RESIDENTIAL SERVICE CLASSIFICATION"]
[]
["This classification applies to an account taking electricity at 750 volts or less where the electricity is used exclusively in a separate metered living accommodation. Customers shall be residing in single-dwelling units that consist of a detached house or one unit of a semi-detached, duplex, triplex or quadruplex house, with a residential zoning. Separately metered dwellings within a town house complex or apartment building also qualify as residential customers. All customers are single-phase. Further servicing details are available in the distributor’s Conditions of Service."]
["APPLICATION"]
[]
["The application of these rates and charges shall be in accordance with the Licence of the Distributor and any Code or Order of the Board, and amendments thereto as approved by the Board, which may be applicable to the administration of this schedule."]
["No rates and charges for the distribution of electricity and charges to meet the costs of any work or service done or furnished for the purpose of the distribution of electricity shall be made except as permitted by this schedule, unless required by the Distributor’s Licence or a Code or Order of the Board, and amendments thereto as approved by the Board, or as specified herein."]
["Unless specifically noted, this schedule does not contain any charges for the electricity commodity, be it under the Regulated Price Plan, a contract with a retailer or the wholesale market price, as applicable."]
["It should be noted that this schedule does not list any charges, assessments, or credits that are required by law to be invoiced by a distributor and that are not subject to Board approval, such as the Debt Retirement Charge, the Global Adjustment, the Ontario Clean Energy Benefit and the HST."]
[]
["MONTHLY RATES AND CHARGES - Delivery Component"]
[]
["Service Charge",null,"customer",18.25]
["Distribution Volumetric Rate",null,"kWh",1.78E-2]
[]
[]
[]
[]
[]
["Low Voltage Service Rate",null,"kWh",5.9949401203565472E-5]
["Retail Transmission Rate – Network Service Rate",null,"kWh",8.6E-3]
["Retail Transmission Rate – Line and Transformation Connection Service Rate",null,"kWh",6.1000000000000004E-3]
[]
[]
[]
[]
[]
[]
[]
[]
[]
[]
[]
[]
[]
[]
[]
[]
[]
[]
[]
[]
[]
["MONTHLY RATES AND CHARGES - Regulatory Component"]
[]
["Wholesale Market Service Rate",null,"$/kWh",4.4000000000000003E-3]
["Rural Rate Protection Charge",null,"$/kWh",1.2999999999999999E-3]
["Standard Supply Service - Administrative Charge (if applicable)",null,"$",0.25]
["GENERAL SERVICE LESS THAN 50 KW SERVICE CLASSIFICATION"]
[]
["This classification applies to a non residential account taking electricity at 750 volts or less whose average monthly maximum demand is less than, or is forecast to be less than, 50 kW. Further servicing details are available in the distributor’s Conditions of Service."]
["APPLICATION"]
[]
["The application of these rates and charges shall be in accordance with the Licence of the Distributor and any Code or Order of the Board, and amendments thereto as approved by the Board, which may be applicable to the administration of this schedule."]
["No rates and charges for the distribution of electricity and charges to meet the costs of any work or service done or furnished for the purpose of the distribution of electricity shall be made except as permitted by this schedule, unless required by the Distributor’s Licence or a Code or Order of the Board, and amendments thereto as approved by the Board, or as specified herein."]
["Unless specifically noted, this schedule does not contain any charges for the electricity commodity, be it under the Regulated Price Plan, a contract with a retailer or the wholesale market price, as applicable."]
["It should be noted that this schedule does not list any charges, assessments, or credits that are required by law to be invoiced by a distributor and that are not subject to Board approval, such as the Debt Retirement Charge, the Global Adjustment, the Ontario Clean Energy Benefit and the HST."]
[]
["MONTHLY RATES AND CHARGES - Delivery Component"]
[]
["Service Charge",null,"customer",46.2]
["Distribution Volumetric Rate",null,"kWh",1.2E-2]
[]
[]
[]
[]
[]
["Low Voltage Service Rate",null,"kWh",6.0000000000000002E-5]
["Retail Transmission Rate – Network Service Rate",null,"kWh",7.4000000000000003E-3]
["Retail Transmission Rate – Line and Transformation Connection Service Rate",null,"kWh",5.4999999999999997E-3]
[]
[]
[]
[]
[]
[]
[]
[]
[]
[]
[]
[]
[]
[]
[]
[]
[]
[]
[]
[]
[]
["MONTHLY RATES AND CHARGES - Regulatory Component"]
[]
["Wholesale Market Service Rate",null,"kWh",4.4000000000000003E-3]
["Rural Rate Protection Charge",null,"kWh",1.2999999999999999E-3]
["Standard Supply Service - Administrative Charge (if applicable)",null,"$",0.25]
["GENERAL SERVICE 50 TO 4,999 KW SERVICE CLASSIFICATION"]
[]
["This classification applies to a non residential account whose average monthly maximum demand used for billing purposes is equal to or greater than, or is forecast to be equal to or greater than, 50 kW but less than 5,000 kW. Further servicing details are available in the distributor’s Conditions of Service."]
["APPLICATION"]
[]
["The application of these rates and charges shall be in accordance with the Licence of the Distributor and any Code or Order of the Board, and amendments thereto as approved by the Board, which may be applicable to the administration of this schedule."]
["No rates and charges for the distribution of electricity and charges to meet the costs of any work or service done or furnished for the purpose of the distribution of electricity shall be made except as permitted by this schedule, unless required by the Distributor’s Licence or a Code or Order of the Board, and amendments thereto as approved by the Board, or as specified herein."]
["Unless specifically noted, this schedule does not contain any charges for the electricity commodity, be it under the Regulated Price Plan, a contract with a retailer or the wholesale market price, as applicable."]
["It should be noted that this schedule does not list any charges, assessments, or credits that are required by law to be invoiced by a distributor and that are not subject to Board approval, such as the Debt Retirement Charge, the Global Adjustment, the Ontario Clean Energy Benefit and the HST."]
[]
["MONTHLY RATES AND CHARGES - Delivery Component"]
[]
["Service Charge",null,"customer",422.19]
["Distribution Volumetric Rate",null,"kW",2.8096999999999999]
[]
[]
[]
[]
["Low Voltage Service Rate",null,"kW",2.1690000000000001E-2]
["Retail Transmission Rate – Network Service Rate",null,"kW",2.9539]
["Retail Transmission Rate – Line and Transformation Connection Service Rate",null,"kW",2.1760999999999999]
[]
[]
[]
[]
[]
[]
[]
[]
[]
[]
[]
[]
[]
[]
[]
[]
[]
[]
[]
[]
[]
[]
["MONTHLY RATES AND CHARGES - Regulatory Component"]
[]
["Wholesale Market Service Rate",null,"kWh",4.4000000000000003E-3]
["Rural Rate Protection Charge",null,"kWh",1.2999999999999999E-3]
["Standard Supply Service - Administrative Charge (if applicable)",null,"$",0.25]
["LARGE USE SERVICE CLASSIFICATION"]
[]
["This classification applies to an account whose average monthly maximum demand used for billing purposes is equal to or greater than, or is forecast to be equal to or greater than, 5,000 kW. Further servicing details are available in the distributor’s Conditions of Service."]
["APPLICATION"]
[]
["The application of these rates and charges shall be in accordance with the Licence of the Distributor and any Code or Order of the Board, and amendments thereto as approved by the Board, which may be applicable to the administration of this schedule."]
["No rates and charges for the distribution of electricity and charges to meet the costs of any work or service done or furnished for the purpose of the distribution of electricity shall be made except as permitted by this schedule, unless required by the Distributor’s Licence or a Code or Order of the Board, and amendments thereto as approved by the Board, or as specified herein."]
["Unless specifically noted, this schedule does not contain any charges for the electricity commodity, be it under the Regulated Price Plan, a contract with a retailer or the wholesale market price, as applicable."]
["It should be noted that this schedule does not list any charges, assessments, or credits that are required by law to be invoiced by a distributor and that are not subject to Board approval, such as the Debt Retirement Charge, the Global Adjustment, the Ontario Clean Energy Benefit and the HST."]
[]
["MONTHLY RATES AND CHARGES - Delivery Component"]
[]
["Service Charge",null,"customer",19868.86]
["Distribution Volumetric Rate",null,"kW",1.1722999999999999]
[]
[]
[]
[]
["Low Voltage Service Rate",null,"kW",2.4920000000000001E-2]
["Retail Transmission Rate – Network Service Rate",null,"kW",3.3742999999999999]
["Retail Transmission Rate – Line and Transformation Connection Service Rate",null,"kW",2.5005999999999999]
[]
[]
[]
[]
[]
[]
[]
[]
[]
[]
[]
[]
[]
[]
[]
[]
[]
[]
[]
[]
[]
[]
["MONTHLY RATES AND CHARGES - Regulatory Component"]
[]
["Wholesale Market Service Rate",null,"kWh",4.4000000000000003E-3]
["Rural Rate Protection Charge",null,"kWh",1.2999999999999999E-3]
["Standard Supply Service - Administrative Charge (if applicable)",null,"$",0.25]
["LARGE USE (2) SERVICE CLASSIFICATION"]
[]
["This classification applies to an account whose average monthly maximum demand used for billing purposes is equal to or greater than, or is forecast to be equal to or greater than, 15,000 kW and it is served with dedicated assets . Further servicing details are available in the distributor’s Conditions of Service."]
["APPLICATION"]
[]
["The application of these rates and charges shall be in accordance with the Licence of the Distributor and any Code or Order of the Board, and amendments thereto as approved by the Board, which may be applicable to the administration of this schedule."]
["No rates and charges for the distribution of electricity and charges to meet the costs of any work or service done or furnished for the purpose of the distribution of electricity shall be made except as permitted by this schedule, unless required by the Distributor’s Licence or a Code or Order of the Board, and amendments thereto as approved by the Board, or as specified herein."]
["Unless specifically noted, this schedule does not contain any charges for the electricity commodity, be it under the Regulated Price Plan, a contract with a retailer or the wholesale market price, as applicable."]
["It should be noted that this schedule does not list any charges, assessments, or credits that are required by law to be invoiced by a distributor and that are not subject to Board approval, such as the Debt Retirement Charge, the Global Adjustment, the Ontario Clean Energy Benefit and the HST."]
[]
["MONTHLY RATES AND CHARGES - Delivery Component"]
[]
["Service Charge",null,"customer",4995.75]
["Distribution Volumetric Rate",null,"kW",0.29470000000000002]
[]
[]
[]
[]
["Low Voltage Service Rate",null,"kW",2.4920000000000001E-2]
["Retail Transmission Rate – Network Service Rate",null,"kW",3.3742999999999999]
["Retail Transmission Rate – Line and Transformation Connection Service Rate",null,"kW",2.5005999999999999]
[]
[]
[]
[]
[]
[]
[]
[]
[]
[]
[]
[]
[]
[]
[]
[]
[]
[]
[]
[]
[]
[]
["MONTHLY RATES AND CHARGES - Regulatory Component"]
[]
["Wholesale Market Service Rate",null,"$/kWh",4.4000000000000003E-3]
["Rural Rate Protection Charge",null,"$/kWh",1.2999999999999999E-3]
["Standard Supply Service - Administrative Charge (if applicable)",null,"$",0.25]
["UNMETERED SCATTERED LOAD SERVICE CLASSIFICATION"]
[]
["This classification applies to an account taking electricity at 750 volts or less whose average monthly maximum demand is less than, or is forecast to be less than, 50 kW and the consumption is unmetered. Such connections include cable TV power packs, bus shelters, telephone booths, traffic lights, railway crossings, etc. The level of the consumption will be agreed to by the distributor and the customer, based on detailed manufacturer information/ documentation with regard to electrical consumption of the unmetered load or periodic monitoring of actual consumption. Further servicing details are available in the distributor’s Conditions of Service."]
["APPLICATION"]
[]
["The application of these rates and charges shall be in accordance with the Licence of the Distributor and any Code or Order of the Board, and amendments thereto as approved by the Board, which may be applicable to the administration of this schedule."]
["No rates and charges for the distribution of electricity and charges to meet the costs of any work or service done or furnished for the purpose of the distribution of electricity shall be made except as permitted by this schedule, unless required by the Distributor’s Licence or a Code or Order of the Board, and amendments thereto as approved by the Board, or as specified herein."]
["Unless specifically noted, this schedule does not contain any charges for the electricity commodity, be it under the Regulated Price Plan, a contract with a retailer or the wholesale market price, as applicable."]
["It should be noted that this schedule does not list any charges, assessments, or credits that are required by law to be invoiced by a distributor and that are not subject to Board approval, such as the Debt Retirement Charge, the Global Adjustment, the Ontario Clean Energy Benefit and the HST."]
[]
["MONTHLY RATES AND CHARGES - Delivery Component"]
[]
["Service Charge",null,"connection",10.323]
["Distribution Volumetric Rate",null,"kWh",1.6E-2]
[]
[]
[]
[]
["Low Voltage Service Rate",null,"kWh",6.0000000000000002E-5]
["Retail Transmission Rate – Network Service Rate",null,"kWh",7.4999999999999997E-3]
["Retail Transmission Rate – Line and Transformation Connection Service Rate",null,"kWh",5.5999999999999999E-3]
[]
[]
[]
[]
[]
[]
[]
[]
[]
[]
[]
[]
[]
[]
[]
[]
[]
[]
[]
[]
[]
[]
["MONTHLY RATES AND CHARGES - Regulatory Component"]
[]
["Wholesale Market Service Rate",null,"$/kWh",4.4000000000000003E-3]
["Rural Rate Protection Charge",null,"$/kWh",1.2999999999999999E-3]
["Standard Supply Service - Administrative Charge (if applicable)",null,"$",0.25]
["SENTINEL LIGHTING SERVICE CLASSIFICATION"]
[]
["This classification applies to safety/security lighting with a Residential, General Service or Large Use customer. This is typically exterior lighting, and often unmetered. Consumption is estimated based on the equipment rating and estimated hours of use. Further servicing details are available in the distributor’s Conditions of Service."]
["APPLICATION"]
[]
["The application of these rates and charges shall be in accordance with the Licence of the Distributor and any Code or Order of the Board, and amendments thereto as approved by the Board, which may be applicable to the administration of this schedule."]
["No rates and charges for the distribution of electricity and charges to meet the costs of any work or service done or furnished for the purpose of the distribution of electricity shall be made except as permitted by this schedule, unless required by the Distributor’s Licence or a Code or Order of the Board, and amendments thereto as approved by the Board, or as specified herein."]
["Unless specifically noted, this schedule does not contain any charges for the electricity commodity, be it under the Regulated Price Plan, a contract with a retailer or the wholesale market price, as applicable."]
["It should be noted that this schedule does not list any charges, assessments, or credits that are required by law to be invoiced by a distributor and that are not subject to Board approval, such as the Debt Retirement Charge, the Global Adjustment, the Ontario Clean Energy Benefit and the HST."]
[]
["MONTHLY RATES AND CHARGES - Delivery Component"]
[]
["Service Charge",null,"connection",6.3632999999999997]
["Distribution Volumetric Rate",null,"kW",17.451799999999999]
[]
[]
[]
[]
["Low Voltage Service Rate",null,"kW",1.745E-2]
["Retail Transmission Rate – Network Service Rate",null,"kW",2.4546000000000001]
["Retail Transmission Rate – Line and Transformation Connection Service Rate",null,"kW",1.7509999999999999]
[]
[]
[]
[]
[]
[]
[]
[]
[]
[]
[]
[]
[]
[]
[]
[]
[]
[]
[]
[]
[]
[]
["MONTHLY RATES AND CHARGES - Regulatory Component"]
[]
["Wholesale Market Service Rate",null,"$/kWh",4.4000000000000003E-3]
["Rural Rate Protection Charge",null,"$/kWh",1.2999999999999999E-3]
["Standard Supply Service - Administrative Charge (if applicable)",null,"$",0.25]
["STREET LIGHTING SERVICE CLASSIFICATION"]
[]
["This classification applies to an account for roadway lighting with a Municipality, Regional Municipality, Ministry of Transportation and private roadway lighting, controlled by photo cells. The consumption for these "]
["APPLICATION"]
[]
["The application of these rates and charges shall be in accordance with the Licence of the Distributor and any Code or Order of the Board, and amendments thereto as approved by the Board, which may be applicable to the administration of this schedule."]
["No rates and charges for the distribution of electricity and charges to meet the costs of any work or service done or furnished for the purpose of the distribution of electricity shall be made except as permitted by this schedule, unless required by the Distributor’s Licence or a Code or Order of the Board, and amendments thereto as approved by the Board, or as specified herein."]
["Unless specifically noted, this schedule does not contain any charges for the electricity commodity, be it under the Regulated Price Plan, a contract with a retailer or the wholesale market price, as applicable."]
["It should be noted that this schedule does not list any charges, assessments, or credits that are required by law to be invoiced by a distributor and that are not subject to Board approval, such as the Debt Retirement Charge, the Global Adjustment, the Ontario Clean Energy Benefit and the HST."]
[]
["MONTHLY RATES AND CHARGES - Delivery Component"]
[]
["Service Charge",null,"device",3.3277999999999999]
["Distribution Volumetric Rate",null,"kW",8.8558000000000003]
[]
[]
[]
[]
["Low Voltage Service Rate",null,"kW",1.702E-2]
["Retail Transmission Rate – Network Service Rate",null,"kW",2.3252999999999999]
["Retail Transmission Rate – Line and Transformation Connection Service Rate",null,"kW",1.7072000000000001]
[]
[]
[]
[]
[]
[]
[]
[]
[]
[]
[]
[]
[]
[]
[]
[]
[]
[]
[]
[]
[]
[]
["MONTHLY RATES AND CHARGES - Regulatory Component"]
[]
["Wholesale Market Service Rate",null,"$/kWh",4.4000000000000003E-3]
["Rural Rate Protection Charge",null,"$/kWh",1.2999999999999999E-3]
["Standard Supply Service - Administrative Charge (if applicable)",null,"$",0.25]
["STANDBY POWER SERVICE CLASSIFICATION"]
[]
["This classification refers to an account that has Load Displacement Generation and requires the distributor to provide back-up service. Further servicing details are available in the distributor’s Conditions of Service."]
["APPLICATION"]
[]
["The application of these rates and charges shall be in accordance with the Licence of the Distributor and any Code or Order of the Board, and amendments thereto as approved by the Board, which may be applicable to the administration of this schedule."]
["No rates and charges for the distribution of electricity and charges to meet the costs of any work or service done or furnished for the purpose of the distribution of electricity shall be made except as permitted by this schedule, unless required by the Distributor’s Licence or a Code or Order of the Board, and amendments thereto as approved by the Board, or as specified herein."]
["Unless specifically noted, this schedule does not contain any charges for the electricity commodity, be it under the Regulated Price Plan, a contract with a retailer or the wholesale market price, as applicable."]
["It should be noted that this schedule does not list any charges, assessments, or credits that are required by law to be invoiced by a distributor and that are not subject to Board approval, such as the Debt Retirement Charge, the Global Adjustment, the Ontario Clean Energy Benefit and the HST."]
[]
["MONTHLY RATES AND CHARGES - Delivery Component"]
[]
["GS < 50 kW Standby Charge",null,"kW",2.8094999999999999]
["Large Use (1) Standby Charge",null,"kW",{"$f":"D202","v":1.1722999999999999}]
["Large Use (2) Standby Charge",null,"kW",{"$f":"D250","v":0.29470000000000002}]
[]
[]
[]
[]
[]
[]
[]
[]
[]
[]
[]
[]
[]
[]
[]
[]
[]
[]
[]
[]
[]
[]
[]
[]
[]
[]
[]
[]
["MONTHLY RATES AND CHARGES - Regulatory Component"]
[]
["Wholesale Market Service Rate"]
["Rural Rate Protection Charge"]
["Standard Supply Service - Administrative Charge (if applicable)"]
["microFIT SERVICE CLASSIFICATION"]
[]
["This classification applies to an electricity generation facility contracted under the Ontario Power Authority’s microFIT program and connected to the distributor’s distribution system. Further servicing details are available in the distributor’s Conditions of Service."]
["APPLICATION"]
[]
["The application of these rates and charges shall be in accordance with the Licence of the Distributor and any Code or Order of the Board, and amendments thereto as approved by the Board, which may be applicable to the administration of this schedule."]
["No rates and charges for the distribution of electricity and charges to meet the costs of any work or service done or furnished for the purpose of the distribution of electricity shall be made except as permitted by this schedule, unless required by the Distributor’s Licence or a Code or Order of the Board, and amendments thereto as approved by the Board, or as specified herein."]
["Unless specifically noted, this schedule does not contain any charges for the electricity commodity, be it under the Regulated Price Plan, a contract with a retailer or the wholesale market price, as applicable."]
["It should be noted that this schedule does not list any charges, assessments, or credits that are required by law to be invoiced by a distributor and that are not subject to Board approval, such as the Debt Retirement Charge, the Global Adjustment, the Ontario Clean Energy Benefit and the HST."]
[]
["MONTHLY RATES AND CHARGES - Delivery Component"]
[]
["microFIT",null,0,5.4]
[]
[]
[]
[]
[]
[]
[]
[]
[]
[]
[]
[]
[]
[]
[]
[]
[]
[]
[]
[]
[]
[]
[]
[]
[]
[]
[]
[]
[]
[]
["MONTHLY RATES AND CHARGES - Regulatory Component"]
[]
["Wholesale Market Service Rate"]
["Rural Rate Protection Charge"]
["Standard Supply Service - Administrative Charge (if applicable)"]
[]
["ALLOWANCES"]
[]
["Transformer Allowance for Ownership - per kW of billing demand/month"]
["Transformer Allowance Discount",null,"kW",-0.73]
[]
["Primary Metering Allowance for transformer losses – applied to measured demand and energy",null,"%",-1]
[]
["SPECIFIC SERVICE CHARGES"]
[]
["APPLICATION"]
[]
["The application of these rates and charges shall be in accordance with the Licence of the Distributor and any Code or Order of the Board, and amendments thereto as approved by the Board, which may be applicable to the administration of this schedule."]
[]
["No charges to meet the costs of any work or service done or furnished for the purpose of the distribution of electricity shall be made except as permitted by this schedule, unless required by the Distributor’s Licence or a Code or Order of the Board, and amendments thereto as approved by the Board, or as specified herein."]
[]
["It should be noted that this schedule does not list any charges, assessments or credits that are required by law to be invoiced by a distributor and that are not subject to Board approval, such as the Debt Retirement Charge, the Global Adjustment, the Ontario Clean Energy Benefit and the HST."]
[]
["Customer Administration"]
[]
["Arrears certificate",null,"$",15]
["Statement of Account",null,"$",15]
["Pulling Post Dated Cheques",null,"$",15]
["Duplicate Invoices for previous billing",null,"$",15]
["Request for other billing information",null,"$",15]
["Easement Letter",null,"$",15]
["Income Tax Letter",null,"$",15]
["Notification charge",null,"$",15]
["Account History",null,"$",15]
["Returned cheque charge (plus bank charges)",null,"$",15]
["Charge to certify cheque",null,"$",15]
["Legal letter charge",null,"$",15]
["Account set up charge/change of occupancy charge (plus credit agency costs if applicable)",null,"$",30]
["Special meter reads",null,"$",30]
["Meter dispute charge plus Measurement Canada fees (if meter found correct)",null,"$",30]
["Credit Card Convenience Charge",null,"$",15]
["Credit check (plus credit agency costs)",null,"$",15]
["Paymentus Service Fee",null,"$",5.95]
[]
[]
[]
[]
[]
[]
[]
[]
[]
[]
[]
[]
[]
[]
[]
[]
[]
[]
["Non-Payment of Account"]
[]
["Late Payment – per month",null,"%",1.5]
["Late Payment – per annum",null,"%",19.559999999999999]
["Collection of account charge – no disconnection",null,"$",30]
["Collection of account charge – no disconnection – after regular hours",null,"$",165]
["Disconnect/Reconnect at meter – during regular hours",null,"$",65]
["Disconnect/Reconnect at meter – after regular hours",null,"$",185]
["Disconnect/Reconnect at pole – during regular hours",null,"$",185]
["Disconnect/Reconnect at pole – after regular hours",null,"$",415]
["Service call – customer owned equipment",null,"$",30]
["Service call – after regular hours",null,"$",165]
["Temporary Service – Install & remove – overhead – no transformer",null,"$",500]
["Temporary Service – Install & remove – underground – no transformer",null,"$",300]
["Temporary Service – Install & remove – overhead – with transformer",null,"$",1000]
["Specific Charge for Access to the Power Poles - $/pole/year",null,"$",22.35]
["Administrative Billing Charge",null,"$",150]
["Install/Remove load control device – during regular hours",null,"$",65]
["Install/Remove load control device – after regular hours",null,"$",185]
[]
[]
[]
[]
[]
[]
[]
[]
[]
[]
[]
[]
[]
[]
[]
[]
[]
[]
[]
[]
[]
[]
[]
[]
[]
[]
[]
[]
[]
[]
[]
[]
["RETAIL SERVICE CHARGES (if applicable)"]
[]
["The application of these rates and charges shall be in accordance with the Licence of the Distributor and any Code or Order of the Board, and amendments thereto as approved by the Board, which may be applicable to the administration of this schedule."]
[]
["No rates and charges for the distribution of electricity and charges to meet the costs of any work or service done or furnished for the purpose of the distribution of electricity shall be made except as permitted by this schedule, unless required by the Distributor’s Licence or a Code or Order of the Board, and amendments thereto as approved by the Board, or as specified herein."]
[]
["Unless specifically noted, this schedule does not contain any charges for the electricity commodity, be it under the Regulated Price Plan, a contract with a retailer or the wholesale market price, as applicable."]
[]
["It should be noted that this schedule does not list any charges, assessments or credits that are required by law to be invoiced by a distributor and that are not subject to Board approval, such as the Debt Retirement Charge, the Global Adjustment, the Ontario Clean Energy Benefit and the HST."]
[]
["Retail Service Charges refer to services provided by a distributor to retailers or customers related to the supply of competitive electricity."]
[]
["One-time charge, per retailer, to establish the service agreement between the distributor and the retailer",null,"$",100]
["Monthly Fixed Charge, per retailer",null,"$",20]
["Monthly Variable Charge, per customer, per retailer",null,"$/cust.",0.5]
["Distributor-consolidated billing monthly charge, per customer, per retailer",null,"$/cust.",0.3]
["Retailer-consolidated billing monthly credit, per customer, per retailer",null,"$/cust.",-0.3]
["Service Transaction Requests (STR) "]
["Request fee, per request, applied to the requesting party",null,"$",0.25]
["Processing fee, per request, applied to the requesting party",null,"$",0.5]
["Request for customer information as outlined in Section 10.6.3 and Chapter 11 of the Retail"]
["Settlement Code directly to retailers and customers, if not delivered electronically through the"]
["Electronic Business Transaction (EBT) system, applied to the requesting party "]
["Up to twice a year",null,"$","no charge"]
["More than twice a year, per request (plus incremental delivery costs)",null,"$",2]
[]
["LOSS FACTORS"]
[]
["If the distributor is not capable of prorating changed loss factors jointly with distribution rates, the revised loss factors will be implemented upon the first subsequent billing for each billing cycle."]
[]
[]
["Total Loss Factor – Secondary Metered Customer < 5,000 kW",null,null,{"$f":"'2018'!D664","v":1.0379481503018717}]
["Total Loss Factor – Secondary Metered Customer > 5,000 kW",null,null,{"$f":"'2018'!D665","v":1.0160223290410131}]
["Distribution Loss Factor - Primary Metered Customer < 5,000 kW",null,null,{"$f":"'2018'!D666","v":1.027568668798853}]
["Distribution Loss Factor - Primary Metered Customer > 5,000 kW",null,null,{"$f":"'2018'!D667","v":1.0059627020208051}]